Workbook

Sheet Титул
A1: Державна служба статистики України
A2: State Statistics Service of Ukraine
A19: ПАЛИВНО-ЕНЕРГЕТИЧНІ
A20: РЕСУРСИ УКРАЇНИ
A22: FUEL AND ENERGY RESOURCES
A23: OF UKRAINE
A30: СТАТИСТИЧНИЙ ЗБІРНИК
A31: STATISTICAL PUBLICATION
A49: Київ
A50: Kyiv
A51: 2021

Sheet 2
A1: Державна служба статистики України
A2: State Statistics Service of Ukraine
A4: За редакцією Валентини КРУГЛЯК
A5: Еdited by Valentyna KRUGLYAK
A7: Відповідальний за випуск Олена ВИШНЕВСЬКА
A8: Responsible for edition is Olena VYSHNEVSKA
A11: У статистичному збірнику вміщено дані про результати діяльності підприємств і організацій щодо видобутку, виробництва, перетворення та кінцевого споживання паливно-енергетичних ресурсів в Україні.
A12: Методологія розрахунку показників відповідає міжнародним та європейським стандартам, що забезпечує можливість їх порівняння з іншими країнами.
A13: Розрахований на широке коло користувачів.
A15: This publication contains data on activity results of enterprises and organizations concerning extraction, production, transformation and final consumption of fuel and energy resources in Ukraine. It is considerate for a wide range of users.
A16: The methodology for indicators compilation meets international and European standards, this ensures the possibility to compare them with other countries.
A17: The publication is intended for a wide audience of users.
A20: Державна служба статистики України
A21: State Statistics Service of Ukraine
A23: • адреса: вул. Шота Руставелі, 3, м. Київ, 01601, Україна
A24: address: 3, Shota Rustaveli str., Kyiv, 01601, Ukraine
A25: • телефони: (044) 287-01-17
A26: telephone: (044) 287-01-17
A27: • факс: (044) 235-37-39
A28: fax: (044) 235-37-39
A29: • електронна пошта: office@ukrstat.gov.ua
A30: e-mail: office@ukrstat.gov.ua
A31: • вебсайт: www.ukrstat.gov.ua
A32: website:www.ukrstat.gov.ua
A44: Ó Державна служба статистики України, 2021
A45: Ó State Statistics Service of Ukraine, 2021

Sheet 3
B1: Скорочення / Abbreviations
B3: тис | C3: – | D3: тисяча | F3: thsd. | G3: – | H3: thousand
B4: т | C4: – | D4: тонна | F4: t | G4: – | H4: tonne
B5: млн | C5: – | D5: мільйон | F5: mln. | G5: – | H5: million
B6: т у.п. | C6: – | D6: тонн умовного палива | F6: tsc | G6: – | H6: tonnes of standard coals
B7: тис.тне | C7: – | D7: тисяча тонн нафтового | F7: toe | G7: – | H7: tonnes of oil equivalent
D8: еквівалента
B11: Умовні позначення / Conventional symbols
B13: Тире (–) | C13: – | D13: явищ не було | F13: Dash (–) | G13: – | H13: not observed
B14: Нуль (0,0) | C14: – | D14: явище відбулося, але у вимірах, менших за ті, що можуть бути виражені використаними у таблиці розрядами | F14: Zero (0,0) | G14: – | H14: data are very negligible for the units of measurement
B15: Символ (к) | C15: – | D15: дані не оприлюднюються з метою забезпечення виконання вимог Закону України "Про державну статистику" щодо конфіденційності статистичної інформації | F15: Sumbol (с) | G15: – | H15: data are not published in order to ensure compliance with the reguirements of the Law of Ukraine "On the State Statistics" regarding confidentiality of statisticai information
B16: "у тому числі", "з них" | C16: – | D16: означає, що наведено не всі доданки загальної суми. Трапляються випадки, коли наведено всі доданки загальної суми, а при округлені сума складових не дорівнює підсумку | F16: "including", "of which" | G16: – | H16: not all components of the total sum are given. There are cases when all components of the total sum are given, however when rounding the sum of the components may not equal the total

Sheet 4
A1: Передмова / Foreword
A2: У статистичному збірнику "Паливно-енергетичні ресурси України" наведені статистичні дані, що характеризують результати діяльності підприємств і організацій щодо видобутку, виробництва, перетворення та кінцевого споживання паливно-енергетичних ресурсів в Україні.
A3: Значне місце у збірнику відведено статистичним даним про використання підприємствами та організаціями паливно-енергетичних ресурсів за основними напрямами споживання.
A4: Подано інформацію про потужність джерел постачання енергії, та обсягів відпуску електро- та теплоенергії енергогенеруючими джерелами; про втрати енергоресурсів при транспортуванні, розподілі та зберіганні.
A5: Також розділ 1 збірника уміщує таблиці продуктових енергетичних балансів за окремими видами палива та графічну інформацію щодо показників енергетичних балансів за 2007– 2020 роки.
A6: Інформацію подано за регіонами України та видами економічної діяльності.
A7: Наприкінці збірника наведені методологічні пояснення окремих статистичних показників.
A8: У збірнику інформацію за результатами державних статистичних спостережень за 2019– 2020 роки наведено і розраховано без урахування тимчасово окупованої території Автономної Республіки Крим, м.Севастополя та частини тимчасово окупованих територій у Донецькій та Луганській областях.
A11: The publication "Fuel and energy resources of Ukraine" contain statistics data that show the activity outcome of enterprises and organizations of all economic activities concerned with mining, production, transformation and final consumption of energy resources.
A12: Significant place in the publication is given to statistical data on the enterprises and organizations use of energy resources in the reference directions of consumption.
A13: Presented information about: energy suppliers' capacities, volumes of supplied electricity and heat by energy generating sources, generation and utilization of secondary energy resources; energy losses in transportation, distribution and storage.
A14: Part 1 includes tables of statistics in form of balances for individual fuels and graphic information on time series data of energy balances for 2007-2020.
A15: Information is provided by regions of Ukraine and types of economic activities.
A16: The last part of the publication also contains methodological notes on some statistical indicators.
A17: Information presented and calculated in this issue given according to the 2019-2020 statistics observation results and exclude data from temporarily occupied territories of Autonomous Republic of Crimea, city of Sevastopol and part of temporary occupied territories of Donetsk and Luhansk regions.

Sheet 5-7
A1: Табл. | B1: Зміст | C1: Стор / Page | D1: Table | E1: Contents
A2: Передмова | C2: 4 | D2: Foreword
A3: 1. | B3: Енергетичний баланс України | C3: 8 | D3: 1. | E3: Energy balance of Ukraine
A4: 1.1. | B4: Енергетичний баланс України за 2019 рік (уточнені дані) | C4: 9 | D4: 1.1. | E4: Energy balance of Ukraine for 2019 (updated data)
A5: 1.1.1. | B5: Енергетичний баланс України за 2020 рік (оперативні дані) | C5: 11 | D5: 1.1.1. | E5: Energy balance of Ukraine for 2020 (operative data)
A6: 1.2. | B6: Енергетичний баланс України (продуктовий) за 2019 рік (уточнені дані) | C6: 13 | D6: 1.2. | E6: Energy balance of Ukraine (by products) for 2019 (updated data)
A7: 1.2.1. | B7: Енергетичний баланс України (продуктовий) за 2020 рік (оперативні дані) | C7: 17 | D7: 1.2.1. | E7: Energy balance of Ukraine (by products) for 2020 (operative data)
A8: 1.3. | B8: Графік. Виробництво первинної енергії | C8: 21 | D8: 1.3. | E8: Graph. Total primary energy production by energy sources
A9: 1.4. | B9: Графік. Розподіл основних джерел енергії в загальному постачанні первинної енергії | C9: 21 | D9: 1.4. | E9: Graph. Total primary energy supply by energy sources
A10: 1.5. | B10: Графік. Забезпечення економіки України власними ресурсами | C10: 22 | D10: 1.5. | E10: Graph. Shares of own production of energy resources in Ukraine
A11: 1.6. | B11: Графік. Внутрішнє постачання нафтопродуктів | C11: 22 | D11: 1.6. | E11: Graph. Total supply of oil products
A12: 1.7. | B12: Графік. Чистий імпорт енергії | C12: 23 | D12: 1.7. | E12: Graph. Energy net import
A13: 1.8. | B13: Графік. Постачання та кінцеве споживання енергії | C13: 23 | D13: 1.8. | E13: Graph. Energy supply and final consumption
A14: 1.9. | B14: Графік. Структура загального постачання первинної енергії за 2019 рік, 2020 рік | C14: 24 | D14: 1.9. | E14: Graph. Total primary energy supply by energy sources 2019, 2020
A15: 1.10. | B15: Графік. Структура кінцевого споживання енергії за 2019 рік, 2020 рік | C15: 25 | D15: 1.10. | E15: Graph. Fuel and energy shares in total final consumption 2019, 2020
A16: 1.11. | B16: Випуск вугілля кам'яного за регіонами | C16: 26 | D16: 1.11. | E16: Output of сoal of hard, by regions
A17: 1.12. | B17: Видобуток нафти сирої, у тому числі нафти, одержаної з мінералів бітумінозних за регіонами | C17: 26 | D17: 1.12. | E17: Output of crude oil including oil obtained from bituminous mineral, by regions
A18: 1.13. | B18: Видобуток газового конденсату природного, одержаного з родовищ газу природного за регіонами | C18: 26 | D18: 1.13. | E18: Output of Natural Gas Liquids obtained from natural gas fields, by regions
A19: 1.14. | B19: Видобуток газу природного скрапленого або в газоподібному стані за регіонами | C19: 27 | D19: 1.14. | E19: Output of natural gas, liquified or gaseous, by regions
A20: 1.15. | B20: Виробництво електроенергії за типами електростанцій | C20: 27 | D20: 1.15. | E20: Output of electricity, by type of power plants
A21: 1.16. | B21: Виробництво електроенергії за регіонами | C21: 28 | D21: 1.16. | E21: Output of electricity, by regions
A22: 1.17. | B22: Відпуск електричної енергії генеруючими джерелами за регіонами у 2020 році | C22: 29 | D22: 1.17. | E22: Generating Sources Distribution of Electricity by regions, 2020
A23: 1.18. | B23: Відпуск теплової енергії генеруючими джерелами за регіонами у 2020 році | C23: 30 | D23: 1.18. | E23: Generating Sources Distribution of Heating Energy by regions, 2020
A24: 1.19. | B24: Установлена потужність джерел постачання енергії в регіональному розрізі у 2020 році | C24: 31 | D24: 1.19. | E24: Capacity of power plants by regions, 2020
A25: 1.20. | B25: Установлена потужність джерел постачання енергії за типами електростанцій за 2020 рік | C25: 32 | D25: 1.20. | E25: Setted Capacity of generating power plants by the types of power plants, 2020
A26: 1.21. | B26: Використання електроенергії за 2020 рік | C26: 33 | D26: 1.21. | E26: Electricity in use, 2020
A27: 1.22. | B27: Використання теплоенергії за 2020 рік | C27: 37 | D27: 1.22. | E27: Heat in use, 2020
A28: 2. | B28: Основні напрями використання палива | C28: 40 | D28: 2. | E28: The main ways of fuel use
B29: за регіонами у 2020 році | E29: in regions, 2020
A30: 2.1. | B30: Використання палива в Україні | C30: 41 | D30: 2.1. | E30: Fuel Consumption in Ukraine
A31: 2.2. | B31: Графік. Використання вугілля | C31: 43 | D31: 2.2. | E31: Graph. Coal Сonsumption
A32: 2.3. | B32: Графік. Використання газу природного | C32: 44 | D32: 2.3. | E32: Graph. Natural Gas Сonsumption
A33: 2.4. | B33: Графік. Використання бензину моторного | C33: 45 | D33: 2.4. | E33: Graph. Motor Gasoline Сonsumption
A34: 2.5. | B34: Графік. Використання газойлів (дизельного палива) | C34: 46 | D34: 2.5. | E34: Graph. Road Diesel Consumption
A35: 2.6. | B35: Графік. Використання пропану-бутану скраплених | C35: 47 | D35: 2.6. | E35: Graph. LPG Consumption
A36: 2.7. | B36: Графік. Використання мазутів паливних важких | C36: 48 | D36: 2.7. | E36: Graph. Heavy Fuel Oil Consumption
A37: 2.8. | B37: Графік. Використання палива | C37: 49 | D37: 2.8. | E37: Graph. Fuel Consumption
A38: 2.9. | B38: Графік. Використання теплоенергії | C38: 50 | D38: 2.9. | E38: Graph. Heating Consumption
A39: 2.10. | B39: Графік. Використання електроенергії | C39: 51 | D39: 2.10. | E39: Graph. Electricity Consumption
A40: 3. | B40: Основні напрямки використання палива за видами економічної діяльності у 2020 році | C40: 52 | D40: 3. | E40: The main ways of fuel use by the types of economic in 2020
A41: 3.1. | B41: Сільське господарство, мисливство, лісове господарство | C41: 53 | D41: 3.1. | E41: Agriculture, Forestry and Fishing
A42: 3.2. | B42: Промисловість | C42: 56 | D42: 3.2. | E42: Industry
A43: 3.2.1. | B43: Добувна промисловість і розроблення кар’єрів | C43: 59 | D43: 3.2.1. | E43: Mining and Quarrying
A44: 3.2.1.1. | B44: Добування кам’яного та бурого вугілля | C44: 62 | D44: 3.2.1.1. | E44: Mining of coal and lignite
A45: 3.2.1.2. | B45: Добування сирої нафти та природного газу | C45: 65 | D45: 3.2.1.2. | E45: Extraction of crude petroleum and natural gas
A46: 3.2.1.3. | B46: Добування металевих руд | C46: 68 | D46: 3.2.1.3. | E46: Mining of metal ores
A47: 3.2.1.4. | B47: Добування інших корисних копалин та розроблення кар’єрів | C47: 71 | D47: 3.2.1.4. | E47: Other mining and quarrying
A48: 3.2.1.5. | B48: Надання допоміжних послуг у сфері добувної промисловості та розроблення кар’єрів | C48: 74 | D48: 3.2.1.5. | E48: Mining support service activities
A49: 3.2.2. | B49: Переробна промисловість | C49: 77 | D49: 3.2.2. | E49: Manufacturing
A50: 3.2.2.1. | B50: Виробництво харчових продуктів | C50: 80 | D50: 3.2.2.1. | E50: Manufacture of food
A51: 3.2.2.2. | B51: Виробництво напоїв | C51: 83 | D51: 3.2.2.2. | E51: Manufacture of beverages
A52: 3.2.2.3. | B52: Виробництво тютюнових виробів | C52: 86 | D52: 3.2.2.3. | E52: Manufacture of tobacco products
A53: 3.2.2.4. | B53: Текстильне виробництво | C53: 89 | D53: 3.2.2.4. | E53: Manufacture of textiles
A54: 3.2.2.5. | B54: Виробництво одягу | C54: 92 | D54: 3.2.2.5. | E54: Manufacture of wearing apparel
A55: 3.2.2.6. | B55: Виробництво шкіри, виробів зі шкіри та інших матеріалів | C55: 95 | D55: 3.2.2.6. | E55: Manufacture of leather and related products
A56: 3.2.2.7. | B56: Оброблення деревини та виготовлення виробів з деревини та корка, крім меблів; виготовлення виробів із соломки та рослинних матеріалів для плетіння | C56: 98 | D56: 3.2.2.7. | E56: Manufacture of wood and of products of wood and cork, materials except furniture; manufacture of articles of straw and plaiting
A57: 3.2.2.8. | B57: Виробництво паперу та паперових виробів | C57: 101 | D57: 3.2.2.8. | E57: Manufacture of paper and paper products
A58: 3.2.2.9. | B58: Поліграфічна діяльність, тиражування записаної інформації | C58: 104 | D58: 3.2.2.9. | E58: Printing and reproduction of recorded media
A59: 3.2.2.10. | B59: Виробництво коксу та продуктів нафтоперероблення | C59: 107 | D59: 3.2.2.10. | E59: Manufacture of coke and refined petroleum products
A60: 3.2.2.11. | B60: Виробництво хімічних речовин і хімічної продукції | C60: 110 | D60: 3.2.2.11. | E60: Manufacture of chemicals and chemical products
A61: 3.2.2.12. | B61: Виробництво основних фармацевтичних продуктів і фармацевтичних препаратів | C61: 113 | D61: 3.2.2.12. | E61: Manufacture of basic pharmaceutical products and pharmaceutical preparations
A62: 3.2.2.13. | B62: Виробництво гумових і пластмасових виробів | C62: 116 | D62: 3.2.2.13. | E62: Manufacture of rubber and plastic products
A63: 3.2.2.14. | B63: Виробництво іншої неметалевої мінеральної продукції | C63: 119 | D63: 3.2.2.14. | E63: Manufacture of other non-metallic mineral products
A64: 3.2.2.15. | B64: Металургійне виробництво | C64: 122 | D64: 3.2.2.15. | E64: Metallurgical industry
A65: 3.2.2.16. | B65: Виробництво готових металевих виробів, крім машин і устатковання | C65: 125 | D65: 3.2.2.16. | E65: Manufacture of fabricated metal products, except machinery and equipment
A66: 3.2.2.17. | B66: Виробництво комп’ютерів, електронної та оптичної продукції | C66: 128 | D66: 3.2.2.17. | E66: Manufacture of computer, electronic and optical products
A67: 3.2.2.18. | B67: Виробництво електричного устатковання | C67: 131 | D67: 3.2.2.18. | E67: Manufacture of electrical equipment
A68: 3.2.2.19. | B68: Виробництво машин та устатковання н.в.і.у. | C68: 134 | D68: 3.2.2.19. | E68: Manufacture of machinery and equipment n.e.c
A69: 3.2.2.20. | B69: Виробництво автотранспортних засобів, причепів і напівпричепів | C69: 137 | D69: 3.2.2.20. | E69: Manufacture of motor vehicles, trailers and semi-trailers
A70: 3.2.2.21. | B70: Виробництво інших транспортних засобів | C70: 140 | D70: 3.2.2.21. | E70: Manufacture of other transport equipment
A71: 3.2.2.22. | B71: Виробництво меблів | C71: 143 | D71: 3.2.2.22. | E71: Manufacture of furniture
A72: 3.2.2.23. | B72: Виробництво іншої продукції | C72: 146 | D72: 3.2.2.23. | E72: Other manufacturing
A73: 3.2.2.24. | B73: Ремонт і монтаж машин і устатковання | C73: 149 | D73: 3.2.2.24. | E73: Repair and installation of machinery and equipment
A74: 3.2.3. | B74: Постачання електроенергії, газу тпари та кондиційованого повітря | C74: 152 | D74: 3.2.3. | E74: Electricity, gas, steam and air conditioning supply
A75: 3.2.4. | B75: Водопостачання; каналізація, поводження з відходами | C75: 155 | D75: 3.2.4. | E75: Water supply; sewerage, waste management and remediation activities
A76: 3.3. | B76: Будівництво | C76: 158 | D76: 3.3. | E76: Building
A77: 3.4. | B77: Оптова та роздрібна торгівля; ремонт автотранспортних засобів і мотоциклів | C77: 161 | D77: 3.4. | E77: Wholesale and retail trade and repair of motor vehicles and motorcycles
A78: 3.5. | B78: Тимчасове розміщування й організація харчування | C78: 164 | D78: 3.5. | E78: Food and beverage service activities
A79: 3.6. | B79: Транспорт, складське господарство, поштова та кур’єрська діяльність | C79: 167 | D79: 3.6. | E79: Transportation and storage
A80: 3.7. | B80: Інші види економічної діяльності | C80: 170 | D80: 3.7. | E80: Other types of economic activity
B81: Методологічні пояснення | C81: 173 | E81: Methodological explanations

Sheet 8
A22: 1. Енергетичний баланс України
C24: Energy balance of Ukraine

Sheet 9-10
A1: 1.1. Енергетичний баланс України за 2019 рік (уточнені дані)
A2: Energy balance of Ukraine 2019 (updated data)
A4: Тис.тне / Thsd. toe
A5: Постачання та споживання | B5: Вугілля й торф | C5: Сира нафта | D5: Нафто-продукти | E5: Природ-ний газ | F5: Атомна енергія | G5: Гідро-електро-енергія | H5: Вітрова, сонячна енергія | I5: Біопаливо та відходи | J5: Електро-енергія | K5: Тепло-енергія | L5: Усього | M5: Supply and consumption
B6: Coal & peat | C6: Grude oil | D6: Oil products | E6: Natural Gas | F6: Nuclear | G6: Hydro | H6: Wind, solar energy | I6: Biofuels & waste | J6: Electricity | K6: Heat | L6: Total
A7: Виробництво | B7: 14446 | C7: 2478.102355 | D7: − | E7: 16317.531 | F7: 21771.40059 | G7: 559.6130696 | H7: 425.8813414 | I7: 3786.42197 | J7: − | K7: 666.7765358 | L7: 60452 | M7: Production
A8: Імпорт | B8: 13238.64077 | C8: 1340.647511 | D8: 10383 | E8: 9506.122528 | F8: − | G8: − | H8: − | I8: 48 | J8: 192.433362 | K8: − | L8: 34708 | M8: Imports
A9: Експорт | B9: -48.70162415 | C9: -53.50028662 | D9: -756 | E9: − | F9: − | G9: − | H9: − | I9: -442 | J9: -540.2321582 | K9: − | L9: -1841 | M9: Exports
A10: Міжнародне бункерування | B10: − | C10: − | D10: -121.3337155 | E10: − | F10: − | G10: − | H10: − | I10: − | J10: − | K10: − | L10: -121.3337155 | M10: Intl. Bunkers
A11: Зміна запасів | B11: -1560.758336 | C11: 20.48388268 | D11: 184 | E11: -2440.928633 | F11: − | G11: − | H11: − | I11: -43.05116079 | J11: − | K11: − | L11: -3839.583376 | M11: Stock changes
A12: Загальне постачання первинної енергії | B12: 26076 | C12: 3785.733463 | D12: 9690 | E12: 23382.72489 | F12: 21771.40059 | G12: 559.6130696 | H12: 425.8813414 | I12: 3349 | J12: -347.7987962 | K12: 666.7765358 | L12: 89359 | M12: TPES
A13: Міжпродуктові передачі | B13: − | C13: -135.2345467 | D13: 142.3521544 | E13: − | F13: − | G13: − | H13: − | I13: − | J13: − | K13: − | L13: 7.117607719 | M13: Transfers
A14: Статистичні розбіжності | B14: 192.7215343 | C14: − | D14: -266 | E14: -284.4015907 | F14: − | G14: − | H14: − | I14: − | J14: − | K14: − | L14: -357 | M14: Statistical differences
A15: Електростанції | B15: -11619.99045 | C15: − | D15: -118.739849 | E15: -308.5769561 | F15: -21627.11379 | G15: -559.6130696 | H15: -425.8813414 | I15: -23.75322442 | J15: 11906.81857 | K15: -49.36944683 | L15: -22826.21955 | M15: Electricity Plants
A16: Теплоелектро-централі (ТЕЦ) | B16: -2011.583993 | C16: − | D16: -36.87780644 | E16: -3241.659501 | F16: -144.2868062 | G16: − | H16: − | I16: -154.2896723 | J16: 1231.117799 | K16: 2758.765644 | L16: -1598.814336 | M16: CHP Plants
A17: Теплоцентралі | B17: -531.9301376 | C17: − | D17: -31.5658737 | E17: -4664.079966 | F17: − | G17: − | H17: − | I17: -789.7200726 | J17: − | K17: 5700.343938 | L17: -316.9521114 | M17: Heat Plants
A18: Коксові підприємства (доменні печі) | B18: -2661.794855 | C18: − | D18: − | E18: − | F18: − | G18: − | H18: − | I18: − | J18: − | K18: − | L18: -2661.794855 | M18: Blast furnaces
A19: Газові підприємства | B19: -36.60029139 | C19: − | D19: − | E19: − | F19: − | G19: − | H19: − | I19: − | J19: − | K19: − | L19: -36.60029139 | M19: Gas works
A20: Підприємства з виробництва брикетів | B20: -1784.310227 | C20: − | D20: − | E20: − | F20: − | G20: − | H20: − | I20: − | J20: − | K20: − | L20: -1784.310227 | M20: Coke/pat.fuel/BKB plants
A21: Нафтопереробні підприємства | B21: − | C21: -3768.156077 | D21: 1239 | E21: − | F21: − | G21: − | H21: − | I21: − | J21: − | K21: − | L21: -2529 | M21: Oil Refineries
A22: Нафтохімічні підприємства | B22: − | C22: − | D22: − | E22: − | F22: − | G22: − | H22: − | I22: − | J22: − | K22: − | L22: − | M22: Petrochemical plants
A23: Інші підприємства з перетворення | B23: -132.6932263 | C23: 135.2345467 | D23: − | E23: − | F23: − | G23: − | H23: − | I23: -291 | J23: − | K23: − | L23: -288 | M23: Other Transformation
A24: Власне споживання енергетичним сектором | B24: -637.3262396 | C24: -3.014975638 | D24: -60 | E24: -709.3293207 | F24: − | G24: − | H24: − | I24: − | J24: -1343.619776 | K24: -896.6274959 | L24: -3650 | M24: Energy industry own use
A25: Втрати при транспортуванні та розподіленні | B25: -535.9648897 | C25: -6.029951275 | D25: − | E25: -695.8512468 | F25: − | G25: − | H25: − | I25: − | J25: -1413.078246 | K25: -1000.597115 | L25: -3651.521448 | M25: Losses
A26: Кінцеве споживання | B26: 6316 | C26: 8.532459157 | D26: 10558 | E26: 13478.82631 | F26: − | G26: − | H26: − | I26: 2091 | J26: 10033.43955 | K26: 7179.292061 | L26: 49665 | M26: TFC
A27: Промисловість | B27: 5126.552634 | C27: 0.5005015764 | D27: 516 | E27: 2716.83147 | F27: − | G27: − | H27: − | I27: 73.92280501 | J27: 4178.116939 | K27: 3509.31499 | L27: 16122 | M27: Industry
A28: Чорна металургія | B28: 4290.340303 | C28: − | D28: 84 | E28: 1410.16767 | F28: − | G28: − | H28: − | I28: 7.404222795 | J28: 1468.781341 | K28: 1193.53683 | L28: 8454 | M28: Iron and steel
A29: Хімічна і нафтохімічна | B29: 1.862890513 | C29: − | D29: 13.97726187 | E29: 177.2570937 | F29: − | G29: − | H29: − | I29: 0.7404222795 | J29: 322.2199484 | K29: 673.6170823 | L29: 1189.674699 | M29: Chemical and petrochemical
A30: Кольорова металургія | B30: 99.34510366 | C30: − | D30: 5.10652527 | E30: 148.7747206 | F30: − | G30: − | H30: − | I30: − | J30: 133.2559759 | K30: 290.4127257 | L30: 677.0861278 | M30: Non-ferrous metals
A31: Неметалічні мінеральні продукти | B31: 651.5264116 | C31: − | D31: 56.01413968 | E31: 397.5709372 | F31: − | G31: − | H31: − | I31: 15.28613738 | J31: 215.2950989 | K31: 70.07738607 | L31: 1405 | M31: Non-metallic minerals
J34: Продовження табл.1.1 / Continuation table 1.1
A35: Постачання та споживання | B35: Вугілля й торф | C35: Сира нафта | D35: Нафто-продукти | E35: Природ-ний газ | F35: Атомна енергія | G35: Гідро-електро-енергія | H35: Вітрова, сонячна енергія | I35: Біопаливо та відходи | J35: Електро-енергія | K35: Тепло-енергія | L35: Усього | M35: Supply and consumption
B36: Coal & peat | C36: Grude oil | D36: Oil products | E36: Natural Gas | F36: Nuclear | G36: Hydro | H36: Wind, solar energy | I36: Biofuels & waste | J36: Electricity | K36: Heat | L36: Total
A37: Транспортне устаткoвання | B37: 0.6000047769 | C37: − | D37: 6.811884972 | E37: 17.02493551 | F37: − | G37: − | H37: − | I37: 0.5015763829 | J37: 68.25322442 | K37: 38.86022738 | L37: 132.0518534 | M37: Transport equipment
A38: Машинобудування | B38: 4.320454763 | C38: − | D38: 7.203592242 | E38: 106.4058469 | F38: − | G38: − | H38: − | I38: 2.961689118 | J38: 230.7 | K38: 73.39734403 | L38: 424.9889271 | M38: Machinery
A39: Гірничодобувна (за виключенням палива) | B39: 48.27715678 | C39: − | D39: 207 | E39: 266.2940671 | F39: − | G39: − | H39: − | I39: 1.695805866 | J39: 803.0901978 | K39: 78.00706984 | L39: 1404 | M39: Mining and quarrying
A40: Харчова та тютюнова | B40: 28.35511608 | C40: − | D40: 19.49460208 | E40: 155.8469475 | F40: − | G40: − | H40: − | I40: 9.434412917 | J40: 391.1401548 | K40: 801.8295596 | L40: 1406.100793 | M40: Food and tobacco
A41: Целюлозно-паперова і поліграфічна | B41: − | C41: − | D41: 1.01748352 | E41: 18.27171109 | F41: − | G41: − | H41: − | I41: − | J41: 79.24342218 | K41: 136.5243145 | L41: 235.2718926 | M41: Paper Pulp and Printing
A42: Деревообробна та вироби з деревини | B42: − | C42: − | D42: 8.971051877 | E42: 0.9243336199 | F42: − | G42: − | H42: − | I42: 31.47988918 | J42: 67.86715391 | K42: 82.2585268 | L42: 191 | M42: Wood and wood products
A43: Будівництво | B43: 1.925193465 | C43: − | D43: 103 | E43: 8.469475494 | F43: − | G43: − | H43: − | I43: 2.292920608 | J43: 83.18142734 | K43: 14.25910003 | L43: 213 | M43: Construction
A44: Текстильна і шкіряна | B44: − | C44: − | D44: 1.01748352 | E44: 5.460017197 | F44: − | G44: − | H44: − | I44: 1.313652431 | J44: 32.18572657 | K44: 20.39743957 | L44: 60.37431929 | M44: Textile and leather
A45: Інші види промисловості | B45: − | C45: 0.5005015764 | D45: 4.007834145 | E45: 4.363714531 | F45: − | G45: − | H45: − | I45: − | J45: 282.9032674 | K45: 36.13738416 | L45: 328.3187398 | M45: Non-specified
A46: Транспорт | B46: 4.725494411 | C46: − | D46: 7830 | E46: 1536.049011 | F46: − | G46: − | H46: − | I46: 88.10971625 | J46: 567.7815993 | K46: − | L46: 10026 | M46: Transport
A47: Внутрішні авіаперевезення | B47: − | C47: − | D47: 182.478265 | E47: − | F47: − | G47: − | H47: − | I47: − | J47: − | K47: − | L47: 182.478265 | M47: Domestic aviation
A48: Автомобільний | B48: − | C48: − | D48: 7486 | E48: 20.12037833 | F48: − | G48: − | H48: − | I48: 88.10971625 | J48: − | K48: − | L48: 7594 | M48: Road
A49: Залізничний | B49: 4.725494411 | C49: − | D49: 27.47205503 | E49: − | F49: − | G49: − | H49: − | I49: − | J49: 460.1976784 | K49: − | L49: 492.3952279 | M49: Rail
A50: Трубопровідний | B50: − | C50: − | D50: − | E50: 1515.068788 | F50: − | G50: − | H50: − | I50: − | J50: 21.52295787 | K50: − | L50: 1536.591745 | M50: Pipeline transport
A51: Внутрішнє судноплавство | B51: − | C51: − | D51: 134 | E51: − | F51: − | G51: − | H51: − | I51: − | J51: − | K51: − | L51: 134 | M51: Domestic Navigation
A52: Інші види транспорту | B52: − | C52: − | D52: − | E52: 0.8598452279 | F52: − | G52: − | H52: − | I52: − | J52: 86.06096303 | K52: − | L52: 86.92080825 | M52: Non-specified
A53: Інші | B53: 676 | C53: − | D53: 1415 | E53: 7743.72313 | F53: − | G53: − | H53: − | I53: 1929 | J53: 5287.541015 | K53: 3669.977071 | L53: 20720 | M53: Other
A54: Побутовий сектор | B54: 280.3253201 | C54: − | D54: 27.46727811 | E54: 6831.147893 | F54: − | G54: − | H54: − | I54: 1858 | J54: 3029.750645 | K54: 1979.831852 | L54: 14007 | M54: Residential
A55: Торгівля та послуги | B55: 389 | C55: − | D55: 142 | E55: 817.0249355 | F55: − | G55: − | H55: − | I55: 42.53845419 | J55: 1938.787618 | K55: 1502.460113 | L55: 4831 | M55: Comm. and Publ. Services
A56: Сільське господарство | B56: 6.878833477 | C56: − | D56: 1244 | E56: 95.50730868 | F56: − | G56: − | H56: − | I56: 27.61058565 | J56: 316.0254514 | K56: 187.5895672 | L56: 1878 | M56: Agriculture
A57: Рибальство | B57: − | C57: − | D57: 1.01748352 | E57: − | F57: − | G57: − | H57: − | I57: − | J57: 2.977300086 | K57: − | L57: 4.133314226 | M57: Fishing
A58: Інші споживачі | B58: − | C58: − | D58: − | E58: − | F58: − | G58: − | H58: − | I58: − | J58: − | K58: − | L58: − | M58: Non-specified
A59: Неенергетичне використання | B59: 509.0067116 | C59: 8.031957581 | D59: 797.0263686 | E59: 1482.2227 | F59: − | G59: − | H59: − | I59: − | J59: − | K59: − | L59: 2796.287738 | M59: Non-energy use
A60: Промисловий та енергетичний сектор, сектор перетворення | B60: 509.0067116 | C60: 7.026965702 | D60: 389.7965033 | E60: 1482.2227 | F60: − | G60: − | H60: − | I60: − | J60: − | K60: − | L60: 2388.05288 | M60: Industrial and energy sector, transformation sector
A61: з яких | M61: of which
A62: сировина для промисловості | B62: − | C62: − | D62: 111.2066495 | E62: 1384.479794 | F62: − | G62: − | H62: − | I62: − | J62: − | K62: − | L62: 1495.686443 | M62: Feedstocks
A63: На транспорті | B63: − | C63: − | D63: 11.03468042 | E63: − | F63: − | G63: − | H63: − | I63: − | J63: − | K63: − | L63: 11.03468042 | M63: in Transport
A64: В інших секторах | B64: − | C64: 1.004991879 | D64: 396.1951849 | E64: − | F64: − | G64: − | H64: − | I64: − | J64: − | K64: − | L64: 397.2001767 | M64: in other

Sheet 11-12
A1: 1.1.1. Енергетичний баланс України за 2020 рік (оперативні дані)
A2: Energy balance of Ukraine 2020 (operative data)
A4: Тис.тне / Thsd. toe
A5: Постачання та споживання | B5: Вугілля й торф | C5: Сира нафта | D5: Нафто-продукти | E5: Природ-ний газ | F5: Атомна енергія | G5: Гідро-електро-енергія | H5: Вітрова, сонячна енергія | I5: Біопаливо та відходи | J5: Електро-енергія | K5: Тепло-енергія | L5: Усього | M5: Supply and consumption
B6: Coal & peat | C6: Grude oil | D6: Oil products | E6: Natural Gas | F6: Nuclear | G6: Hydro | H6: Wind, solar energy | I6: Biofuels & waste | J6: Electricity | K6: Heat | L6: Total
A7: Виробництво | B7: 12752.7 | C7: 2475.78 | D7: − | E7: 15855.786 | F7: 19994.057 | G7: 650.37 | H7: 794.497 | I7: 4437.816 | J7: − | K7: 56.009 | L7: 57017.039 | M7: Production
A8: Імпорт | B8: 11036.079 | C8: 1814.866 | D8: 10204.448 | E8: 7385.92 | F8: − | G8: − | H8: − | I8: 50.971 | J8: 233.861 | K8: − | L8: 30726.145 | M8: Imports
A9: Експорт | B9: -38.754 | C9: -115.817 | D9: -225.533 | E9: − | F9: − | G9: − | H9: − | I9: -423.933 | J9: -441.943 | K9: − | L9: -1245.98 | M9: Exports
A10: Міжнародне бункерування | B10: − | C10: − | D10: -31.623 | E10: − | F10: − | G10: − | H10: − | I10: − | J10: − | K10: − | L10: -31.623 | M10: Intl. Bunkers
A11: Зміна запасів | B11: -934.523 | C11: 20.916 | D11: 72.163 | E11: 602.193 | F11: − | G11: − | H11: − | I11: 175.856 | J11: − | K11: − | L11: -63.396 | M11: Stock changes
A12: Загальне постачання первинної енергії | B12: 22815.525 | C12: 4195.745 | D12: 10019.455 | E12: 23843.899 | F12: 19994.057 | G12: 650.37 | H12: 794.497 | I12: 4240.71 | J12: -208.083 | K12: 56.009 | L12: 86402.185 | M12: TPES
A13: Міжпродуктові передачі | B13: − | C13: 7.044 | D13: -8.79 | E13: − | F13: − | G13: − | H13: − | I13: − | J13: − | K13: − | L13: -1.745 | M13: Transfers
A14: Статистичні розбіжності | B14: 353.703 | C14: -33.165 | D14: -1202.903 | E14: -138.095 | F14: − | G14: − | H14: − | I14: − | J14: -207.012 | K14: − | L14: -1227.472 | M14: Statistical differences
A15: Електростанції | B15: -9942.74 | C15: − | D15: -27.347 | E15: -403.633 | F15: -19855.311 | G15: -650.37 | H15: -794.497 | I15: -58.828 | J15: 11343.379 | K15: -54.935 | L15: -20444.281 | M15: Electricity Plants
A16: Теплоелектро-централі (ТЕЦ) | B16: -1740.635 | C16: − | D16: -56.559 | E16: -3848.925 | F16: -138.746 | G16: − | H16: − | I16: -185.975 | J16: 1417.403 | K16: 2901.906 | L16: -1651.531 | M16: CHP Plants
A17: Теплоцентралі | B17: -419.276 | C17: − | D17: -33.6 | E17: -4870.593 | F17: − | G17: − | H17: − | I17: -1507.001 | J17: - | K17: 6309.377 | L17: -521.193 | M17: Heat Plants
A18: Коксові підприємства (доменні печі) | B18: -2415.414 | C18: − | D18: − | E18: − | F18: − | G18: − | H18: − | I18: − | J18: − | K18: − | L18: -2415.414 | M18: Blast furnaces
A19: Газові підприємства | B19: -33.12 | C19: − | D19: − | E19: − | F19: − | G19: − | H19: − | I19: − | J19: − | K19: − | L19: -33.12 | M19: Gas works
A20: Підприємства з виробництва брикетів | B20: -1459.894 | C20: − | D20: − | E20: − | F20: − | G20: − | H20: − | I20: − | J20: − | K20: − | L20: -1459.894 | M20: Coke/pat.fuel/BKB plants
A21: Нафтопереробні підприємства | B21: − | C21: -4150.049 | D21: 1051.514 | E21: − | F21: − | G21: − | H21: − | I21: − | J21: − | K21: − | L21: -3098.535 | M21: Oil Refineries
A22: Нафтохімічні підприємства | B22: − | C22: − | D22: − | E22: − | F22: − | G22: − | H22: − | I22: − | J22: − | K22: − | L22: − | M22: Petrochemical plants
A23: Інші підприємства з перетворення | B23: -109.004 | C23: − | D23: -9.554 | E23: − | F23: − | G23: − | H23: − | I23: -308.199 | J23: − | K23: − | L23: -426.757 | M23: Other Transformation
A24: Власне споживання енергетичним сектором | B24: -654.54 | C24: -4.916 | D24: -36.267 | E24: -703.052 | F24: − | G24: − | H24: − | I24: -1.433 | J24: -1257.489 | K24: -1007.356 | L24: -3665.054 | M24: Energy industry own use
A25: Втрати при транспортуванні та розподіленні | B25: -572.336 | C25: -6.532 | D25: -0.878 | E25: -700.365 | F25: − | G25: − | H25: − | I25: − | J25: -1328.061 | K25: -1028.399 | L25: -3636.572 | M25: Losses
A26: Кінцеве споживання | B26: 5822.269 | C26: 8.027 | D26: 9695.071 | E26: 13179.235 | F26: − | G26: − | H26: − | I26: 2179.275 | J26: 9760.138 | K26: 7176.603 | L26: 47820.617 | M26: TFC
A27: Промисловість | B27: 4884.768 | C27: 0.3 | D27: 643.78 | E27: 2806.384 | F27: − | G27: − | H27: − | I27: 88.851 | J27: 3945.641 | K27: 3591.191 | L27: 15960.915 | M27: Industry
A28: Чорна металургія | B28: 4143.974 | C28: − | D28: 74.166 | E28: 1438.306 | F28: − | G28: − | H28: − | I28: 17.436 | J28: 1308.34 | K28: 1163.872 | L28: 8146.095 | M28: Iron and steel
A29: Хімічна і нафтохімічна | B29: 1.323 | C29: − | D29: 4.344 | E29: 138.972 | F29: − | G29: − | H29: − | I29: 1.815 | J29: 340.843 | K29: 759.482 | L29: 1246.779 | M29: Chemical and petrochemical
A30: Кольорова металургія | B30: 94.017 | C30: − | D30: 9.062 | E30: 158.405 | F30: − | G30: − | H30: − | I30: 0.048 | J30: 128.031 | K30: 295.19 | L30: 684.753 | M30: Non-ferrous metals
A31: Неметалічні мінеральні продукти | B31: 609.092 | C31: − | D31: 221.442 | E31: 463.306 | F31: − | G31: − | H31: − | I31: 13.925 | J31: 209.372 | K31: 65.826 | L31: 1582.963 | M31: Non-metallic minerals
J34: Продовження табл.1.1 / Continuation table 1.1
A35: Постачання та споживання | B35: Вугілля й торф | C35: Сира нафта | D35: Нафто-продукти | E35: Природ-ний газ | F35: Атомна енергія | G35: Гідро-електро-енергія | H35: Вітрова, сонячна енергія | I35: Біопаливо та відходи | J35: Електро-енергія | K35: Тепло-енергія | L35: Усього | M35: Supply and consumption
B36: Coal & peat | C36: Grude oil | D36: Oil products | E36: Natural Gas | F36: Nuclear | G36: Hydro | H36: Wind, solar energy | I36: Biofuels & waste | J36: Electricity | K36: Heat | L36: Total
A37: Транспортне устаткoвання | B37: 0.36 | C37: − | D37: 5.518 | E37: 80.482 | F37: − | G37: − | H37: − | I37: 0.287 | J37: 67.412 | K37: 33.797 | L37: 187.855 | M37: Transport equipment
A38: Машинобудування | B38: 3.988 | C38: − | D38: 8.725 | E38: 110.662 | F38: − | G38: − | H38: − | I38: 2.173 | J38: 211.006 | K38: 64.465 | L38: 401.019 | M38: Machinery
A39: Гірничодобувна (за виключенням палива) | B39: 8.403 | C39: − | D39: 126.852 | E39: 218.444 | F39: − | G39: − | H39: − | I39: 0.597 | J39: 824.42 | K39: 70.77 | L39: 1249.485 | M39: Mining and quarrying
A40: Харчова та тютюнова | B40: 22.975 | C40: − | D40: 20.994 | E40: 160.92 | F40: − | G40: − | H40: − | I40: 23.335 | J40: 394.497 | K40: 840.332 | L40: 1463.053 | M40: Food and tobacco
A41: Целюлозно-паперова і поліграфічна | B41: − | C41: − | D41: 1.819 | E41: 20.529 | F41: − | G41: − | H41: − | I41: 0.024 | J41: 79.106 | K41: 143.737 | L41: 245.215 | M41: Paper Pulp and Printing
A42: Деревообробна та вироби з деревини | B42: − | C42: − | D42: 5.926 | E42: 1.483 | F42: − | G42: − | H42: − | I42: 24.315 | J42: 68.616 | K42: 96.733 | L42: 197.072 | M42: Wood and wood products
A43: Будівництво | B43: 0.473 | C43: − | D43: 151.036 | E43: 7.825 | F43: − | G43: − | H43: − | I43: 1.72 | J43: 82.27 | K43: 12.181 | L43: 255.504 | M43: Construction
A44: Текстильна і шкіряна | B44: − | C44: − | D44: 0.203 | E44: 4.6 | F44: − | G44: − | H44: − | I44: 1.075 | J44: 28.203 | K44: 17.484 | L44: 51.565 | M44: Textile and leather
A45: Інші види промисловості | B45: 0.163 | C45: 0.3 | D45: 13.694 | E45: 2.451 | F45: − | G45: − | H45: − | I45: 2.102 | J45: 203.525 | K45: 27.324 | L45: 249.559 | M45: Non-specified
A46: Транспорт | B46: 2.625 | C46: − | D46: 6842.343 | E46: 659.007 | F46: − | G46: − | H46: − | I46: 49.416 | J46: 491.187 | K46: − | L46: 8044.578 | M46: Transport
A47: Внутрішні авіаперевезення | B47: − | C47: − | D47: 88.851 | E47: − | F47: − | G47: − | H47: − | I47: − | J47: − | K47: − | L47: 88.851 | M47: Domestic aviation
A48: Автомобільний | B48: − | C48: − | D48: 6730.396 | E48: 18.078 | F48: − | G48: − | H48: − | I48: 49.416 | J48: − | K48: − | L48: 6797.89 | M48: Road
A49: Залізничний | B49: 2.625 | C49: − | D49: 21.469 | E49: − | F49: − | G49: − | H49: − | I49: − | J49: 396.088 | K49: − | L49: 420.182 | M49: Rail
A50: Трубопровідний | B50: − | C50: − | D50: − | E50: 639.316 | F50: − | G50: − | H50: − | I50: − | J50: 23.99 | K50: − | L50: 663.306 | M50: Pipeline transport
A51: Внутрішнє судноплавство | B51: − | C51: − | D51: 1.628 | E51: − | F51: − | G51: − | H51: − | I51: − | J51: − | K51: − | L51: 1.628 | M51: Domestic Navigation
A52: Інші види транспорту | B52: − | C52: − | D52: − | E52: 1.612 | F52: − | G52: − | H52: − | I52: − | J52: 71.109 | K52: − | L52: 72.721 | M52: Non-specified
A53: Інші | B53: 560.279 | C53: − | D53: 1175.097 | E53: 7451.204 | F53: − | G53: − | H53: − | I53: 2041.008 | J53: 5323.31 | K53: 3585.411 | L53: 20136.31 | M53: Other
A54: Побутовий сектор | B54: 133.462 | C54: − | D54: 33.29 | E54: 6502.429 | F54: − | G54: − | H54: − | I54: 1892.852 | J54: 3143.087 | K54: 1896.102 | L54: 13601.222 | M54: Residential
A55: Торгівля та послуги | B55: 421.515 | C55: − | D55: 125.948 | E55: 826.612 | F55: − | G55: − | H55: − | I55: 120.498 | J55: 1853.749 | K55: 1515.644 | L55: 4863.966 | M55: Comm. and Publ. Services
A56: Сільське господарство | B56: 5.303 | C56: − | D56: 1015.757 | E56: 122.141 | F56: − | G56: − | H56: − | I56: 27.658 | J56: 324.755 | K56: 173.641 | L56: 1669.255 | M56: Agriculture
A57: Рибальство | B57: − | C57: − | D57: 0.102 | E57: 0.021 | F57: − | G57: − | H57: − | I57: − | J57: 1.72 | K57: 0.024 | L57: 1.867 | M57: Fishing
A58: Інші споживачі | B58: − | C58: − | D58: − | E58: − | F58: − | G58: − | H58: − | I58: − | J58: − | K58: − | L58: − | M58: Non-specified
A59: Неенергетичне використання | B59: 374.596 | C59: 7.727 | D59: 1033.851 | E59: 2262.64 | F59: − | G59: − | H59: − | I59: − | J59: − | K59: − | L59: 3678.814 | M59: Non-energy use
A60: Промисловий та енергетичний сектор, сектор перетворення | B60: 374.596 | C60: 6.426 | D60: 511.552 | E60: 2262.64 | F60: − | G60: − | H60: − | I60: − | J60: − | K60: − | L60: 3155.214 | M60: Industrial and energy sector, transformation sector
A61: з яких | M61: of which
A62: сировина для промисловості | B62: − | C62: − | D62: 8.011 | E62: 2165.886 | F62: − | G62: − | H62: − | I62: − | J62: − | K62: − | L62: 2173.897 | M62: Feedstocks
A63: На транспорті | B63: − | C63: − | D63: 7.524 | E63: − | F63: − | G63: − | H63: − | I63: − | J63: − | K63: − | L63: 7.524 | M63: in Transport
A64: В інших секторах | B64: − | C64: 1.301 | D64: 514.775 | E64: − | F64: − | G64: − | H64: − | I64: − | J64: − | K64: − | L64: 516.076 | M64: in other

Sheet 13-16
A1: 1.2. Енергетичний баланс України (продуктовий) за 2019 рік (уточнені дані)
A2: Energy balance of Ukraine (by products) for 2019 (updated data)
A4: Постачання та споживання | B4: Вугілля, тис.т | F4: Вугільні гази, TДж1 | I4: Supply and consumption
B5: Coal, thsd. t | F5: Coal gases, TJ1
B6: Коксівне вугілля | C6: Вугілля ін., антрацит | D6: Кокс/ дьоготь | E6: Брикети вугільні, торф | F6: Заводський газ | G6: Коксівний газ | H6: Доменний газ та ін. (вкл. заводський газ)
B7: Coking coal | C7: Other bit. coal/anth./ sub-bit. coal | D7: Coke/ tar | E7: Pat. fuel/BKB | F7: Gas works gas | G7: Coke oven gas | H7: Recovered gases (inc.gas work gas)
A8: Виробництво | B8: 5783 | C8: 19747 | D8: 10651 | E8: 574 | F8: − | G8: 72116 | H8: 96734 | I8: Production
A9: з інших джерел | B9: − | C9: 258 | D9: − | E9: − | F9: − | G9: − | H9: − | I9: from other sources
A10: Імпорт | B10: 9082.7 | C10: 12000 | D10: 877 | E10: − | F10: − | G10: − | H10: − | I10: Imports
A11: Експорт | B11: -28.7 | C11: -32 | D11: -14 | E11: − | F11: − | G11: − | H11: − | I11: Exports
A12: Міжнародне бункерування | B12: − | C12: − | D12: − | E12: − | F12: − | G12: − | H12: − | I12: Intl. bunkers
A13: Зміна запасів | B13: -835 | C13: -1736 | D13: -37 | E13: -110 | F13: − | G13: − | H13: − | I13: Stock changes
A14: Внутрішнє постачання | B14: 14002 | C14: 30237 | D14: 11476 | E14: 464 | F14: − | G14: 72116 | H14: 96734 | I14: Domestic supply
A15: Міжпродуктові передачі | B15: − | C15: − | D15: − | E15: − | F15: − | G15: − | H15: − | I15: Transfers
A16: Статистичні розбіжності | B16: − | C16: − | D16: 321 | E16: − | F16: − | G16: − | H16: − | I16: Statistical differences
A17: Перетворення | B17: 14002 | C17: 24988 | D17: 8828 | E17: 79 | F17: − | G17: 17402 | H17: 27725 | I17: Transformation
A18: Електростанції | B18: − | C18: 21990 | D18: − | E18: − | F18: − | G18: − | H18: − | I18: Electricity plants
A19: ТЕЦ | B19: 7 | C19: 2048 | D19: − | E19: 9 | F19: − | G19: 14515 | H19: 24685 | I19: CHP plants
A20: Теплоцентралі | B20: − | C20: 692 | D20: − | E20: 70 | F20: − | G20: 2887 | H20: 3040 | I20: Heat plants
A21: Доменні печі | B21: − | C21: − | D21: 8287 | E21: − | F21: − | G21: − | H21: − | I21: Blast furnaces
A22: Газові заводи | B22: − | C22: − | D22: 61 | E22: − | F22: − | G22: − | H22: − | I22: Gas works
A23: Виробництво коксу та брикетів | B23: 13995 | C23: 258 | D23: 334 | E23: − | F23: − | G23: − | H23: − | I23: Coke/pat.fuel/BKB/PB plants
A24: Інше перетворення | B24: − | C24: − | D24: 146 | E24: − | F24: − | G24: − | H24: − | I24: Other transformation
A25: Власне споживання енергосектором | B25: − | C25: 237 | D25: − | E25: − | F25: − | G25: 23666 | H25: − | I25: Energy ind. оwn use
A26: Підприємства з видобування вугілля | B26: − | C26: 3 | D26: − | E26: − | F26: − | G26: − | H26: − | I26: Fuel mining and extraction
A27: Видобування нафти й газу | B27: − | C27: − | D27: − | E27: − | F27: − | G27: − | H27: − | I27: Oil refineries
A28: Електростанції, ТЕЦ, теплоцентралі | B28: − | C28: 234 | D28: − | E28: − | F28: − | G28: − | H28: − | I28: Elec., CHP and heat plants
A29: Акумулюючі установки | B29: − | C29: − | D29: − | E29: − | F29: − | G29: − | H29: − | I29: Pumped storage plants
A30: Інші енергетичні підприємства | B30: − | C30: − | D30: − | E30: − | F30: − | G30: 23666 | H30: − | I30: Other energy ind. own use
A31: Втрати | B31: − | C31: 4 | D31: − | E31: 1 | F31: − | G31: − | H31: 22298 | I31: Losses
A32: Кінцеве споживання | B32: − | C32: 5008 | D32: 2969 | E32: 384 | F32: − | G32: 31048 | H32: 46710 | I32: Final consumption
A33: Промисловість | B33: − | C33: 3485 | D33: 2403 | E33: 10 | F33: − | G33: 31048 | H33: 46587 | I33: Industry
A34: Чорна металургія | B34: − | C34: 2023 | D34: 2303 | E34: − | F34: − | G34: 31048 | H34: 46587 | I34: Iron and steel
A35: Хімічна і нафтохімічна | B35: − | C35: 4 | D35: − | E35: − | F35: − | G35: − | H35: − | I35: Chemical and petrochemical
A36: Кольорова металургія | B36: − | C36: 186 | D36: − | E36: − | F36: − | G36: − | H36: − | I36: Non-ferrous metals
A37: Неметалеві мінеральні продукти | B37: − | C37: 1208 | D37: 22 | E37: 5 | F37: − | G37: − | H37: − | I37: Non-metallic minerals
A38: Транспортне устатковання | B38: − | C38: − | D38: 1 | E38: − | F38: − | G38: − | H38: − | I38: Transport equipment
A39: Машинобудування | B39: − | C39: 4 | D39: 4 | E39: − | F39: − | G39: − | H39: − | I39: Machinery
A40: Гірничодобувна (за викл. палива) | B40: − | C40: 11 | D40: 70 | E40: 1 | F40: − | G40: − | H40: − | I40: Mining and quarrying
A41: Харчова та тютюнова | B41: − | C41: 48 | D41: 3 | E41: 3 | F41: − | G41: − | H41: − | I41: Food and tobacco
A42: Целюлозно-паперова і поліграфічна | B42: − | C42: − | D42: − | E42: − | F42: − | G42: − | H42: − | I42: Paper, pulp and print
A43: Деревообробна та вироби з деревини | B43: − | C43: − | D43: − | E43: − | F43: − | G43: − | H43: − | I43: Wood and wood products
A44: Будівництво | B44: − | C44: 3 | D44: − | E44: 1 | F44: − | G44: − | H44: − | I44: Construction
A45: Текстильна і шкіряна | B45: − | C45: − | D45: − | E45: − | F45: − | G45: − | H45: − | I45: Textile and leather
A46: Інші види промисловості | B46: − | C46: − | D46: − | E46: − | F46: − | G46: − | H46: − | I46: Non-specified
A47: Транспорт | B47: − | C47: 9 | D47: − | E47: − | F47: − | G47: − | H47: − | I47: Transport
A48: Автомобільний | B48: − | C48: − | D48: − | E48: − | F48: − | G48: − | H48: − | I48: Road
A49: Залізничний | B49: − | C49: 9 | D49: − | E49: − | F49: − | G49: − | H49: − | I49: Railway
A50: Трубопровідний | B50: − | C50: − | D50: − | E50: − | F50: − | G50: − | H50: − | I50: Pipeline transport
A51: Інші види транспорту | B51: − | C51: − | D51: − | E51: − | F51: − | G51: − | H51: − | I51: Non-specified
A52: Інші | B52: − | C52: 1281 | D52: − | E52: 374 | F52: − | G52: − | H52: − | I52: Other
A53: Побутовой сектор | B53: − | C53: 289 | D53: − | E53: 353 | F53: − | G53: − | H53: − | I53: Residential
A54: Торгівля та послуги | B54: − | C54: 981 | D54: − | E54: 19 | F54: − | G54: − | H54: − | I54: Comm. and public services
A55: Сільське господарство | B55: − | C55: 11 | D55: − | E55: 2 | F55: − | G55: − | H55: − | I55: Agriculture
A56: Рибальство | B56: − | C56: − | D56: − | E56: − | F56: − | G56: − | H56: − | I56: Fishing
A57: Інші споживачі | B57: − | C57: − | D57: − | E57: − | F57: − | G57: − | H57: − | I57: Non-specified
A58: Неенергетичне використання | B58: − | C58: 233 | D58: 566 | E58: − | F58: − | G58: − | H58: 123 | I58: Non-energy use
A59: Промисловий та енергетичний сектори, сектор перетворення | B59: − | C59: 233 | D59: 566 | E59: − | F59: − | G59: − | H59: 123 | I59: Industrial and energy sector, transformation sector
A60: у тому числі | I60: of which
A61: сировина для промисловості | B61: − | C61: − | D61: − | E61: − | F61: − | G61: − | H61: − | I61: chem./petrochem
A62: На транспорті | B62: − | C62: − | D62: − | E62: − | F62: − | G62: − | H62: − | I62: in Transport
A64: 1 Дані розрахункові на підставі ефективності процесів перетворення / Calculated data based on transformation efficiency.
A65: Продовження табл.1.2 / Continuation table 1.2
A66: Постачання та споживання | B66: Торф (паливний), тис.т | C66: Природний газ,TДж | D66: Нафта, тис.т | I66: Supply and consumption
D67: Oil, thsd.t
D68: Сира нафта2 | E68: Газокон-денсати | F68: Нафтоси-ровина | G68: Присадки | H68: Нафтоза-водський газ
B69: Peat (Fuel), thsd. t | C69: Natural gas, TJ | D69: Crude oil2 | E69: NGL | F69: Feeds-tocks | G69: Additives | H69: Refinery gas
A70: Виробництво | B70: 540 | C70: 759092 | D70: 1719 | E70: 735 | F70: − | G70: 15 | H70: 41 | I70: Production
A71: з інших джерел | B71: − | C71: − | D71: 149 | E71: − | F71: − | G71: − | H71: − | I71: from other sources
A72: Імпорт | B72: 35 | C72: 442225 | D72: 790 | E72: 1 | F72: 510 | G72: − | H72: − | I72: Imports
A73: Експорт | B73: -9 | C73: − | D73: − | E73: − | F73: -50 | G73: − | H73: − | I73: Exports
A74: Міжнародне бункерування | B74: − | C74: − | D74: − | E74: − | F74: − | G74: − | H74: − | I74: Intl. bunkers
A75: Зміна запасів | B75: -13 | C75: -113552 | D75: 16 | E75: 4 | F75: − | G75: − | H75: − | I75: Stock changes
A76: Внутрішнє постачання | B76: 553 | C76: 1087764 | D76: 2674 | E76: 740 | F76: 460 | G76: 16 | H76: 41 | I76: Domestic supply
A77: Міжпродуктові передачі | B77: − | C77: − | D77: -149 | E77: − | F77: − | G77: − | H77: − | I77: Transfers
A78: Статистичні розбіжності | B78: − | C78: -13230 | D78: − | E78: − | F78: − | G78: − | H78: − | I78: Statistical differences
A79: Перетворення | B79: 505 | C79: 382130 | D79: 2510 | E79: 737 | F79: 460 | G79: 16 | H79: − | I79: Transformation
A80: Електростанції | B80: − | C80: 14355 | D80: − | E80: − | F80: − | G80: − | H80: − | I80: Electricity plants
A81: ТЕЦ | B81: − | C81: 150802 | D81: − | E81: − | F81: − | G81: − | H81: − | I81: CHP plants
A82: Теплоцентралі | B82: 35 | C82: 216973 | D82: − | E82: − | F82: − | G82: − | H82: − | I82: Heat plants
A83: Газові заводи | B83: − | C83: − | D83: − | E83: − | F83: − | G83: − | H83: − | I83: Gas works
A84: Виробництво брикетів | B84: 470 | C84: − | D84: − | E84: − | F84: − | G84: − | H84: − | I84: Coke/pat.fuel/BKB/PB plants
A85: Нафтопереробні заводи | B85: − | C85: − | D85: 2510 | E85: 737 | F85: 460 | G85: 16 | H85: − | I85: Oil refineries
A86: Власне споживання енергосектором | B86: 18 | C86: 32998 | D86: 3 | E86: − | F86: − | G86: − | H86: 41 | I86: Energy ind. оwn use
A87: Підприємства з видобування вугілля | B87: − | C87: 28558 | D87: − | E87: − | F87: − | G87: − | H87: − | I87: Fuel mining and extraction
A88: Видобування нафти й газу | B88: − | C88: 479 | D88: 3 | E88: − | F88: − | G88: − | H88: 41 | I88: Oil refineries
A89: Електростанції, ТЕЦ, теплоцентралі | B89: − | C89: 420 | D89: − | E89: − | F89: − | G89: − | H89: − | I89: Elec., CHP and heat plants
A90: Акумулюючі установки | B90: − | C90: − | D90: − | E90: − | F90: − | G90: − | H90: − | I90: Pumped storage plants
A91: Інші енергетичні підприємства | B91: 18 | C91: 3541 | D91: − | E91: − | F91: − | G91: − | H91: − | I91: Other energy ind. own use
A92: Втрати | B92: 4 | C92: 32371 | D92: 6 | E92: − | F92: − | G92: − | H92: − | I92: Losses
A93: Кінцеве споживання | B93: 26 | C93: 627035 | D93: 6 | E93: 3 | F93: − | G93: − | H93: − | I93: Final consumption
A94: Промисловість | B94: 4 | C94: 126387 | D94: − | E94: 1 | F94: − | G94: − | H94: − | I94: Industry
A95: Чорна металургія | B95: 4 | C95: 65601 | D95: − | E95: − | F95: − | G95: − | H95: − | I95: Iron and steel
A96: Хімічна і нафтохімічна | B96: − | C96: 8246 | D96: − | E96: − | F96: − | G96: − | H96: − | I96: Chemical and petrochemical
A97: Кольорова металургія | B97: − | C97: 6921 | D97: − | E97: − | F97: − | G97: − | H97: − | I97: Non-ferrous metals
A98: Неметалеві мінеральні продукти | B98: − | C98: 18495 | D98: − | E98: − | F98: − | G98: − | H98: − | I98: Non-metallic minerals
A99: Транспортне устатковання | B99: − | C99: 792 | D99: − | E99: − | F99: − | G99: − | H99: − | I99: Transport equipment
A100: Машинобудування | B100: − | C100: 4950 | D100: − | E100: − | F100: − | G100: − | H100: − | I100: Machinery
A101: Гірничодобувна (за викл. палива) | B101: − | C101: 12388 | D101: − | E101: − | F101: − | G101: − | H101: − | I101: Mining and quarrying
A102: Харчова та тютюнова | B102: − | C102: 7250 | D102: − | E102: − | F102: − | G102: − | H102: − | I102: Food and tobacco
A103: Целюлозно-паперова і поліграфічна | B103: − | C103: 850 | D103: − | E103: − | F103: − | G103: − | H103: − | I103: Paper, pulp and print
A104: Деревообробна та вироби з деревини | B104: − | C104: 43 | D104: − | E104: − | F104: − | G104: − | H104: − | I104: Wood and wood products
A105: Будівництво | B105: − | C105: 394 | D105: − | E105: − | F105: − | G105: − | H105: − | I105: Construction
A106: Текстильна і шкіряна | B106: − | C106: 254 | D106: − | E106: − | F106: − | G106: − | H106: − | I106: Textile and leather
A107: Інші види промисловості | B107: − | C107: 203 | D107: − | E107: 1 | F107: − | G107: − | H107: − | I107: Non-specified
A108: Транспорт | B108: − | C108: 71457 | D108: − | E108: − | F108: − | G108: − | H108: − | I108: Transport
A109: Внутрішні авіаперевезення | B109: − | C109: − | D109: − | E109: − | F109: − | G109: − | H109: − | I109: Domestic aviation
A110: Автомобільний | B110: − | C110: 936 | D110: − | E110: − | F110: − | G110: − | H110: − | I110: Road
A111: Залізничний | B111: − | C111: − | D111: − | E111: − | F111: − | G111: − | H111: − | I111: Railway
A112: Трубопровідний | B112: − | C112: 70481 | D112: − | E112: − | F112: − | G112: − | H112: − | I112: Pipeline transport
A113: Внутрішнє судноплавство | B113: − | D113: − | E113: − | F113: − | G113: − | H113: − | I113: Domestic navigation
A114: Інші види транспорту | B114: − | C114: 40 | D114: − | E114: − | F114: − | G114: − | H114: − | I114: Non-specified
A115: Інші | B115: 22 | C115: 360238 | D115: − | E115: − | F115: − | G115: − | H115: − | I115: Other
A116: Побутовой сектор | B116: 22 | C116: 317785 | D116: − | E116: − | F116: − | G116: − | H116: − | I116: Residential
A117: Торгівля та послуги | B117: − | C117: 38008 | D117: − | E117: − | F117: − | G117: − | H117: − | I117: Comm. and public services
A118: Сільське господарство | B118: − | C118: 4443 | D118: − | E118: − | F118: − | G118: − | H118: − | I118: Agriculture
A119: Рибальство | B119: − | C119: 2 | D119: − | E119: − | F119: − | G119: − | H119: − | I119: Fishing
A120: Інші споживачі | B120: − | C120: − | D120: − | E120: − | F120: − | G120: − | H120: − | I120: Non-specified
A121: Неенергетичне використання | B121: − | C121: 68953 | D121: 6 | E121: 2 | F121: − | G121: − | H121: − | I121: Non-energy use
A122: Промисловий та енергетичний сектори, сектор перетворення | B122: − | C122: 68953 | D122: 5 | E122: 2 | F122: − | G122: − | H122: − | I122: Industrial and energy sector, transformation sector
A123: у тому числі | I123: of which
A124: сировина для промисловості | B124: − | C124: 64406 | D124: − | E124: − | F124: − | G124: − | H124: − | I124: chem./petrochem.
A125: На транспорті | B125: − | C125: − | D125: − | E125: − | F125: − | G125: − | H125: − | I125: in Transport
A126: В інших секторах | B126: − | C126: − | D126: 1 | E126: − | F126: − | G126: − | H126: − | I126: Non-specified
A128: 2 Включає інші гідрокарбонати / Іncludes other hydrocarbons.
A129: Продовження табл.1.2 / Continuation table 1.2
A130: Постачання та споживання | B130: Нафта, тис.т, | I130: Supply and consumption
B131: Oil, thsd.t
B132: ЗНГ3,4 | C132: Бензин моторний | D132: Гас | E132: Газойлі/ дизель | F132: Мазути топкові | G132: Нафтовий кокс | H132: Інші нафтопродукти4
B133: LPG3,4 | C133: Motor gasoline | D133: Oth. kerosene | E133: Gas/ diesel | F133: Fuel oil | G133: Petroleum coke | H133: Other oil products4
A134: Виробництво | B134: 409 | C134: к/с | D134: − | E134: к/с | F134: 74 | G134: − | H134: 701 | I134: Production
A135: з інших джерел | B135: − | C135: − | D135: − | E135: − | F135: − | G135: − | H135: − | I135: from other sources
A136: Імпорт | B136: 1466 | C136: 1042 | D136: − | E136: 6257 | F136: 1 | G136: − | H136: 1435 | I136: Imports
A137: Експорт | B137: -59 | C137: − | D137: − | E137: -264 | F137: -13 | G137: − | H137: -431 | I137: Exports
A138: Міжнародне бункерування | B138: − | C138: − | D138: − | E138: − | F138: − | G138: − | H138: -127 | I138: Intl. bunkers
A139: Зміна запасів | B139: 35 | C139: 30 | D139: − | E139: 38 | F139: 31 | G139: − | H139: 48 | I139: Stock changes
A140: Внутрішнє постачання | B140: 1851 | C140: 1072 | D140: − | E140: 6031 | F140: 93 | G140: − | H140: 1626 | I140: Domestic supply
A141: Міжпродуктові передачі | B141: − | C141: − | D141: − | E141: − | F141: − | G141: − | H141: 149 | I141: Transfers
A142: Статистичні розбіжності | B142: 37 | C142: 507 | D142: − | E142: -240 | F142: -6 | G142: − | H142: -611 | I142: Statistical differences
A143: Перетворення | B143: 1 | C143: − | D143: − | E143: 10 | F143: 68 | G143: − | H143: 117 | I143: Transformation
A144: Електростанції | B144: − | C144: − | D144: − | E144: 9 | F144: 32 | G144: − | H144: 83 | I144: Electricity plants
A145: ТЕЦ | B145: − | C145: − | D145: − | E145: − | F145: 15 | G145: − | H145: 24 | I145: CHP plants
A146: Теплоцентралі | B146: 1 | C146: − | D146: − | E146: 1 | F146: 21 | G146: − | H146: 10 | I146: Heat plants
A147: Інше перетворення | B147: − | C147: − | D147: − | E147: − | F147: − | G147: − | H147: − | I147: Other transformation
A148: Власне споживання енергосектором | B148: 2 | C148: − | D148: − | E148: 10 | F148: 6 | G148: − | H148: − | I148: Energy ind. оwn use
A149: Підприємства з видобування вугілля | B149: 1 | C149: − | D149: − | E149: 5 | F149: − | G149: − | H149: − | I149: Fuel mining and extraction
A150: Видобування нафти й газу | B150: − | C150: − | D150: − | E150: − | F150: − | G150: − | H150: − | I150: Oil refineries
A151: Електростанції, ТЕЦ, теплоцентралі | B151: 1 | C151: − | D151: − | E151: 3 | F151: 2 | G151: − | H151: − | I151: Elec., CHP and heat plants
A152: Акумулюючі установки | B152: − | C152: − | D152: − | E152: − | F152: − | G152: − | H152: − | I152: Pumped storage plants
A153: Інші енергетичні підприємства | B153: − | C153: − | D153: − | E153: 2 | F153: 4 | G153: − | H153: − | I153: Other energy ind. own use
A154: Втрати | B154: − | C154: − | D154: − | E154: − | F154: − | G154: − | H154: − | I154: Losses
A155: Кінцеве споживання | B155: 1886 | C155: 1579 | D155: − | E155: 5772 | F155: 13 | G155: − | H155: 1047 | I155: Final consumption
A156: Промисловість | B156: 38 | C156: − | D156: − | E156: 453 | F156: 7 | G156: − | H156: 12 | I156: Industry
A157: Чорна металургія | B157: 3 | C157: − | D157: − | E157: 79 | F157: − | G157: − | H157: 1 | I157: Iron and steel
A158: Хімічна і нафтохімічна | B158: 10 | C158: − | D158: − | E158: 2 | F158: 1 | G158: − | H158: − | I158: Chemical and petrochemical
A159: Кольорова металургія | B159: 1 | C159: − | D159: − | E159: 3 | F159: − | G159: − | H159: 1 | I159: Non-ferrous metals
A160: Неметалеві мінеральні продукти | B160: 17 | C160: − | D160: − | E160: 32 | F160: 3 | G160: − | H160: 2 | I160: Non-metallic minerals
A161: Транспортне устатковання | B161: − | C161: − | D161: − | E161: 2 | F161: − | G161: − | H161: 5 | I161: Transport equipment
A162: Машинобудування | B162: 1 | C162: − | D162: − | E162: 6 | F162: − | G162: − | H162: − | I162: Machinery
A163: Гірничодобувна (за викл. палива) | B163: 1 | C163: − | D163: − | E163: 204 | F163: − | G163: − | H163: − | I163: Mining and quarrying
A164: Харчова та тютюнова | B164: 2 | C164: − | D164: − | E164: 17 | F164: − | G164: − | H164: − | I164: Food and tobacco
A165: Целюлозно-паперова і поліграфічна | B165: − | C165: − | D165: − | E165: 1 | F165: − | G165: − | H165: − | I165: Paper, pulp and print
A166: Деревообробна та вироби з деревини | B166: − | C166: − | D166: − | E166: 6 | F166: 3 | G166: − | H166: − | I166: Wood and wood products
A167: Будівництво | B167: 3 | C167: − | D167: − | E167: 97 | F167: − | G167: − | H167: 2 | I167: Construction
A168: Текстильна і шкіряна | B168: − | C168: − | D168: − | E168: 1 | F168: − | G168: − | H168: − | I168: Textile and leather
A169: Інші види промисловості | B169: − | C169: − | D169: − | E169: 3 | F169: − | G169: − | H169: 1 | I169: Non-specified
A170: Транспорт | B170: 1800 | C170: 1579 | D170: − | E170: 3979 | F170: − | G170: − | H170: 191 | I170: Transport
A171: Внутрішні авіаперевезення | B171: − | C171: − | D171: − | E171: − | F171: − | G171: − | H171: 191 | I171: Domestic aviation
A172: Автомобільний | B172: 1800 | C172: 1579 | D172: − | E172: 3819 | F172: − | G172: − | H172: − | I172: Road
A173: Залізничний | B173: − | C173: − | D173: − | E173: 27 | F173: − | G173: − | H173: − | I173: Railway
A174: Трубопровідний | B174: − | C174: − | D174: − | E174: 0 | F174: − | G174: − | H174: − | I174: Pipeline transport
A175: Внутрішнє судноплавство | B175: − | C175: − | D175: − | E175: 133 | F175: − | G175: − | H175: − | I175: Domestic navigation
A176: Інші види транспорту | B176: − | C176: − | D176: − | E176: − | F176: − | G176: − | H176: − | I176: Non-specified
A177: Інші | B177: 48 | C177: − | D177: − | E177: 1340 | F177: 5 | G177: − | H177: 7 | I177: Other
A178: Побутовой сектор | B178: 25 | C178: − | D178: − | E178: − | F178: − | G178: − | H178: − | I178: Residential
A179: Торгівля та послуги | B179: 6 | C179: − | D179: − | E179: 123 | F179: 5 | G179: − | H179: 7 | I179: Comm. and public services
A180: Сільське господарство | B180: 17 | C180: − | D180: − | E180: 1216 | F180: − | G180: − | H180: − | I180: Agriculture
A181: Рибальство | B181: − | C181: − | D181: − | E181: 1 | F181: − | G181: − | H181: − | I181: Fishing
A182: Інші споживачі | B182: − | C182: − | D182: − | E182: − | F182: − | G182: − | H182: − | I182: Non-specified
A183: Неенергетичне використання | B183: − | C183: − | D183: − | E183: − | F183: 1 | G183: − | H183: 837 | I183: Non-energy use
A184: Промисловий та енергетичний сектори, сектор перетворення | B184: − | C184: − | D184: − | E184: − | F184: 1 | G184: − | H184: 403 | I184: Industrial and energy sector, transformation sector
A185: у тому числі | I185: of which
A186: сировина для промисловості | B186: − | C186: − | D186: − | E186: − | F186: − | G186: − | H186: 111 | I186: chem./petrochem.
A187: На транспорті | B187: − | C187: − | D187: − | E187: − | F187: − | G187: − | H187: 11 | I187: in Transport
A188: В інших секторах | B188: − | C188: − | D188: − | E188: − | F188: − | G188: − | H188: 423 | I188: Non-specified
A190: 3 Зріджений нафтовий газ (пропан, бутан) / Liquefied petroleum gas (propane, butane).
A191: 4 Дані розрахункові / Calculated data.
A192: Продовження табл.1.2 / Continuation table 1.2
A193: Постачання та споживання | B193: Біопаливо й відходи4 | G193: Електро-енергія, ГВт·год | H193: Тепло4, ТДж | I193: Supply and consumption
B194: Biofuels and waste4
B195: Тверде біопаливо5, TДж | C195: Рідке біопаливо, тис.т | D195: Біогази, TДж | E195: Відходи/інше, TДж | G195: Electricity, GWh | H195: Heat4, TJ
B196: Solid biofuel5, TJ | C196: Liquid biofuel, thsd.t | D196: Bioga-ses, TJ | E196: Waste/Other, TJ
A197: Виробництво | B197: 154563 | C197: 70 | D197: 2028 | E197: − | G197: 154141 | H197: 382083 | I197: Production
A198: з інших джерел | B198: − | C198: − | D198: − | E198: − | G198: − | H198: − | I198: from other sources
A199: Імпорт | B199: 59 | C199: 70 | D199: − | E199: − | G199: 2238 | H199: − | I199: Imports
A200: Експорт | B200: -18326 | C200: -7 | D200: − | E200: − | G200: -6283 | H200: − | I200: Exports
A201: Міжнародне бункерування | B201: − | C201: − | D201: − | E201: − | G201: − | H201: − | I201: Intl. bunkers
A202: Зміна запасів | B202: -1799 | C202: − | D202: − | E202: − | G202: − | H202: − | I202: Stock changes
A203: Внутрішнє постачання | B203: 134498 | C203: 133 | D203: 2028 | E203: − | G203: 150096 | H203: 382083 | I203: Domestic supply
A204: Міжпродуктові передачі | B204: − | C204: − | D204: − | E204: − | G204: − | H204: − | I204: Transfers
... 50 more rows

Sheet 17-20
A1: 1.2.1. Енергетичний баланс України (продуктовий) за 2020 рік (оперативні дані)
A2: Energy balance of Ukraine (by products) for 2020 (operative data)
A4: Постачання та споживання | B4: Вугілля, тис.т | F4: Вугільні гази, TДж2 | I4: Supply and consumption
B5: Coal, thsd.t | F5: Coal gases, TJ2
B6: Коксівне вугілля | C6: Вугілля ін., антрацит | D6: Кокс/ дьоготь | E6: Брикети вугільні, торф1 | F6: Заводський газ | G6: Коксівний газ | H6: Доменний газ та ін.(вкл. заводський газ)
B7: Coking coal | C7: Other bit. coal/anth./ sub-bit. coal | D7: Coke/ tar | E7: Pat. fuel/BKB1 | F7: Gas works gas | G7: Coke oven gas | H7: Recovered gases (inc.gas work gas)
A8: Виробництво | B8: − | C8: 24168.3 | D8: 9975.4 | E8: 162.1 | F8: − | G8: 71040 | H8: 97176.6 | I8: Production
A9: з інших джерел | B9: − | C9: − | D9: − | E9: − | F9: − | G9: − | H9: − | I9: from other sources
A10: Імпорт | B10: 11090.3 | C10: 5860.8 | D10: 382.1 | E10: − | F10: − | G10: − | H10: − | I10: Imports
A11: Експорт | B11: − | C11: -2.6 | D11: -58.1 | E11: − | F11: − | G11: − | H11: − | I11: Exports
A12: Міжнародне бункерування | B12: − | C12: − | D12: − | E12: − | F12: − | G12: − | H12: − | I12: Intl. bunkers
A13: Зміна запасів | B13: 1906.3 | C13: -4260.8 | D13: 49 | E13: -11 | F13: − | G13: − | H13: − | I13: Stock changes
A14: Внутрішнє постачання | B14: 12996.6 | C14: 25765.7 | D14: 10348.4 | E14: 151.1 | F14: − | G14: 71040 | H14: 97176.6 | I14: Domestic supply
A15: Міжпродуктові передачі | B15: − | C15: − | D15: − | E15: − | F15: − | G15: − | H15: − | I15: Transfers
A16: Статистичні розбіжності | B16: − | C16: − | D16: 540.5 | E16: − | F16: − | G16: − | H16: − | I16: Statistical differences
A17: Перетворення | B17: 12996.6 | C17: 20857.9 | D17: 8327.4 | E17: 66.6 | F17: − | G17: 19641 | H17: 26385 | I17: Transformation
A18: Електростанції | B18: − | C18: 18841 | D18: − | E18: − | F18: − | G18: − | H18: − | I18: Electricity plants
A19: ТЕЦ | B19: − | C19: 1516.7 | D19: − | E19: 11.9 | F19: − | G19: 16884 | H19: 23428 | I19: CHP plants
A20: Теплоцентралі | B20: 0.1 | C20: 500 | D20: 0.1 | E20: 54.7 | F20: − | G20: 2757 | H20: 2957 | I20: Heat plants
A21: Доменні печі | B21: − | C21: − | D21: 7894 | E21: − | F21: − | G21: − | H21: − | I21: Blast furnaces
A22: Газові заводи | B22: − | C22: − | D22: 55 | E22: − | F22: − | G22: − | H22: − | I22: Gas works
A23: Виробництво коксу та брикетів | B23: 12996.5 | C23: − | D23: 258 | E23: − | F23: − | G23: − | H23: − | I23: Coke/pat.fuel/BKB/PB plants
A24: Інше перетворення | B24: − | C24: − | D24: 120 | E24: − | F24: − | G24: − | H24: − | I24: Other transformation
A25: Власне споживання енергосектором | B25: − | C25: 263.5 | D25: − | E25: − | F25: − | G25: 23827 | H25: − | I25: Energy ind. оwn use
A26: Підприємства з видобування вугілля | B26: − | C26: 0.7 | D26: − | E26: − | F26: − | G26: − | H26: − | I26: Fuel mining and extraction
A27: Видобування нафти й газу | B27: − | C27: − | D27: − | E27: − | F27: − | G27: − | H27: − | I27: Oil refineries
A28: Електростанції, ТЕЦ, теплоцентралі | B28: − | C28: 262.8 | D28: − | E28: − | F28: − | G28: − | H28: − | I28: Elec., CHP and heat plants
A29: Акумулюючі установки | B29: − | C29: − | D29: − | E29: − | F29: − | G29: − | H29: − | I29: Pumped storage plants
A30: Інші енергетичні підприємства | B30: − | C30: − | D30: − | E30: − | F30: − | G30: 23827 | H30: − | I30: Other energy ind. own use
A31: Втрати | B31: − | C31: 5.9 | D31: − | E31: 0.7 | F31: − | G31: − | H31: 23822.6 | I31: Losses
A32: Кінцеве споживання | B32: − | C32: 4638.4 | D32: 2561.5 | E32: 83.8 | F32: − | G32: 27572 | H32: 46969 | I32: Final consumption
A33: Промисловість | B33: − | C33: 3483.7 | D33: 2113.9 | E33: 4.8 | F33: − | G33: 27572 | H33: 46843 | I33: Industry
A34: Чорна металургія | B34: − | C34: 2128.9 | D34: 2073.7 | E34: − | F34: − | G34: 27572 | H34: 46843 | I34: Iron and steel
A35: Хімічна і нафтохімічна | B35: − | C35: 2.5 | D35: − | E35: − | F35: − | G35: − | H35: − | I35: Chemical and petrochemical
A36: Кольорова металургія | B36: − | C36: 174.8 | D36: 1 | E36: − | F36: − | G36: − | H36: − | I36: Non-ferrous metals
A37: Неметалеві мінеральні продукти | B37: − | C37: 1131.2 | D37: 20 | E37: 3.6 | F37: − | G37: − | H37: − | I37: Non-metallic minerals
A38: Транспортне устатковання | B38: − | C38: − | D38: 0.6 | E38: − | F38: − | G38: − | H38: − | I38: Transport equipment
A39: Машинобудування | B39: − | C39: 3.1 | D39: 3.9 | E39: − | F39: − | G39: − | H39: − | I39: Machinery
A40: Гірничодобувна (за викл. палива) | B40: − | C40: 0.5 | D40: 13.5 | E40: 0.1 | F40: − | G40: − | H40: − | I40: Mining and quarrying
A41: Харчова та тютюнова | B41: − | C41: 41.5 | D41: 1.2 | E41: 1.1 | F41: − | G41: − | H41: − | I41: Food and tobacco
A42: Целюлозно-паперова і поліграфічна | B42: − | C42: − | D42: − | E42: − | F42: − | G42: − | H42: − | I42: Paper, pulp and print
A43: Деревообробна та вироби з деревини | B43: − | C43: − | D43: − | E43: − | F43: − | G43: − | H43: − | I43: Wood and wood products
A44: Будівництво | B44: − | C44: 0.9 | D44: − | E44: − | F44: − | G44: − | H44: − | I44: Construction
A45: Текстильна і шкіряна | B45: − | C45: − | D45: − | E45: − | F45: − | G45: − | H45: − | I45: Textile and leather
A46: Інші види промисловості | B46: − | C46: 0.3 | D46: − | E46: − | F46: − | G46: − | H46: − | I46: Non-specified
A47: Транспорт | B47: − | C47: 5 | D47: − | E47: − | F47: − | G47: − | H47: − | I47: Transport
A48: Автомобільний | B48: − | C48: − | D48: − | E48: − | F48: − | G48: − | H48: − | I48: Road
A49: Залізничний | B49: − | C49: 5 | D49: − | E49: − | F49: − | G49: − | H49: − | I49: Railway
A50: Трубопровідний | B50: − | C50: − | D50: − | E50: − | F50: − | G50: − | H50: − | I50: Pipeline transport
A51: Інші види транспорту | B51: − | C51: − | D51: − | E51: − | F51: − | G51: − | H51: − | I51: Non-specified
A52: Інші | B52: − | C52: 1005.6 | D52: − | E52: 79 | F52: − | G52: − | H52: − | I52: Other
A53: Побутовой сектор | B53: − | C53: 202.6 | D53: − | E53: 62.3 | F53: − | G53: − | H53: − | I53: Residential
A54: Торгівля та послуги | B54: − | C54: 795 | D54: − | E54: 14.3 | F54: − | G54: − | H54: − | I54: Comm. and public services
A55: Сільське господарство | B55: − | C55: 8 | D55: − | E55: 2.4 | F55: − | G55: − | H55: − | I55: Agriculture
A56: Рибальство | B56: − | C56: − | D56: − | E56: − | F56: − | G56: − | H56: − | I56: Fishing
A57: Інші споживачі | B57: − | C57: − | D57: − | E57: − | F57: − | G57: − | H57: − | I57: Non-specified
A58: Неенергетичне використання | B58: − | C58: 144.1 | D58: 447.6 | E58: − | F58: − | G58: − | H58: 126 | I58: Non-energy use
A59: Промисловий та енергетичний сектори, сектор перетворення | B59: − | C59: 144.1 | D59: 447.6 | E59: − | F59: − | G59: − | H59: 126 | I59: Industrial and energy sector, transformation sector
A60: у тому числі | I60: of which
A61: сировина для промисловості | B61: − | C61: − | D61: − | E61: − | F61: − | G61: − | H61: − | I61: chem./petrochem.
A62: На транспорті | B62: − | C62: − | D62: − | E62: − | F62: − | G62: − | H62: − | I62: in Transport
A64: 1 Брикети торф’яні / Peat products
A65: 2 Дані розрахункові на підставі ефективності процесів перетворення / Calculated data based on transformation efficiency
A66: Продовження табл.1.2 / Continuation table 1.2
A67: Постачання та споживання | B67: Торф (паливний), тис.т | C67: Природний газ,TДж | D67: Нафта, тис.т | I67: Supply and consumption
D68: Oil, thsd.t
D69: Сира нафта | E69: Газоконденсати | F69: Нафтоси-ровина | G69: Присадки | H69: Нафтоза-водський газ
B70: Peat (Fuel), thsd.t | C70: Natural gas, TJ | D70: Crude oil2 | E70: NGL | F70: Feedstocks | G70: Additives | H70: Refinery gas
A71: Виробництво | B71: 271.7 | C71: 737611 | D71: 1674.8 | E71: 754.9 | F71: − | G71: 36.962 | H71: 50.4 | I71: Production
A72: з інших джерел | B72: − | C72: − | D72: − | E72: − | F72: − | G72: − | H72: − | I72: from other sources
A73: Імпорт | B73: 42.5 | C73: 343593 | D73: 1245.7 | E73: − | F73: 523.5 | G73: 2.8 | H73: − | I73: Imports
A74: Експорт | B74: -10.9 | C74: − | D74: -80 | E74: − | F74: -33.1 | G74: − | H74: − | I74: Exports
A75: Міжнародне бункерування | B75: − | C75: − | D75: − | E75: − | F75: − | G75: − | H75: − | I75: Intl. bunkers
A76: Зміна запасів | B76: − | C76: 28014 | D76: 23.8 | E76: -3 | F76: − | G76: − | H76: − | I76: Stock changes
A77: Внутрішнє постачання | B77: 303.3 | C77: 1109218.165 | D77: 2864.3 | E77: 751.9 | F77: 490.4 | G77: 39.762 | H77: 50.4 | I77: Domestic supply
A78: Міжпродуктові передачі | B78: − | C78: − | D78: − | E78: − | F78: 9.2 | G78: -2.8 | H78: − | I78: Transfers
A79: Статистичні розбіжності | B79: − | C79: -6424 | D79: -33 | E79: − | F79: − | G79: − | H79: -28.1 | I79: Statistical differences
A80: Перетворення | B80: 260.4 | C80: 424409 | D80: 2817.3 | E80: 746.5 | F80: 499.6 | G80: 36.962 | H80: − | I80: Transformation
A81: Електростанції | B81: − | C81: 18777 | D81: − | E81: − | F81: − | G81: − | H81: − | I81: Electricity plants
A82: ТЕЦ | B82: − | C82: 179052 | D82: − | E82: − | F82: − | G82: − | H82: − | I82: CHP plants
A83: Теплоцентралі | B83: 28 | C83: 226580 | D83: − | E83: − | F83: − | G83: − | H83: − | I83: Heat plants
A84: Газові заводи | B84: − | C84: − | D84: − | E84: − | F84: − | G84: − | H84: − | I84: Gas works
A85: Виробництво брикетів | B85: 232 | C85: − | D85: − | E85: − | F85: − | G85: − | H85: − | I85: Coke/pat.fuel/BKB/PB plants
A86: Нафтопереробні заводи | B86: − | C86: − | D86: 2817.3 | E86: 746.4 | F86: 499.6 | G86: 36.962 | H86: − | I86: Oil refineries
A87: Власне споживання енергосектором | B87: 17 | C87: 32706 | D87: 2.7 | E87: 2.2 | F87: − | G87: − | H87: 22.3 | I87: Energy ind. оwn use
A88: Підприємства з видобування вугілля | B88: − | C88: 4 | D88: − | E88: − | F88: − | G88: − | H88: − | I88: Fuel mining and extraction
A89: Видобування нафти й газу | B89: − | C89: 27356 | D89: 2.7 | E89: 2.2 | F89: − | G89: − | H89: − | I89: Oil refineries
A90: Електростанції, ТЕЦ, теплоцентралі | B90: − | C90: 446 | D90: − | E90: − | F90: − | G90: − | H90: − | I90: Elec., CHP and heat plants
A91: Акумулюючі установки | B91: − | C91: − | D91: − | E91: − | F91: − | G91: − | H91: − | I91: Pumped storage plants
A92: Інші енергетичні підприємства | B92: 17 | C92: 4900 | D92: − | E92: − | F92: − | G92: − | H92: 22.3 | I92: Other energy ind. own use
A93: Втрати | B93: − | C93: 32581 | D93: 6.5 | E93: − | F93: − | G93: − | H93: − | I93: Losses
A94: Кінцеве споживання | B94: 25.7 | C94: 613098 | D94: 4.8 | E94: 3.2 | F94: − | G94: − | H94: − | I94: Final consumption
A95: Промисловість | B95: 3.1 | C95: 130553 | D95: − | E95: 0.3 | F95: − | G95: − | H95: − | I95: Industry
A96: Чорна металургія | B96: 3.1 | C96: 66910 | D96: − | E96: − | F96: − | G96: − | H96: − | I96: Iron and steel
A97: Хімічна і нафтохімічна | B97: − | C97: 6465 | D97: − | E97: − | F97: − | G97: − | H97: − | I97: Chemical and petrochemical
A98: Кольорова металургія | B98: − | C98: 7369 | D98: − | E98: − | F98: − | G98: − | H98: − | I98: Non-ferrous metals
A99: Неметалеві мінеральні продукти | B99: − | C99: 21553 | D99: − | E99: − | F99: − | G99: − | H99: − | I99: Non-metallic minerals
A100: Транспортне устатковання | B100: − | C100: 3744 | D100: − | E100: − | F100: − | G100: − | H100: − | I100: Transport equipment
A101: Машинобудування | B101: − | C101: 5148 | D101: − | E101: − | F101: − | G101: − | H101: − | I101: Machinery
A102: Гірничодобувна (за викл. палива) | B102: − | C102: 10162 | D102: − | E102: − | F102: − | G102: − | H102: − | I102: Mining and quarrying
A103: Харчова та тютюнова | B103: − | C103: 7486 | D103: − | E103: − | F103: − | G103: − | H103: − | I103: Food and tobacco
A104: Целюлозно-паперова і поліграфічна | B104: − | C104: 955 | D104: − | E104: − | F104: − | G104: − | H104: − | I104: Paper, pulp and print
A105: Деревообробна та вироби з деревини | B105: − | C105: 69 | D105: − | E105: − | F105: − | G105: − | H105: − | I105: Wood and wood products
A106: Будівництво | B106: − | C106: 364 | D106: − | E106: − | F106: − | G106: − | H106: − | I106: Construction
A107: Текстильна і шкіряна | B107: − | C107: 214 | D107: − | E107: − | F107: − | G107: − | H107: − | I107: Textile and leather
A108: Інші види промисловості | B108: − | C108: 114 | D108: − | E108: 0.3 | F108: − | G108: − | H108: − | I108: Non-specified
A109: Транспорт | B109: − | C109: 30657 | D109: − | E109: − | F109: − | G109: − | H109: − | I109: Transport
A110: Внутрішні авіаперевезення | B110: − | C110: − | D110: − | E110: − | F110: − | G110: − | H110: − | I110: Domestic aviation
A111: Автомобільний | B111: − | C111: 841 | D111: − | E111: − | F111: − | G111: − | H111: − | I111: Road
A112: Залізничний | B112: − | C112: − | D112: − | E112: − | F112: − | G112: − | H112: − | I112: Railway
A113: Трубопровідний | B113: − | C113: 29741 | D113: − | E113: − | F113: − | G113: − | H113: − | I113: Pipeline transport
A114: Внутрішнє судноплавство | B114: − | C114: − | D114: − | E114: − | F114: − | G114: − | H114: − | I114: Domestic navigation
A115: Інші види транспорту | B115: − | C115: 75 | D115: − | E115: − | F115: − | G115: − | H115: − | I115: Non-specified
A116: Інші | B116: 22.6 | C116: 346630 | D116: − | E116: − | F116: − | G116: − | H116: − | I116: Other
A117: Побутовой сектор | B117: 22.6 | C117: 302493 | D117: − | E117: − | F117: − | G117: − | H117: − | I117: Residential
A118: Торгівля та послуги | B118: − | C118: 38454 | D118: − | E118: − | F118: − | G118: − | H118: − | I118: Comm. and public services
A119: Сільське господарство | B119: − | C119: 5682 | D119: − | E119: − | F119: − | G119: − | H119: − | I119: Agriculture
A120: Рибальство | B120: − | C120: 1 | D120: − | E120: − | F120: − | G120: − | H120: − | I120: Fishing
A121: Інші споживачі | B121: − | C121: − | D121: − | E121: − | F121: − | G121: − | H121: − | I121: Non-specified
A122: Неенергетичне використання | B122: − | C122: 105258 | D122: 4.8 | E122: 2.9 | F122: − | G122: − | H122: − | I122: Non-energy use
A123: Промисловий та енергетичний сектори, сектор перетворення | B123: − | C123: 105258 | D123: 4.8 | E123: 1.6 | F123: − | G123: − | H123: − | I123: Industrial and energy sector, transformation sector
A124: у тому числі | I124: of which
A125: сировина для промисловості | B125: − | C125: 100757 | D125: − | E125: − | F125: − | G125: − | H125: − | I125: chem./petrochem.
A126: На транспорті | B126: − | C126: − | D126: − | E126: − | F126: − | G126: − | H126: − | I126: in Transport
A127: В інших секторах | B127: − | C127: − | D127: − | E127: 1.3 | F127: − | G127: − | H127: − | I127: Non-specified
A130: Продовження табл.1.2 / Continuation table 1.2
A131: Постачання та споживання | B131: Нафта, тис.т | I131: Supply and consumption
B132: Oil, thsd.t
B133: ЗНГ1 | C133: Бензин моторний | D133: Гас | E133: Газойлі/ дизель | F133: Мазути топкові | G133: Нафтовий кокс | H133: Інші нафтопродукти2
B134: LPG1 | C134: Motor gasoline | D134: Oth. kerosene | E134: Gas/ diesel | F134: Fuel oil | G134: Petroleum coke | H134: Other oil products3
A135: Виробництво | B135: 305.5 | C135: к/с | D135: − | E135: к/с | F135: 75.1 | G135: − | H135: 607.7 | I135: Production
A136: з інших джерел | B136: − | C136: − | D136: − | E136: − | F136: − | G136: − | H136: − | I136: from other sources
A137: Імпорт | B137: 1562 | C137: 1018.7 | D137: − | E137: 6088.9 | F137: − | G137: − | H137: 1288.3 | I137: Imports
A138: Експорт | B138: -2.8 | C138: − | D138: − | E138: − | F138: − | G138: − | H138: -231.7 | I138: Exports
A139: Міжнародне бункерування | B139: − | C139: − | D139: − | E139: − | F139: − | G139: − | H139: -33.1 | I139: Intl. bunkers
A140: Зміна запасів | B140: 23 | C140: 25 | D140: − | E140: 12 | F140: -17.8 | G140: − | H140: 25.7 | I140: Stock changes
A141: Внутрішнє постачання | B141: 1887.7 | C141: 1043.6 | D141: − | E141: 6100.9 | F141: 57.3 | G141: − | H141: 1656.9 | I141: Domestic supply
A142: Міжпродуктові передачі | B142: − | C142: − | D142: − | E142: − | F142: − | G142: − | H142: -9.2 | I142: Transfers
A143: Статистичні розбіжності | B143: -503.2 | C143: 646.9 | D143: − | E143: -927 | F143: 40.8 | G143: − | H143: -405.1 | I143: Statistical differences
A144: Перетворення | B144: 4.8 | C144: − | D144: − | E144: 11.9 | F144: 79.4 | G144: − | H144: 35.4 | I144: Transformation
A145: Електростанції | B145: − | C145: − | D145: − | E145: 9.6 | F145: 18.4 | G145: − | H145: − | I145: Electricity plants
A146: ТЕЦ | B146: − | C146: − | D146: − | E146: − | F146: 34.3 | G146: − | H146: 24.9 | I146: CHP plants
A147: Теплоцентралі | B147: 4.8 | C147: − | D147: − | E147: 2.3 | F147: 16.7 | G147: − | H147: 10.5 | I147: Heat plants
A148: Інше перетворення | B148: − | C148: − | D148: − | E148: − | F148: 10 | G148: − | H148: − | I148: Other transformation
A149: Власне споживання енергосектором | B149: 0.8 | C149: − | D149: − | E149: 5.3 | F149: 3.8 | G149: − | H149: − | I149: Energy ind. оwn use
A150: Підприємства з видобування вугілля | B150: − | C150: − | D150: − | E150: 1.9 | F150: − | G150: − | H150: − | I150: Fuel mining and extraction
A151: Видобування нафти й газу | B151: 0.5 | C151: − | D151: − | E151: 0.3 | F151: − | G151: − | H151: − | I151: Oil refineries
A152: Електростанції, ТЕЦ, теплоцентралі | B152: 0.3 | C152: − | D152: − | E152: 3.1 | F152: 2.5 | G152: − | H152: − | I152: Elec., CHP and heat plants
A153: Акумулюючі установки | B153: − | C153: − | D153: − | E153: − | F153: − | G153: − | H153: − | I153: Pumped storage plants
A154: Інші енергетичні підприємства | B154: − | C154: − | D154: − | E154: − | F154: 1.3 | G154: − | H154: − | I154: Other energy ind. own use
A155: Втрати | B155: − | C155: − | D155: − | E155: 0.3 | F155: 0.6 | G155: − | H155: − | I155: Losses
A156: Кінцеве споживання | B156: 1378.9 | C156: 1690.5 | D156: − | E156: 5156.4 | F156: 14.3 | G156: − | H156: 1207.2 | I156: Final consumption
A157: Промисловість | B157: 103.3 | C157: − | D157: − | E157: 502.3 | F157: 8.4 | G157: − | H157: 11.7 | I157: Industry
A158: Чорна металургія | B158: 8.1 | C158: − | D158: − | E158: 63.3 | F158: − | G158: − | H158: 0.9 | I158: Iron and steel
A159: Хімічна і нафтохімічна | B159: 1.4 | C159: − | D159: − | E159: 2.1 | F159: 0.4 | G159: − | H159: 0.2 | I159: Chemical and petrochemical
A160: Кольорова металургія | B160: 7.6 | C160: − | D160: − | E160: 0.7 | F160: − | G160: − | H160: − | I160: Non-ferrous metals
A161: Неметалеві мінеральні продукти | B161: 73.4 | C161: − | D161: − | E161: 131.9 | F161: 4 | G161: − | H161: 3 | I161: Non-metallic minerals
A162: Транспортне устатковання | B162: − | C162: − | D162: − | E162: 2.7 | F162: − | G162: − | H162: 2.9 | I162: Transport equipment
A163: Машинобудування | B163: 4.7 | C163: − | D163: − | E163: 3.5 | F163: − | G163: − | H163: − | I163: Machinery
A164: Гірничодобувна (за викл. палива) | B164: 0.9 | C164: − | D164: − | E164: 123.7 | F164: − | G164: − | H164: − | I164: Mining and quarrying
A165: Харчова та тютюнова | B165: 3.3 | C165: − | D165: − | E165: 16.6 | F165: − | G165: − | H165: 0.5 | I165: Food and tobacco
A166: Целюлозно-паперова і поліграфічна | B166: 1.1 | C166: − | D166: − | E166: 0.6 | F166: − | G166: − | H166: − | I166: Paper, pulp and print
A167: Деревообробна та вироби з деревини | B167: 0.3 | C167: − | D167: − | E167: 5.5 | F167: − | G167: − | H167: − | I167: Wood and wood products
A168: Будівництво | B168: 2.1 | C168: − | D168: − | E168: 139.6 | F168: 4 | G168: − | H168: 3 | I168: Construction
A169: Текстильна і шкіряна | B169: − | C169: − | D169: − | E169: 0.2 | F169: − | G169: − | H169: − | I169: Textile and leather
A170: Інші види промисловості | B170: 0.4 | C170: − | D170: − | E170: 11.9 | F170: − | G170: − | H170: 1.2 | I170: Non-specified
A171: Транспорт | B171: 1224 | C171: 1690.5 | D171: − | E171: 3569.7 | F171: − | G171: − | H171: 93 | I171: Transport
A172: Внутрішні авіаперевезення | B172: − | C172: − | D172: − | E172: − | F172: − | G172: − | H172: 93 | I172: Domestic aviation
A173: Автомобільний | B173: 1224 | C173: 1690.5 | D173: − | E173: 3547 | F173: − | G173: − | H173: − | I173: Road
A174: Залізничний | B174: − | C174: − | D174: − | E174: 21.1 | F174: − | G174: − | H174: − | I174: Railway
A175: Трубопровідний | B175: − | C175: − | D175: − | E175: − | F175: − | G175: − | H175: − | I175: Pipeline transport
A176: Внутрішнє судноплавство | B176: − | C176: − | D176: − | E176: 1.6 | F176: − | G176: − | H176: − | I176: Domestic navigation
A177: Інші види транспорту | B177: − | C177: − | D177: − | E177: − | F177: − | G177: − | H177: − | I177: Non-specified
A178: Інші | B178: 51.6 | C178: − | D178: − | E178: 1083.6 | F178: 5.1 | G178: − | H178: 11.5 | I178: Other
A179: Побутовой сектор | B179: 30.3 | C179: − | D179: − | E179: − | F179: − | G179: − | H179: − | I179: Residential
A180: Торгівля та послуги | B180: 7.4 | C180: − | D180: − | E180: 100.3 | F180: 5 | G180: − | H180: 11.5 | I180: Comm. and public services
A181: Сільське господарство | B181: 13.9 | C181: − | D181: − | E181: 983.2 | F181: 0.1 | G181: − | H181: − | I181: Agriculture
A182: Рибальство | B182: − | C182: − | D182: − | E182: 0.1 | F182: − | G182: − | H182: − | I182: Fishing
A183: Інші споживачі | B183: − | C183: − | D183: − | E183: − | F183: − | G183: − | H183: − | I183: Non-specified
A184: Неенергетичне використання | B184: − | C184: − | D184: − | E184: 0.8 | F184: 0.8 | G184: − | H184: 1091 | I184: Non-energy use
A185: Промисловий та енергетичний сектори, сектор перетворення | B185: − | C185: − | D185: − | E185: 0.8 | F185: 0.8 | G185: − | H185: 532.7 | I185: Industrial and energy sector, transformation sector
A186: у тому числі | I186: of which
A187: сировина для промисловості | B187: − | C187: − | D187: − | E187: − | F187: − | G187: − | H187: 7.5 | I187: chem./petrochem.
A188: На транспорті | B188: − | C188: − | D188: − | E188: − | F188: − | G188: − | H188: 550.8 | I188: in Transport
A189: В інших секторах | B189: − | C189: − | D189: − | E189: − | F189: − | G189: − | H189: 8.1 | I189: Non-specified
A191: 1 Зріджений нафтовий газ (пропан, бутан) / Liquefied petroleum gas (propane, butane).
A192: 2 Дані розрахункові / Calculated data.
A193: Продовження табл.1.2 / Continuation table 1.2
A194: Постачання та споживання | B194: Біопаливо й відходи1,2 | G194: Електро-енергія,2 ГВт·год | H194: Тепло,2 ТДж | I194: Supply and consumption
B195: Biofuels and waste1,2
B196: Тверде біопаливо1, TДж | C196: Рідке біопаливо, тис.т | D196: Біогази, TДж | E196: Відходи/інше, TДж | G196: Electricity2, GWh | H196: Heat2, TJ
B197: Solid biofuel1, TJ | C197: Liquid biofuel, thsd.t | D197: Bioga-ses, TJ | E197: Waste/Other, TJ
A198: Виробництво | B198: 147860 | C198: к/с | D198: 3852.1 | E198: 34090 | F198: 0 | G198: 148401.6 | H198: 388003 | I198: Production
A199: з інших джерел | B199: − | C199: − | D199: − | E199: − | G199: − | H199: − | I199: from other sources
A200: Імпорт | B200: 65 | C200: 77.2 | D200: − | E200: − | G200: 2719.8 | H200: − | I200: Imports
A201: Експорт | B201: -17749.5 | C201: − | D201: − | E201: − | G201: -5139.8 | H201: − | I201: Exports
A202: Міжнародне бункерування | B202: − | C202: − | D202: − | E202: − | G202: − | H202: − | I202: Intl. bunkers
A203: Зміна запасів | B203: 7363 | C203: − | D203: − | E203: − | G203: − | H203: − | I203: Stock changes
A204: Внутрішнє постачання | B204: 137539 | C204: 77.2 | D204: 3852.1 | E204: 34090 | F204: 20979 | G204: 145981.6 | H204: 388003 | I204: Domestic supply
A205: Міжпродуктові передачі | B205: − | C205: − | D205: − | E205: − | G205: − | H205: − | I205: Transfers
... 50 more rows

Sheet Граф 21-23
A1: 1.3. Виробництво первинної енергії | K1: Вугілля й торф / Coal & peat | L1: Сира нафта / Grude oil | M1: Атомна енергія / Nuclear | N1: Природний газ / Natural Gas | O1: Гідро, вітрова, сонячна / Hydro, wind, solar energy | P1: Біопаливо та відходи / Biofuels & waste
A2: Total primary energy production by energy sources | J2: 2007 | K2: 38018 | L2: 4478 | M2: 24273 | N2: 15865 | O2: 876 | P2: 1489
J3: 2008 | K3: 37640 | L3: 4347 | M3: 23566 | N3: 16120 | O3: 994 | P3: 1593
J4: 2009 | K4: 34959 | L4: 3982 | M4: 21764 | N4: 16154 | O4: 1030 | P4: 1450
J5: 2010 | K5: 33716 | L5: 3590 | M5: 23387 | N5: 15426 | O5: 1135 | P5: 1458
J6: 2011 | K6: 40345 | L6: 3407 | M6: 23672 | N6: 15528 | O6: 951 | P6: 1580
J7: 2012 | K7: 40256 | L7: 3414 | M7: 23653 | N7: 15403 | O7: 954 | P7: 1565
J8: 2013 | K8: 40787 | L8: 3167 | M8: 21848 | N8: 16022 | O8: 1291 | P8: 1923
J9: 2014 | K9: 31891 | L9: 2817 | M9: 23191 | N9: 15022 | O9: 863 | P9: 2399
J10: 2015 | K10: 17423 | L10: 2618 | M10: 22985 | N10: 14814 | O10: 598 | P10: 2606
J11: 2016 | K11: 22869 | L11: 2304 | M11: 21244 | N11: 15175 | O11: 784 | P11: 3348
J12: 2017 | K12: 13696 | L12: 2208 | M12: 22449 | N12: 15472 | O12: 918 | P12: 3575
J13: 2018 | K13: 14556 | L13: 2341 | M13: 22145 | N13: 16487 | O13: 1093 | P13: 3726
J14: 2019 | K14: 14446 | L14: 2478 | M14: 21771 | N14: 16318 | O14: 986 | P14: 3786
J15: 2020 | K15: 12753 | L15: 2476 | M15: 19994 | N15: 15856 | O15: 1445 | P15: 4438
A29: 1.4. Розподіл основних джерел енергії в загальному постачанні
A30: первинної енергії | K30: Вугілля й торф / Coal & peat | L30: Сира нафта / Grude oil | M30: Атомна енергія / Nuclear | N30: Природний газ / Natural Gas | O30: Гідро, вітрова, сонячна / Hydro, wind, solar energy | P30: Біопаливо та відходи / Biofuels & waste
A31: Total primary energy supply by the main energy sources | J31: 2007 | K31: 42657 | L31: 14926 | M31: 24273 | N31: 55586 | O31: 876 | P31: 1508
J32: 2008 | K32: 41798 | L32: 11166 | M32: 23566 | N32: 52805 | O32: 994 | P32: 1610
J33: 2009 | K33: 35870 | L33: 11384 | M33: 21764 | N33: 40789 | O33: 1030 | P33: 1433
J34: 2010 | K34: 38251 | L34: 11497 | M34: 23387 | N34: 55229 | O34: 1135 | P34: 1476
J35: 2011 | K35: 41490 | L35: 9100 | M35: 23672 | N35: 46841 | O35: 951 | P35: 1563
J36: 2012 | K36: 42718 | L36: 5050 | M36: 23653 | N36: 43018 | O36: 954 | P36: 1522
J37: 2013 | K37: 41427 | L37: 3978 | M37: 21848 | N37: 39444 | O37: 1291 | P37: 1875
J38: 2014 | K38: 35576 | L38: 3043 | M38: 23191 | N38: 33412 | O38: 863 | P38: 1934
J39: 2015 | K39: 27344 | L39: 2851 | M39: 22985 | N39: 26055 | O39: 598 | P39: 2102
J40: 2016 | K40: 32450 | L40: 2806 | M40: 21244 | N40: 25603 | O40: 784 | P40: 2832
J41: 2017 | K41: 25757 | L41: 3351 | M41: 22449 | N41: 24554 | O41: 918 | P41: 2989
J42: 2018 | K42: 28055 | L42: 3635 | M42: 22145 | N42: 25739 | O42: 1093 | P42: 3209
J43: 2019 | K43: 26076 | L43: 3786 | M43: 21771 | N43: 23383 | O43: 985 | P43: 3349
J44: 2020 | K44: 22816 | L44: 4196 | M44: 19994 | N44: 23844 | O44: 1445 | P44: 4241
A57: 1.5. Забезпечення економіки України власними ресурсами | K57: Вугілля й торф / Coal & peat | L57: Природний газ / Natural Gas | M57: Усього / Total
A58: Shares of own production of energy resources in Ukraine | J58: 2007 | K58: 89 | L58: 29 | M58: 61
J59: 2008 | K59: 90 | L59: 31 | M59: 63
J60: 2009 | K60: 97 | L60: 40 | M60: 69
J61: 2010 | K61: 88 | L61: 28 | M61: 59
J62: 2011 | K62: 97 | L62: 33 | M62: 68
J63: 2012 | K63: 94 | L63: 36 | M63: 70
J64: 2013 | K64: 98 | L64: 41 | M64: 74
J65: 2014 | K65: 90 | L65: 45 | M65: 73
J66: 2015 | K66: 64 | L66: 57 | M66: 68
J67: 2016 | K67: 70 | L67: 59 | M67: 70
J68: 2017 | K68: 53 | L68: 63 | M68: 66
J69: 2018 | K69: 52 | L69: 64 | M69: 65
J70: 2019 | K70: 55 | L70: 70 | M70: 68
J71: 2020 | K71: 56 | L71: 66 | M71: 66
A85: 1.6. Внутрішнє постачання нафтопродуктів | K85: Газойлі / Gas | L85: Бензин моторний / Motor gasoline | M85: Пропан, бутан / LPG | N85: Мазути / Fuel oil | O85: Нафтозаводський газ / Refinery gas | P85: Інші нафтопродукти / Other oil products
A86: Total supply of oil products | J86: 2007 | K86: 6053 | L86: 5231 | M86: 741 | N86: 953 | O86: 540 | P86: 1372
J87: 2008 | K87: 6132 | L87: 5204 | M87: 714 | N87: 1032 | O87: 448 | P87: 1281
J88: 2009 | K88: 5307 | L88: 4706 | M88: 789 | N88: 2090 | O88: 501 | P88: 939
J89: 2010 | K89: 5634 | L89: 4368 | M89: 735 | N89: 962 | O89: 545 | P89: 1203
J90: 2011 | K90: 5553 | L90: 4137 | M90: 788 | N90: 888 | O90: 438 | P90: 1138
J91: 2012 | K91: 5726 | L91: 3246 | M91: 802 | N91: 394 | O91: 269 | P91: 1134
J92: 2013 | K92: 5178 | L92: 2509 | M92: 859 | N92: 52 | O92: 288 | P92: 1084
J93: 2014 | K93: 5713 | L93: 2837 | M93: 883 | N93: 108 | O93: 388 | P93: 809
J94: 2015 | K94: 5610 | L94: 2063 | M94: 931 | N94: 675 | O94: 0 | P94: 993
J95: 2016 | K95: 5442 | L95: 2117 | M95: 1463 | N95: 1029 | O95: 26 | P95: 1276
J96: 2017 | K96: 6268 | L96: 1993 | M96: 1487 | N96: 741 | O96: 36 | P96: 1565
J97: 2018 | K97: 5517 | L97: 1113 | M97: 1707 | N97: 468 | O97: 35 | P97: 3105
J98: 2019 | K98: 6031 | L98: 1072 | M98: 1851 | N98: 93 | O98: 41 | P98: 1626
J99: 2020 | K99: 6101 | L99: 1044 | M99: 1888 | N99: 57 | O99: 50 | P99: 1657
A114: 1.7. Чистий імпорт енергії | K114: Газ природний / Natural Gas | L114: Нафта / Оil | M114: Вугілля / Coal | N114: Усього / Total
A115: Energy net import | J115: 2007 | K115: 40446 | L115: 11051 | M115: 6407 | N115: 57074
J116: 2008 | K116: 42460 | L116: 10155 | M116: 5244 | N116: 57279
J117: 2009 | K117: 30646 | L117: 9880 | M117: 1266 | N117: 41425
J118: 2010 | K118: 29546 | L118: 9811 | M118: 2973 | N118: 41982
J119: 2011 | K119: 36179 | L119: 9361 | M119: 2753 | N119: 47752
J120: 2012 | K120: 26590 | L120: 8250 | M120: 4734 | N120: 38513
J121: 2013 | K121: 22589 | L121: 7111 | M121: 2724 | N121: 31509
J122: 2014 | K122: 15720 | L122: 7493 | M122: 5459 | N122: 27470
J123: 2015 | K123: 13288 | L123: 8013 | M123: 9453 | N123: 30128
J124: 2016 | K124: 8809 | L124: 9633 | M124: 10122 | N124: 27725
J125: 2017 | K125: 11262 | L125: 10469 | M125: 12425 | N125: 33201
J126: 2018 | K126: 8459 | L126: 11154 | M126: 13746 | N126: 32333
J127: 2019 | K127: 9506 | L127: 10914 | M127: 13190 | N127: 32867
J128: 2020 | K128: 7386 | L128: 11678 | M128: 10997 | N128: 29480
A142: 1.8. Постачання та кінцеве споживання енергії | K142: Постачання | L142: Кінцеве споживання
A143: Energy supply and final consumption | J143: 2007 | K143: 139330 | L143: 85955
J144: 2008 | K144: 134562 | L144: 83283
J145: 2009 | K145: 114420 | L145: 67555
J146: 2010 | K146: 132308 | L146: 74004
J147: 2011 | K147: 126438 | L147: 75852
J148: 2012 | K148: 122488 | L148: 73107
J149: 2013 | K149: 115940 | L149: 69557
J150: 2014 | K150: 105683 | L150: 61460
J151: 2015 | K151: 90090 | L151: 50831
J152: 2016 | K152: 94383 | L152: 51649
J153: 2017 | K153: 89462 | L153: 49911
J154: 2018 | K154: 93526 | L154: 51408
J155: 2019 | K155: 89359 | L155: 49665
J156: 2020 | K156: 86402 | L156: 47821

Sheet Граф 24-25
A1: 1.9. Структура загального постачання первинної енергії | J1: Вугілля й торф / Coal & peat | K1: Нафта сира та нафтопродукти / Grude oil end oil products | L1: Газ природний / Natural Gas | M1: Відновлювана енергія / Renewable energy | N1: Атомна енергія / Nuclear
A2: Total primary energy supply by energy sources | J2: 26076 | K2: 13476 | L2: 23383 | M2: 4334 | N2: 21771
J29: Вугілля й торф / Coal & peat | K29: Нафта сира та нафтопродукти / Grude oil end oil products | L29: Газ природний / Natural Gas | M29: Відновлювана енергія / Renewable energy | N29: Атомна енергія / Nuclear
J30: 22816 | K30: 14215 | L30: 23844 | M30: 5686 | N30: 19994
A58: 1.10. Структура кінцевого споживання енергії | J58: Вугілля й торф / Coal & peat | K58: Нафта сира та нафтопродукти / Grude oil end oil products | L58: Газ природний / Natural Gas | M58: Відновлювана енергія / Renewable energy | N58: Теплоенергія / Heat | O58: Електроенергія / Electricity
A59: Fuel and energy shares in total final consumption | J59: 6316 | K59: 10567 | L59: 13479 | M59: 2091 | N59: 7179 | O59: 10033
J86: Вугілля й торф / Coal & peat | K86: Нафта сира та нафтопродукти / Grude oil end oil products | L86: Газ природний / Natural Gas | M86: Відновлювана енергія / Renewable energy | N86: Теплоенергія / Heat | O86: Електроенергія / Electricity
J87: 5822 | K87: 9703 | L87: 13179 | M87: 2179 | N87: 7177 | O87: 9760

Sheet 26
A1: 1.11. Випуск вугілля кам'яного за регіонами
A2: Output of сoal of hard, by region
D3: (тис.т / thsd.t)
B4: 2019 | C4: 2020
A6: Україна | B6: 25530.4 | C6: 24168.3 | D6: Ukraine
A7: Волинська | B7: к/c | C7: к/c | D7: Volyn
A8: Дніпропетровська | B8: к/c | C8: к/c | D8: Dnipropetrovsk
A9: Донецька | B9: 10599.6 | C9: 10531.8 | D9: Donetsk
A10: Луганська | B10: 234.2 | C10: 253 | D10: Luhansk
A11: Львівська | B11: к/c | C11: 1884.4 | D11: Lviv
A13: 1.12. Видобуток нафти сирої, у тому числі нафти, одержаної з мінералів
A14: бітумінозних за регіонами
A15: Output of crude oil including oil obtained from bituminous mineral, by region
D16: (тис.т / thsd.t)
B17: 2019 | C17: 2020
A19: Україна | B19: 1719.1 | C19: 1674.8 | D19: Ukraine
A20: Дніпропетровська | B20: к/c | C20: к/c | D20: Dnipropetrovsk
A21: Івано-Франківська | B21: 368.7 | C21: 369.9 | D21: Ivano-Frankivsk
A22: Луганська | B22: к/c | C22: к/c | D22: Luhansk
A23: Львівська | B23: 168.2 | C23: к/c | D23: Lviv
A24: Полтавська | B24: 157.1 | C24: 143.8 | D24: Poltava
A25: Сумська | B25: 690.2 | C25: к/c | D25: Sumy
A26: Харківська | B26: 59.4 | C26: 51.7 | D26: Kharkiv
A27: Чернівецька | B27: к/c | C27: к/c | D27: Chernivtsi
A28: Чернігівська | B28: к/c | C28: к/c | D28: Chernihiv
A30: 1.13. Видобуток газового конденсату природного, одержаного з родовищ газу
A31: природного за регіонами
A32: Output of natural gas liquids obtained from natural gas fields, by region
D33: (тис.т / thsd.t)
B34: 2019 | C34: 2020
A36: Україна | B36: 734.5 | C36: 754.9 | D36: Ukraine
A37: Дніпропетровська | B37: к/c | C37: к/c | D37: Dnipropetrovsk
A38: Івано-Франківська | B38: 1.4 | C38: к/c | D38: Ivano-Frankivsk
A39: Луганська | B39: к/c | C39: к/c | D39: Luhansk
A40: Полтавська | B40: 451.6 | C40: 445.8 | D40: Poltava
A41: Сумська | B41: 17.4 | C41: к/c | D41: Sumy
A42: Харківська | B42: 249.1 | C42: 272.8 | D42: Kharkiv
A43: Чернігівська | B43: к/c | C43: к/c | D43: Chernihiv

Sheet 27
A1: 1.14. Видобуток газу природного скрапленого або в газоподібному стані
A2: за регіонами
A3: Output of natural gas, liquified or gaseous, by region
D4: (млн. м3 / mln. m3)
B5: 2019 | C5: 2020
A7: Україна | B7: 20519.9 | C7: 20170.9 | D7: Ukraine
A8: Волинська | B8: к/c | C8: к/c | D8: Volyn
A9: Дніпропетровська | B9: 387.2 | C9: к/c | D9: Dnipropetrovsk
A10: Донецька | B10: к/c | C10: к/c | D10: Donetsk
A11: Закарпатська | B11: к/c | C11: к/c | D11: Zakarpattya
A12: Івано-Франківська | B12: 452.6 | C12: 467.6 | D12: Ivano-Frankivsk
A13: Луганська | B13: 190.2 | C13: к/c | D13: Luhansk
A14: Львівська | B14: 852.4 | C14: 904.9 | D14: Lviv
A15: Полтавська | B15: 9085.8 | C15: 9158.2 | D15: Poltava
A16: Сумська | B16: 314.8 | C16: к/c | D16: Sumy
A17: Харківська | B17: 9151.1 | C17: 8786.8 | D17: Kharkiv
A18: Чернівецька | B18: 4.9 | C18: к/c | D18: Chernivtsi
A19: Чернігівська | B19: к/c | C19: к/c | D19: Chernihiv
A22: 1.15. Виробництво електроенергії за типами електростанцій
A23: Output of electricity, by type of power plants
C24: (млн. кВт·год / mln. kW·h)
B25: 2019 | C25: 2020
A27: Україна | B27: 154141 | C27: 147801.4 | D27: Ukraine
A28: у тому числі | D28: including
A29: теплові електростанції | B29: 58330.2 | C29: 55401.4 | D29: heat power plants
A30: атомні електростанції | B30: 83002.7 | C30: 76202.7 | D30: nuclear power plants
A31: гідроелектростанції | B31: 7855.1 | C31: 7563.8 | D31: hydro power plants
A32: вітрові електростанції | B32: 2020.2 | C32: 3264.3 | D32: wind power plants
A33: сонячні електростанції | B33: 2932.8 | C33: 5369.2 | D33: solar power plants

Sheet 28
A1: 1.16. Виробництво електроенергії за регіонами
A2: Output of electricity by regions
D3: (млн. кВт·год / mln. kW·h)
B4: 2019 | C4: 2020
A5: Україна | B5: 154141 | C5: 147801.4 | D5: Ukraine
A6: Автономна Республіка Крим | B6: … | C6: … | D6: Autonomous Republic of Crimea
A7: Вінницька | B7: 4149.4 | C7: к/c | D7: Vinnytsya
A8: Волинська | B8: 70.1 | C8: к/c | D8: Volyn
A9: Дніпропетровська | B9: 5073.6 | C9: 6016.7 | D9: Dnipropetrovsk
A10: Донецька | B10: 14293.7 | C10: 12853.2 | D10: Donetsk
A11: Житомирська | B11: 37.4 | C11: 97.3 | D11: Zhytomyr
A12: Закарпатська | B12: 266.5 | C12: 459.8 | D12: Zakarpattya
A13: Запорізька | B13: 47456 | C13: 37883.6 | D13: Zaporizhzhya
A14: Івано-Франківська | B14: 9403.9 | C14: к/c | D14: Ivano-Frankivsk
A15: Київська | B15: 4412.9 | C15: 4069.7 | D15: Kyiv
A16: Кіровоградська | B16: 1029.4 | C16: 998.5 | D16: Kirovohrad
A17: Луганська | B17: 2066.2 | C17: к/c | D17: Luhansk
A18: Львівська | B18: 2579.6 | C18: 2491.1 | D18: Lviv
A19: Миколаївська | B19: 18903.5 | C19: к/c | D19: Mykolayiv
A20: Одеська | B20: 514.9 | C20: 688.5 | D20: Odesa
A21: Полтавська | B21: 803.7 | C21: 818.4 | D21: Poltava
A22: Рівненська | B22: 19263.5 | C22: к/c | D22: Rivne
A23: Сумська | B23: 203.4 | C23: 194.7 | D23: Sumy
A24: Тернопільська | B24: 74.1 | C24: 102.7 | D24: Ternopyl
A25: Харківська | B25: 5021.8 | C25: 6409.3 | D25: Kharkiv
A26: Херсонська | B26: 1848.2 | C26: 2313.5 | D26: Kherson
A27: Хмельницька | B27: 7949.9 | C27: к/c | D27: Khmelnytskiy
A28: Черкаська | B28: 1493.4 | C28: 1527.7 | D28: Cherkasy
A29: Чернівецька | B29: 1864.3 | C29: к/c | D29: Chernivtsi
A30: Чернігівська | B30: 913.7 | C30: к/c | D30: Chernihiv
A31: м.Київ | B31: 4447.9 | C31: к/c | D31: city Kyiv
A32: м.Севастополь | B32: … | C32: … | D32: city Sevastopоl

Sheet 29
A1: 1.17. Відпуск електричної енергії генеруючими джерелами
A2: за регіонами у 2020 році
A3: Generating Sources Distribution of Electricity by regions 2020
E4: (тис.кВт∙год / thnd.kW∙h)
B5: Відпуск електричної енергії, усього | C5: у тому числі
C6: including
C7: електро-станціями | D7: іншими установками
B8: Heating energy distribution, total | C8: electricity plants | D8: others
A9: Україна | B9: 137196988.3 | C9: 136899225.3 | D9: 297763 | E9: Ukraine
A10: Автономна Республіка Крим | B10: … | C10: … | D10: … | E10: Autonomous Republic of Crimea
A11: Вінницька | B11: 3128646 | C11: к/с | D11: к/с | E11: Vinnytsya
A12: Волинська | B12: 56901.8 | C12: 56901.8 | D12: − | E12: Volyn
A13: Дніпропетровська | B13: 5457463.1 | C13: 5442520.9 | D13: 14942.2 | E13: Dnipropetrovsk
A14: Донецька | B14: 11433598.9 | C14: 11433598.9 | D14: − | E14: Donetsk
A15: Житомирська | B15: 95951 | C15: 95863.7 | D15: 87.3 | E15: Zhytomyr
A16: Закарпатська | B16: 460496 | C16: к/с | D16: к/с | E16: Zakarpattya
A17: Запорізька | B17: 35576386.4 | C17: 35561998.2 | D17: 14388.2 | E17: Zaporizhzhya
A18: Івано-Франківська | B18: 6324140.1 | C18: 6324104.2 | D18: 35.9 | E18: Ivano-Frankivsk
A19: Київська | B19: 3829661.2 | C19: 3784717.2 | D19: 44944 | E19: Kyiv
A20: Кіровоградська | B20: 997078.5 | C20: к/с | D20: к/с | E20: Kirovohrad
A21: Луганська | B21: к/с | C21: к/с | D21: − | E21: Luhansk
A22: Львівська | B22: 2307836.1 | C22: 2307809.3 | D22: 26.8 | E22: Lviv
A23: Миколаївська | B23: 19793960.3 | C23: 19792245.6 | D23: 1714.7 | E23: Mykolayiv
A24: Одеська | B24: 628409.9 | C24: 619975.9 | D24: 8434 | E24: Odesa
A25: Полтавська | B25: 719493.5 | C25: 640980.2 | D25: 78513.3 | E25: Poltava
A26: Рівненська | B26: 15909660.5 | C26: 15906838.3 | D26: 2822.2 | E26: Rivne
A27: Сумська | B27: к/с | C27: к/с | D27: к/с | E27: Sumy
A28: Тернопільська | B28: 112401.9 | C28: 112238.9 | D28: 163 | E28: Ternopyl
A29: Харківська | B29: 5751742.5 | C29: 5684355.7 | D29: 67386.8 | E29: Kharkiv
A30: Херсонська | B30: 2318435.1 | C30: 2304794.6 | D30: 13640.5 | E30: Kherson
A31: Хмельницька | B31: 10898842.6 | C31: 10898810.6 | D31: 32 | E31: Khmelnytskiy
A32: Черкаська | B32: 1354407.6 | C32: 1354407.6 | D32: − | E32: Cherkasy
A33: Чернівецька | B33: 2008441.4 | C33: 2008402.9 | D33: 38.5 | E33: Chernivtsi
A34: Чернігівська | B34: 812124.2 | C34: 812118.6 | D34: 5.6 | E34: Chernihiv
A35: м.Київ | B35: 5533998.7 | C35: 5517404 | D35: 16594.7 | E35: city Kyiv
A36: м.Севастополь | B36: … | C36: … | D36: … | E36: city Sevastopоl

Sheet 30
A1: 1.18. Відпуск теплової енергії генеруючими джерелами
A2: за регіонами у 2020 році
A3: Generating Sources Distribution of Heating Energy by regions 2020
E4: (Гкал / Gcal)
B5: Відпуск теплової енергії, усього | C5: у тому числі
C6: including
C7: електро-станціями | D7: теплогене-руючі станцї або установки, котельні | E7: іншими установками
B8: Heating energy distribution, total | C8: electricity plants | D8: heat plants | E8: others
A9: Україна | B9: 88954106 | C9: 35117195.3 | D9: 52954385.1 | E9: 882525.6 | F9: Ukraine
A10: Автономна Республіка Крим | B10: … | C10: … | D10: … | E10: … | F10: Autonomous Republic of Crimea
A11: Вінницька | B11: 2483165.8 | C11: 567000.7 | D11: 1896858.6 | E11: 19306.5 | F11: Vinnytsya
A12: Волинська | B12: 1388591.7 | C12: к/с | D12: 1345655.4 | E12: к/с | F12: Volyn
A13: Дніпропетровська | B13: 10517921.7 | C13: 4110347.1 | D13: 6206812.9 | E13: 200761.7 | F13: Dnipropetrovsk
A14: Донецька | B14: 7070724.1 | C14: 3921428.5 | D14: 3107222.2 | E14: 42073.4 | F14: Donetsk
A15: Житомирська | B15: 1701814.9 | C15: 70619 | D15: 1625318.4 | E15: 5877.5 | F15: Zhytomyr
A16: Закарпатська | B16: 384344.2 | C16: к/с | D16: 314098.4 | E16: к/с | F16: Zakarpattya
A17: Запорізька | B17: 4543293.4 | C17: 1331191.6 | D17: 3191354.2 | E17: 20747.6 | F17: Zaporizhzhya
A18: Івано-Франківська | B18: 2250182.6 | C18: 1268585.4 | D18: 941061.9 | E18: 40535.3 | F18: Ivano-Frankivsk
A19: Київська | B19: 3585611.9 | C19: 757349 | D19: 2819499.3 | E19: 8763.6 | F19: Kyiv
A20: Кіровоградська | B20: 1539840 | C20: 372950.9 | D20: 1137196.5 | E20: 29692.6 | F20: Kirovohrad
A21: Луганська | B21: 1768577 | C21: 820378 | D21: 946339.1 | E21: 1859.9 | F21: Luhansk
A22: Львівська | B22: 3523794.2 | C22: 1197751.5 | D22: 2316051.3 | E22: 9991.4 | F22: Lviv
A23: Миколаївська | B23: 4623393.1 | C23: 3378972 | D23: 1230543.5 | E23: 13877.6 | F23: Mykolayiv
A24: Одеська | B24: 3255140.9 | C24: 428268.8 | D24: 2792999.9 | E24: 33872.2 | F24: Odesa
A25: Полтавська | B25: 3936423.8 | C25: 1585604 | D25: 2328331.5 | E25: 22488.3 | F25: Poltava
A26: Рівненська | B26: 3353428.5 | C26: 2070026.9 | D26: 1246846 | E26: 36555.6 | F26: Rivne
A27: Сумська | B27: 2157979.6 | C27: 920626.6 | D27: 1225933.9 | E27: 11419.1 | F27: Sumy
A28: Тернопільська | B28: 906148.9 | C28: к/с | D28: 835263.9 | E28: к/с | F28: Ternopyl
A29: Харківська | B29: 8282497 | C29: 2891604.8 | D29: 5355783.9 | E29: 35108.3 | F29: Kharkiv
A30: Херсонська | B30: 1159905.1 | C30: к/с | D30: 856638.9 | E30: к/с | F30: Kherson
A31: Хмельницька | B31: 1949307.8 | C31: 527627 | D31: 1416418 | E31: 5262.8 | F31: Khmelnytskiy
A32: Черкаська | B32: 3404875.9 | C32: 1564445 | D32: 1772800.6 | E32: 67630.3 | F32: Cherkasy
A33: Чернівецька | B33: 503399.4 | C33: − | D33: 499624.7 | E33: 3774.7 | F33: Chernivtsi
A34: Чернігівська | B34: 1608011.7 | C34: к/с | D34: 1205194.3 | E34: к/с | F34: Chernihiv
A35: м.Київ | B35: 13055732.8 | C35: 6498120.1 | D35: 6340537.8 | E35: 217074.9 | F35: city Kyiv
A36: м.Севастополь | B36: … | C36: … | D36: … | E36: … | F36: city Sevastopоl

Sheet 31
A1: 1.19. Установлена потужність джерел постачання енергії за регіонами у 2020 році
A2: Сapacity of power plants by regions in 2020
B4: Установлена потужність електростанцій, тис.кВт | C4: Установлена теплова потужність, Гкал / год
B5: Power plants capacity, thsd.kW | C5: Heat capacity, Gcal/h
A6: Україна | B6: 55137.8425 | C6: 113384.3 | D6: Ukraine
A7: Автономна Республіка Крим | B7: … | C7: … | D7: Autonomous Republic of Crimea
A8: Вінницька | B8: 2158.5267 | C8: 3416.3 | D8: Vinnytsya
A9: Волинська | B9: 20.906 | C9: 1564.6 | D9: Volyn
A10: Дніпропетровська | B10: 4975.5674 | C10: 16286.8 | D10: Dnipropetrovsk
A11: Донецька | B11: 6723.108 | C11: 10007.7 | D11: Donetsk
A12: Житомирська | B12: 195.3281 | C12: 2278.2 | D12: Zhytomyr
A13: Закарпатська | B13: 281.0305 | C13: 258.2 | D13: Zakarpattya
A14: Запорізька | B14: 11311.7519 | C14: 6796.9 | D14: Zaporizhzhya
A15: Івано-Франківська | B15: 2877.868 | C15: 3407.8 | D15: Ivano-Frankivsk
A16: Київська | B16: 3007.4882 | C16: 5016.1 | D16: Kyiv
A17: Кіровоградська | B17: 928.9805 | C17: 2765.9 | D17: Kirovohrad
A18: Луганська | B18: 1612.7992 | C18: 3232.4 | D18: Luhansk
A19: Львівська | B19: 1098.8002 | C19: 4237.6 | D19: Lviv
A20: Миколаївська | B20: 4383.4698 | C20: 2892.4 | D20: Mykolayiv
A21: Одеська | B21: 479.1015 | C21: 4081.2 | D21: Odesa
A22: Полтавська | B22: 496.4269 | C22: 5095.1 | D22: Poltava
A23: Рівненська | B23: 2893.6148 | C23: 3130.3 | D23: Rivne
A24: Сумська | B24: 219.558 | C24: 3290.4 | D24: Sumy
A25: Тернопільська | B25: 127.9539 | C25: 1850.9 | D25: Ternopyl
A26: Харківська | B26: 3235.5772 | C26: 9718.7 | D26: Kharkiv
A27: Херсонська | B27: 1236.9653 | C27: 1526.9 | D27: Kherson
A28: Хмельницька | B28: 2385.4097 | C28: 2666.9 | D28: Khmelnytskiy
A29: Черкаська | B29: 803.8065 | C29: 3953.9 | D29: Cherkasy
A30: Чернівецька | B30: 1750.2127 | C30: 1125 | D30: Chernivtsi
A31: Чернігівська | B31: 233.3121 | C31: 1899.3 | D31: Chernihiv
A32: м.Київ | B32: 1700.2794 | C32: 12884.8 | D32: city Kyiv
A33: м.Севастополь | B33: … | C33: … | D33: city Sevastopоl

Sheet 32
A1: 1.20. Установлена потужність джерел постачання енергії за типами
A2: електростанцій за 2020 рік
A3: Setted Capacity of generating power plants by the types of power
A4: plants in 2020
A6: Типи генеруючих підприємств | B6: Установлена потужність електростанцій, тис.кВт | C6: Установлена потужність електростанцій, Гкал / год | D6: Tipes of generating enterprises
B7: Power plants capacity, thsd.kW | C7: Power plants capacity, Gcal/h
A9: Усього | B9: 55137.8425 | C9: 113384.3 | D9: Total
A10: у тому числі | D10: including
A11: теплові електростанції | B11: 22311.35107 | C11: 4207.1 | D11: heat power plants
A12: теплоелектроцентраль | B12: 5890.117 | C12: 29895.8 | D12: combined heat and power plants
A13: атомні електростанції | B13: 13835 | C13: 2596 | D13: nuclear power plants
A14: гідроелектростанції | B14: 6334.7404 | C14: − | D14: hydro power plants
A15: теплоцентралі (котельні) | B15: − | C15: 70484.8 | D15: heat plants
A16: утилізаційні установки | B16: 37.472 | C16: 4357.7 | D16: utilization units
A17: інші електростанції | B17: 6729.1614 | C17: 1842.9 | D17: other power plants
A18: з них | D18: of which
A19: вітрові електростанції | B19: 1110.405 | C19: − | D19: wind power plants
A20: сонячні електростанції | B20: 5193.6803 | C20: − | D20: solar power plants

Sheet 33-36
A1: 1.21. Використання електроенергії за 2020 рік
A2: Electricity use in 2020
H3: (тис.кВт∙год / thsd.kW∙h)
A4: Види економічної діяльності | B4: Обсяг використання електроенергії, усього | C4: у тому числі | G4: Втрати електроенергії в електромережах енергосистем | H4: Economic activities
C5: including
C6: на виробництво продукції (виконання робіт) | D6: на власні потреби енерго-генеруючих підприємств (установок) | E6: електро-енергії ГАЕС на заряд, тощо | F6: електро-енергії в системах охоло-дження
B7: Total electricity use | G7: Electricity losses in grid system
C8: production of goods (works) | D8: own use of energy generation enterprises (units) | E8: electricity used for pumped hydro | F8: electricity used for cooling
A9: Усього | B9: 83888551.3 | C9: 57605869.3 | D9: 12005520 | E9: к/с | F9: 541924 | G9: 10520989.5 | H9: Total
A10: Сільське господарство, лісове господарство та рибне господарство | B10: 2111363.3 | C10: 1911507.2 | D10: 7642.2 | E10: − | F10: 22296.2 | G10: 2260.1 | H10: Agriculture, Forestry and Fishing
A11: Промисловість | B11: 65655777.5 | C11: 49459715.7 | D11: 11955751.7 | E11: к/с | F11: 416244.7 | G11: 10445948.2 | H11: Industry
A12: Добувна промисловість і розроблення кар’єрів | B12: 12299477.1 | C12: 12191604.4 | D12: 4551.5 | E12: − | F12: к/с | G12: 11183.3 | H12: Mining and Quarrying
A13: Добування кам’яного та бурого вугілля | B13: 1963698.1 | C13: 1939511.2 | D13: к/с | E13: − | F13: − | G13: 3135.2 | H13: Mining of coal and lignite
A14: Добування сирої нафти | B14: 382367.8 | C14: 357191.1 | D14: к/с | E14: − | F14: − | G14: к/с | H14: Mining of coal and lignite
A15: Добування природного газу | B15: 249439.2 | C15: 239899 | D15: 2641.4 | E15: − | F15: к/с | G15: 232 | H15: Extraction of crude petroleum and natural gas
A16: Добування металевих руд | B16: 9109102 | C16: 9086397.5 | D16: − | E16: − | F16: − | G16: к/с | H16: Mining of metal ores
A17: Добування інших корисних копалин та розроблення кар’єрів | B17: 478781.7 | C17: 456453.1 | D17: к/с | E17: − | F17: к/с | G17: 5261.6 | H17: Other mining and quarrying
A18: Переробна промисловість | B18: 35136565.4 | C18: 33098990.6 | D18: 722306.4 | E18: − | F18: к/с | G18: 132576.2 | H18: Manufacturing
A19: Виробництво харчових продуктів | B19: 4065887.2 | C19: 3614934.6 | D19: 43934.8 | E19: − | F19: 239883 | G19: 5564.3 | H19: Manufacture of food
A20: Виробництво напоїв | B20: 454651.3 | C20: 394055.7 | D20: 666.2 | E20: − | F20: 38693.4 | G20: 464.8 | H20: Manufacture of beverages
A21: Виробництво тютюнових виробів | B21: 67956.7 | C21: 61485.6 | D21: к/с | E21: − | F21: − | G21: − | H21: Manufacture of tobacco products
A22: Текстильне виробництво | B22: 160271.5 | C22: 150207.8 | D22: к/с | E22: − | F22: − | G22: к/с | H22: Manufacture of textiles
A23: Виробництво одягу | B23: 119974 | C23: 107892.8 | D23: 103.5 | E23: − | F23: − | G23: 1456.6 | H23: Manufacture of wearing apparel
A24: Виробництво шкіри, виробів зі шкіри та інших матеріалів | B24: 48009.8 | C24: 45199.7 | D24: к/с | E24: − | F24: − | G24: к/с | H24: Manufacture of leather and related products
G25: Продовження табл. 1.21 / Continued table 1.21
A26: Види економічної діяльності | B26: Обсяг використання електроенергії, усього | C26: у тому числі | G26: Втрати електроенергії в електромережах енергосистем | H26: Economic activities
C27: including
C28: на виробництво продукції (виконання робіт) | D28: на власні потреби енерго-генеруючих підприємств (установок) | E28: електро-енергії ГАЕС на заряд, тощо | F28: електро-енергії в системах охоло-дження
B29: Total electricity use | G29: Electricity losses in grid system
C30: production of goods (works) | D30: own use of energy generation enterprises (units) | E30: electricity used for pumped hydro | F30: electricity used for cooling
A31: Оброблення деревини та виготовлення виробів з деревини та корка, крім меблів; виготовлення виробів із соломки та рослинних матеріалів для плетіння | B31: 798076.8 | C31: 776966.1 | D31: 1150.1 | E31: − | F31: − | G31: 1009.3 | H31: Manufacture of wood and of products of wood and cork, materials except furniture; manufacture of articles of straw and plaiting
A32: Виробництво паперу та паперових виробів | B32: 841657.8 | C32: 798918.7 | D32: 23210.9 | E32: − | F32: − | G32: 3563.3 | H32: Manufacture of paper and paper products
A33: Поліграфічна діяльність, тиражування записаної інформації | B33: 77939.3 | C33: 63173.4 | D33: − | E33: − | F33: − | G33: − | H33: Printing and reproduction of recorded media
A34: Виробництво коксу та продуктів нафтоперероблення | B34: 782653.8 | C34: 733882.1 | D34: к/с | E34: − | F34: − | G34: 9208.5 | H34: Manufacture of coke and refined petroleum products
A35: Виробництво хімічних речовин і хімічної продукції | B35: 3782913.7 | C35: 3569330.7 | D35: 49383.3 | E35: − | F35: 87883.3 | G35: 4012.3 | H35: Manufacture of chemicals and chemical products
A36: Виробництво основних фармацевтичних продуктів і фармацевтичних препаратів | B36: 180702.9 | C36: 140526.4 | D36: к/с | E36: − | F36: 9424.3 | G36: к/с | H36: Manufacture of basic pharmaceutical products and pharmaceutical preparations
A37: Виробництво гумових і пластмасових виробів | B37: 795493.3 | C37: 754551.9 | D37: − | E37: − | F37: 1869.4 | G37: 570.8 | H37: Manufacture of rubber and plastic products
A38: Виробництво іншої неметалевої мінеральної продукції | B38: 2434975.9 | C38: 2370015.9 | D38: 2548.7 | E38: − | F38: к/с | G38: 2708.2 | H38: Manufacture of other non-metallic mineral products
A39: Металургійне виробництво | B39: 16704942 | C39: 15997430.5 | D39: 533242.5 | E39: − | F39: 25630 | G39: 86637.3 | H39: Metallurgical industry
A40: Виробництво готових металевих виробів, крім машин і устатковання | B40: 630845.2 | C40: 584913.4 | D40: к/с | E40: − | F40: 2221.6 | G40: 1894.9 | H40: Manufacture of fabricated metal products, except machinery and equipment
A41: Виробництво комп’ютерів, електронної та оптичної продукції | B41: 98407.5 | C41: 78051.6 | D41: к/с | E41: − | F41: к/с | G41: к/с | H41: Manufacture of computer, electronic and optical products
A42: Виробництво електричного устатковання | B42: 443129.7 | C42: 418366.4 | D42: 5007 | E42: − | F42: 3644.1 | G42: 119.6 | H42: Manufacture of electrical equipment
A43: Виробництво машин та устатковання, н.в.і.у | B43: 1281670.2 | C43: 1206070 | D43: 3722 | E43: − | F43: 210.7 | G43: 7256.4 | H43: Manufacture of machinery and equipment n.e.c.
A44: Виробництво автотранспортних засобів, причепів і напівпричепів | B44: 128465.4 | C44: 115566.1 | D44: − | E44: − | F44: к/с | G44: к/с | H44: Manufacture of transport equipment, trailers
A45: Виробництво інших транспортних засобів | B45: 655459.6 | C45: 624764.8 | D45: к/с | E45: − | F45: к/с | G45: 645.1 | H45: Manufacture of transport equipment, trailers
A46: Виробництво меблів | B46: 169380.3 | C46: 157647.8 | D46: к/с | E46: − | F46: − | G46: 115.8 | H46: Manufacture of furniture
A47: Постачання електроенергії, газу, пари та кондиційованого повітря | B47: 15144729.2 | C47: 1173216.1 | D47: 11224336.6 | E47: к/с | F47: − | G47: 10293078.8 | H47: Electricity, gas, steam and air conditioning supply
A48: Виробництво, передача та розподілення електроенергії | B48: 12966717.5 | C48: 332766.6 | D48: 9952407.9 | E48: к/с | F48: − | G48: 10291433.5 | H48: Electric power generation, transmission and distribution
A49: Виробництво газу; розподілення газоподібного палива через місцеві (локальні) трубопроводи | B49: 41573.4 | C49: 24137.1 | D49: к/с | E49: − | F49: − | G49: к/с | H49: Manufacture of gas; distribution of gaseous fuels through mains
A50: Постачання пари, гарячої води та кондиційованого повітря | B50: 2136438.3 | C50: 816312.4 | D50: к/с | E50: − | F50: − | G50: к/с | H50: Electricity, gas, steam and air conditioning supply
A51: Водопостачання; каналізація, поводження з відходами | B51: 3075005.8 | C51: 2995904.6 | D51: 4557.2 | E51: − | F51: − | G51: 9109.9 | H51: Water supply, sewerage, waste management and remediation
A52: Будівництво | B52: 507045.9 | C52: 356910.7 | D52: 2572.6 | E52: − | F52: к/с | G52: 403.6 | H52: Building
A53: Оптова та роздрібна торгівля; ремонт автотранспортних засобів і мотоциклів | B53: 1614694.3 | C53: 411557.1 | D53: 1897.8 | E53: − | F53: 46834.7 | G53: 320.9 | H53: Wholesale and retail trade and repair of motor vehicles and motorcycles
A54: Транспорт, складське господарство, поштова та кур`єрська діяльність | B54: 5431985.4 | C54: 3659640.4 | D54: 19658.9 | E54: − | F54: 9837 | G54: 69589.5 | H54: Transportation and storage
A55: Тимчасове розміщування й організація харчування | B55: 270085.9 | C55: 53548.4 | D55: к/с | E55: − | F55: 621.2 | G55: 17 | H55: Food and beverage service activities
A56: Інформація та телекомунікації | B56: 593395.6 | C56: 160109.4 | D56: к/с | E56: − | F56: − | G56: 7.4 | H56: Information and communication
A57: Фінансова та страхова діяльність | B57: 129764 | C57: 34113.9 | D57: к/с | E57: − | F57: − | G57: − | H57: Financial and insurance activities
A58: Операції з нерухомим майном | B58: 2195246.6 | C58: 481800.5 | D58: 576.9 | E58: − | F58: 36519.5 | G58: 405.2 | H58: Real estate activities
A59: Професійна, наукова та технічна діяльність | B59: 281752.9 | C59: 73115.3 | D59: к/с | E59: − | F59: − | G59: 50.3 | H59: Professional, scientific and technical activities
A60: Діяльність у сфері адміністративного та допоміжного обслуговування | B60: 968974.4 | C60: 424785.4 | D60: 1465.7 | E60: − | F60: к/с | G60: 25.2 | H60: Administrative and support service activities
A61: Державне управління й оборона; обов`язкове соціальне страхування | B61: 1708885.2 | C61: 503650.2 | D61: 5795.3 | E61: − | F61: − | G61: 810.6 | H61: Public administration and defence; compulsory social security
A62: Освіта | B62: 581530 | C62: 21128.1 | D62: 3301.4 | E62: − | F62: − | G62: 192.5 | H62: Education
A63: Охорона здоров`я та надання соціальної допомоги | B63: 1708685.6 | C63: 44586.3 | D63: 2327.9 | E63: − | F63: к/с | G63: 469.1 | H63: Human health and social work activities
A64: Мистецтво, спорт, розваги та відпочинок | B64: 129364.7 | C64: 9700.7 | D64: к/с | E64: − | F64: − | G64: 489.9 | H64: Arts, entertainment and recreation
A65: Надання інших видів послуг | B65: − | C65: − | D65: − | E65: − | F65: − | G65: − | H65: Other service activities

Sheet 37-39
A1: 1.22. Використання теплоенергії за 2020 рік
A2: Heat use in 2020
F3: (Гкал / Gcal)
A4: Види економічної діяльності | B4: Обсяг використання теплоенергії, усього | C4: у тому числі | E4: Втрати теплоенергії в тепломережах енергосистем | F4: Economic activities
C5: including
C6: на виробництво продукції (виконання робіт) | D6: на власні потреби енерго-генеруючих підприємств (установок)
B7: Total heat use | C7: production of goods (works) | D7: own use of energy generating (enterprises units) | E7: Heat losses in the networks
A8: Усього | B8: 56501836.1 | C8: 33882002.8 | D8: 11557301.7 | E8: 10283884 | F8: Total
A9: Сільське господарство, лісове господарство та рибне господарство | B9: 1736733.4 | C9: 1515954.8 | D9: к/с | E9: 1247.1 | F9: Agriculture, Forestry and Fishing
A10: Промисловість | B10: 43625916.6 | C10: 30829019.5 | D10: 11442082.6 | E10: 10261848.7 | F10: Industry
A11: Добувна промисловість і розроблення кар’єрів | B11: 1752614.8 | C11: 1619237.1 | D11: 21132.4 | E11: 4948.4 | F11: Mining and Quarrying
A12: Добування кам’яного та бурого вугілля | B12: 587122.3 | C12: 541215.4 | D12: к/с | E12: 4948.4 | F12: Mining of coal and lignite
A13: Добування сирої нафти | B13: 158699.5 | C13: 110199 | D13: к/с | E13: − | F13: Mining of coal and lignite
A14: Добування природного газу | B14: 253043 | C14: 244923.7 | D14: к/с | E14: − | F14: Extraction of crude petroleum and natural gas
A15: Добування металевих руд | B15: 539927.7 | C15: 529140.7 | D15: к/с | E15: − | F15: Mining of metal ores
A16: Добування інших корисних копалин та розроблення кар’єрів | B16: 167862.5 | C16: 152704.9 | D16: к/с | E16: − | F16: Other mining and quarrying
A17: Переробна промисловість | B17: 38031882.2 | C17: 28481578.5 | D17: 8580412 | E17: 909776.9 | F17: Manufacturing
A18: Виробництво харчових продуктів | B18: 7799014 | C18: 7341842.1 | D18: 274909.7 | E18: 15990.7 | F18: Manufacture of food
A19: Виробництво напоїв | B19: 552350.3 | C19: 505225.8 | D19: 8293.4 | E19: к/с | F19: Manufacture of beverages
A20: Виробництво тютюнових виробів | B20: 51878 | C20: 42920 | D20: − | E20: − | F20: Manufacture of tobacco products
A21: Текстильне виробництво | B21: 55433.4 | C21: 51214.5 | D21: − | E21: к/с | F21: Manufacture of textiles
A22: Виробництво одягу | B22: 94611 | C22: 83687 | D22: к/с | E22: − | F22: Manufacture of wearing apparel
A23: Виробництво шкіри, виробів зі шкіри та інших матеріалів | B23: 24827.5 | C23: 23008 | D23: − | E23: к/с | F23: Manufacture of leather and related products
A24: Оброблення деревини та виготовлення виробів з деревини та корка, крім меблів; виготовлення виробів із соломки та рослинних матеріалів для плетіння | B24: 967422.4 | C24: 915735.7 | D24: 7842.4 | E24: 433.6 | F24: Manufacture of wood and of products of wood and cork, materials except furniture; manufacture of articles of straw and plaiting
A25: Виробництво паперу та паперових виробів | B25: 1365416.1 | C25: 1288412.5 | D25: 55210.7 | E25: к/с | F25: Manufacture of paper and paper products
E26: Продовження табл. 1.22 / Continued table 1.22
A27: Види економічної діяльності | B27: Обсяг використання теплоенергії, усього | C27: у тому числі | E27: Втрати теплоенергії в тепломережах енергосистем | F27: Economic activities
C28: including
C29: на виробництво продукції (виконання робіт) | D29: на власні потреби енерго-генеруючих підприємств (установок)
B31: Total heat use | C31: production of goods (works) | D31: own use of energy generating (enterprises units) | E31: Heat losses in the networks
A32: Поліграфічна діяльність, тиражування записаної інформації | B32: 71934.1 | C32: 9693.8 | D32: − | E32: − | F32: Printing and reproduction of recorded media
A33: Виробництво коксу та продуктів нафтоперероблення | B33: 2861720.7 | C33: 2523698.5 | D33: к/с | E33: к/с | F33: Manufacture of coke and refined petroleum products
A34: Виробництво хімічних речовин і хімічної продукції | B34: 7422040.7 | C34: 7145121.6 | D34: 150734.4 | E34: 289833.6 | F34: Manufacture of chemicals and chemical products
A35: Виробництво основних фармацевтичних продуктів і фармацевтичних препаратів | B35: 172849.3 | C35: 117607 | D35: к/с | E35: − | F35: Manufacture of basic pharmaceutical products and pharmaceutical preparations
A36: Виробництво гумових і пластмасових виробів | B36: 174206.3 | C36: 153640.5 | D36: − | E36: к/с | F36: Manufacture of rubber and plastic products
A37: Виробництво іншої неметалевої мінеральної продукції | B37: 658147.7 | C37: 560656.1 | D37: 4449.2 | E37: 1730.3 | F37: Manufacture of other non-metallic mineral products
A38: Металургійне виробництво | B38: 14590656.3 | C38: 6777676.4 | D38: 7732100.6 | E38: к/с | F38: Metallurgical industry
A39: Виробництво готових металевих виробів, крім машин і устатковання | B39: 170879.7 | C39: 109334.7 | D39: − | E39: к/с | F39: Manufacture of fabricated metal products, except machinery and equipment
A40: Виробництво комп’ютерів, електронної та оптичної продукції | B40: 33083.2 | C40: 16992.9 | D40: к/с | E40: к/с | F40: Manufacture of computer, electronic and optical products
A41: Виробництво електричного устатковання | B41: 138879.1 | C41: 111544.4 | D41: 5808.1 | E41: к/с | F41: Manufacture of electrical equipment
A42: Виробництво машин та устатковання, н.в.і.у | B42: 301843.6 | C42: 261964.3 | D42: 7201.6 | E42: 77717.6 | F42: Manufacture of machinery and equipment n.e.c
A43: Виробництво автотранспортних засобів, причепів і напівпричепів | B43: 32636.5 | C43: 27915 | D43: − | E43: − | F43: Manufacture of motor vehicles, trailers and semi-trailers
A44: Виробництво інших транспортних засобів | B44: 305231.8 | C44: 262141.8 | D44: 7967.8 | E44: 17715.7 | F44: Manufacture of other transport equipment
A45: Виробництво меблів | B45: 68988.2 | C45: 62232.9 | D45: − | E45: к/с | F45: Manufacture of furniture
A46: Постачання електроенергії, газу пари та кондиційованого повітря | B46: 3462479.1 | C46: 406558.3 | D46: 2837943.5 | E46: 9328461.9 | F46: Electricity, gas, steam and air conditioning supply
A47: Виробництво, передача та розподілення електроенергії | B47: 1650319.6 | C47: 161584 | D47: 1385888.7 | E47: 941566.6 | F47: Electric power generation, transmission and distribution
A48: Виробництво газу; розподілення газоподібного палива через місцеві (локальні) трубопроводи | B48: 96612.8 | C48: 48174 | D48: к/с | E48: − | F48: Manufacture of gas; distribution of gaseous fuels through mains
A49: Постачання пари, гарячої води та кондиційованого повітря | B49: 1715546.7 | C49: 196800.3 | D49: к/с | E49: 8386895.3 | F49: Electricity, gas, steam and air conditioning supply
A50: Водопостачання; каналізація, поводження з відходами | B50: 378940.5 | C50: 321645.6 | D50: 2594.7 | E50: 18661.5 | F50: Water supply, sewerage, waste management and remediation
A51: Будівництво | B51: 121723.9 | C51: 48999.8 | D51: к/с | E51: − | F51: Building
A52: Оптова та роздрібна торгівля; ремонт автотранспортних засобів і мотоциклів | B52: 193713.7 | C52: 52813.1 | D52: к/с | E52: к/с | F52: Wholesale and retail trade and repair of motor vehicles and motorcycles
A53: Транспорт, складське господарство, поштова та кур’єрська діяльність | B53: 1286206.8 | C53: 610075.9 | D53: 89774.8 | E53: 2375.5 | F53: Transportation and storage
A54: Тимчасове розміщування й організація харчування | B54: 113057.8 | C54: 34374.7 | D54: − | E54: − | F54: Food and beverage service activities
A55: Інформація та телекомунікації | B55: 112995.9 | C55: 31187.4 | D55: − | E55: 52.1 | F55: Information and communication
A56: Фінансова та страхова діяльність | B56: 70733.9 | C56: 33107.1 | D56: к/с | E56: − | F56: Financial and insurance activities
A57: Операції з нерухомим майном | B57: 594172 | C57: 121806.1 | D57: − | E57: к/с | F57: Real estate activities
A58: Професійна, наукова та технічна діяльність | B58: 268829.3 | C58: 29849.4 | D58: к/с | E58: 408.8 | F58: Professional, scientific and technical activities
A59: Діяльність у сфері адміністративного та допоміжного обслуговування | B59: 257807.2 | C59: 126461.1 | D59: 269.5 | E59: 1665.9 | F59: Administrative and support service activities
A60: Державне управління й оборона; обов`язкове соціальне страхування | B60: 3598625.2 | C60: 152652.6 | D60: 3322.9 | E60: 8184.4 | F60: Public administration and defence; compulsory social security
A61: Освіта | B61: 2238749.3 | C61: 149011.3 | D61: 2791.2 | E61: 4501.1 | F61: Education
A62: Охорона здоров`я та надання соціальної допомоги | B62: 2105694 | C62: 129433.8 | D62: к/с | E62: 581.8 | F62: Human health and social work activities
A63: Мистецтво, спорт, розваги та відпочинок | B63: 176877.1 | C63: 17256.2 | D63: − | E63: к/с | F63: Arts, entertainment and recreation
A64: Надання інших видів послуг | B64: − | C64: − | D64: − | E64: − | F64: Other service activities

Sheet Р2_40
A22: 2. Основні напрями використання палива за регіонами у 2020 році
C24: The main ways of fuel use in regions, 2020

Sheet 41-42
A1: 2.1. Використання палива в Україні
A2: Fuel Consumption in Ukraine
B4: Одиниці виміру | C4: Усього | D4: у тому числі
D5: including
D6: на пере-творення в інші види палива та енергію | E6: на неенер- гетичні цілі (як сировина матеріал) | F6: кінцеве споживання | G6: втрати при транспор-туванні, розподілі та зберіганні
B7: Unit | C7: Total | D7: transfor-mation into other types of fuel and energy | E7: non-energy use (raw matherial) | F7: final consumption | G7: transportation, distribution and storage losses
A9: Вугілля кам’яне | B9: т / t | C9: 37999605.2 | D9: 33854379.5 | E9: 144077 | F9: 3995205.7 | G9: 5943 | H9: Hard coal
B10: т у.п. / tsc | C10: 28499703.9 | D10: =D9*0.75 -> 25390784.62 | E10: 108057.75 | F10: 2996404.275 | G10: 4457.25
A11: Вугілля буре | B11: т / t | C11: 3015.4 | D11: 2025.3 | E11: к/с | F11: 175.9 | G11: − | H11: Brown coal
B12: т у.п. / tsc | C12: =C11*0.294 -> 886.5276 | D12: 595.4382 | E12: к/с | F12: 51.7146 | G12: −
A13: Нафта сира | B13: т / t | C13: к/с | D13: к/с | E13: к/с | F13: к/с | G13: к/с | H13: Conventional crude oil
B14: т у.п. / tsc | C14: к/с | D14: к/с | E14: к/с | F14: к/с | G14: к/с
A15: Газовий конденсат | B15: т / t | C15: 557565.2 | D15: 552204.9 | E15: к/с | F15: к/с | G15: к/с | H15: Natural gas liquids
B16: т у.п. / tsc | C16: =C15*1.43 -> 797318.236 | D16: =D15*1.43 -> 789653.007 | E16: к/с | F16: к/с | G16: к/с
A17: Природний газ | B17: тис.м³ / thsd. m³ | C17: 29939926.5 | D17: 11655500.5 | E17: 2866520.6 | F17: 14530635.9 | G17: 887269.5 | H17: Natural gas
B18: т у.п. / tsc | C18: =C17*1.16 -> 34730314.74 | D18: 13520380.58 | E18: 3325163.896 | F18: 16855537.64 | G18: 1029232.62
A19: Торф неагломерований паливний | B19: т / t | C19: 281364.9 | D19: 260457 | E19: к/с | F19: к/с | G19: к/с | H19: Peat
B20: т у.п. / tsc | C20: =C19*0.322 -> 90599.4978 | D20: =D19*0.322 -> 83867.154 | E20: к/с | F20: к/с | G20: к/с
A21: Дрова для опалення | B21: м³ щільн./ density, m³ | C21: 3865426 | D21: 1478095.5 | E21: к/с | F21: 2341372.7 | G21: − | H21: Fuelwood
B22: т у.п. / tsc | C22: =C21*0.265 -> 1024337.89 | D22: 391695.3075 | E22: к/с | F22: 620463.7655 | G22: −
A23: Кокс та напівкокс з вугілля кам'яного; кокс газовий | B23: т / t | C23: 10441655.6 | D23: 4249248 | E23: 376491.8 | F23: 5815915.8 | G23: − | H23: Coal coke and coke breeze; gas coke
B24: т у.п. / tsc | C24: =C23*0.973 -> 10159730.9 | D24: 4134518.304 | E24: 366326.5214 | F24: 5658886.073 | G24: −
A25: Бензин моторний | B25: т / t | C25: 1767680 | D25: 149.7 | E25: 33.2 | F25: 1767410.7 | G25: 86.4 | H25: Motor gasoline
B26: т у.п. / tsc | C26: =C25*1.49 -> 2633843.2 | D26: 223.053 | E26: 49.468 | F26: 2633441.943 | G26: 128.736
A27: Газойлі (паливо дизельне) | B27: т / t | C27: 5173850.8 | D27: 12022.7 | E27: 855.3 | F27: 5160680.9 | G27: 291.9 | H27: Road diesel
B28: т у.п. / tsc | C28: =C27*1.45 -> 7502083.66 | D28: 17432.915 | E28: =E27*1.45 -> 1240.185 | F28: 7482987.305 | G28: 423.255
A29: Гас | B29: т / t | C29: 6387.6 | D29: − | E29: 799.4 | F29: 5588.2 | G29: − | H29: Kerosene
B30: т у.п. / tsc | C30: =C29*1.47 -> 9389.772 | D30: − | E30: 1175.118 | F30: 8214.654 | G30: −
A31: Мазути паливні важкі | B31: т / t | C31: 98169.4 | D31: 79469.1 | E31: 852.7 | F31: 17266.7 | G31: к/с | H31: Heavy fuel oil
B32: т у.п. / tsc | C32: =C31*1.37 -> 134492.078 | D32: 108872.667 | E32: 1168.199 | F32: 23655.379 | G32: к/с
A33: Пропан і бутан скраплені | B33: т / t | C33: 1384149.7 | D33: 4823.3 | E33: 226.1 | F33: 1378874.7 | G33: 225.6 | H33: Liquefied petroleum gases (LPG)
B34: т у.п. / tsc | C34: =C33*1.57 -> 2173115.029 | D34: =D33*1.57 -> 7572.581 | E34: =E33*1.57 -> 354.977 | F34: 2164833.279 | G34: =G33*1.57 -> 354.192
A35: Етилен, пропілен, бутилен, бутадієн і гази нафтові інші та вуглеводні газоподібні, крім газу природного | B35: т / t | C35: к/с | D35: − | E35: к/с | F35: к/с | G35: − | H35: Ethylene, propylene, butylene, butadiene other refinery gas and other hydrocarbons, excluding natural gas
B36: т у.п. / tsc | C36: к/с | D36: − | E36: к/с | F36: к/с | G36: −
F37: Продовження табл. 2.1 / Continued table 2.1
B38: Одиниці виміру | C38: Усього | D38: у тому числі
D39: including
D40: на пере-творення в інші види палива та енергію | E40: на неенер- гетичні цілі (як сировина матеріал) | F40: кінцеве споживання | G40: втрати при транспор-туванні, розподілі та зберіганні
B41: Unit | C41: Total | D41: transfor-mation into other types of fuel and energy | E41: non-energy use (raw matherial) | F41: final consumption | G41: transportation, distribution and storage losses
A42: Вазелін нафтовий, парафін, воски нафтові та інші | B42: т / t | C42: 77.5 | D42: − | E42: 75.5 | F42: к/с | G42: − | H42: Oil vaseline, paraffin, oil waxes etc
B43: т у.п. / tsc | C43: =C42*1.479 -> 114.6225 | D43: − | E43: 111.6645 | F43: к/с | G43: −
A44: Брикети, котуни та подібні види твердого палива з вугілля кам’яного | B44: т / t | C44: 3258.5 | D44: 1468.1 | E44: − | F44: к/с | G44: − | H44: Hard coal briquettes
B45: т у.п. / tsc | C45: =C44*0.59 -> 1922.515 | D45: 866.179 | E45: − | F45: к/с | G45: −
A46: Брикети, котуни та подібні види твердого палива з вугілля бурого | B46: т / t | C46: 503.9 | D46: 203.7 | E46: − | F46: 300.2 | G46: − | H46: Brown coal briquettes (BKB)
B47: т у.п. / tsc | C47: =C46*0.564 -> 284.1996 | D47: 114.8868 | E47: − | F47: 169.3128 | G47: −
A48: Брикети, котуни та подібні види твердого палива з торфу | B48: т / t | C48: 133623 | D48: 64848.9 | E48: − | F48: 68027.1 | G48: к/с | H48: Peat briquettes
B49: т у.п. / tsc | C49: =C48*0.5 -> 66811.5 | D49: 32424.45 | E49: − | F49: 34013.55 | G49: к/с
A50: Бітум нафтовий (включаючи сланцевий) | B50: т / t | C50: 397492 | D50: − | E50: 381291.7 | F50: к/с | G50: − | H50: Oil bitumen (including shale)
B51: т у.п. / tsc | C51: =C50*1.35 -> 536614.2 | D51: − | E51: 514743.795 | F51: к/с | G51: −
A52: Кокс нафтовий (включаючи сланцевий) | B52: т / t | C52: к/с | D52: − | E52: к/с | F52: к/с | G52: − | H52: Petroleum coke (including shale)
B53: т у.п. / tsc | C53: к/с | D53: − | E53: к/с | F53: к/с | G53: −
A54: Оливи та мастила нафтові; дистиляти нафтові важкі | B54: т / t | C54: 218438 | D54: к/с | E54: 214224.4 | F54: 3157.8 | G54: − | H54: Lubricants and heavy oil distillates
B55: т у.п. / tsc | C55: =C54*1.37 -> 299260.06 | D55: к/с | E55: 293487.428 | F55: 4326.186 | G55: −
A56: Паливні брикети та гранули з деревини та іншої природної сировини | B56: т / t | C56: 471771.3 | D56: 394278.6 | E56: к/с | F56: 52474.1 | G56: к/с | H56: Fuel briquettes and pellets made of wood and other natural materials
B57: т у.п. / tsc | C57: =C56*0.573 -> 270324.9549 | D57: 225921.6378 | E57: к/с | F57: =F56*0.573 -> 30067.6593 | G57: к/с
A58: Коксовий газ | B58: тис.м³ / thsd. m³ | C58: 3984999.9 | D58: 1101747.3 | E58: − | F58: 2883252.6 | G58: − | H58: Coke oven gas
B59: т у.п. / tsc | C59: =C58*0.571 -> 2275434.943 | D59: 629097.7083 | E59: − | F59: 1646337.235 | G59: −
A60: Доменний газ | B60: тис.м³ / thsd. m³ | C60: 24169907.2 | D60: 8268041.4 | E60: к/с | F60: 15858340.8 | G60: − | H60: Blast furnace gas
B61: т у.п. / tsc | C61: =C60*0.146 -> 3528806.451 | D61: 1207134.044 | E61: к/с | F61: 2315317.757 | G61: −

Sheet 43
A1: 2.2. Використання вугілля
A2: Coal Сonsumption | N2: Донецька / Donetsk | O2: 13061.4089
G3: (тис.т / thsd.t) | N3: Дніпропетровська / Dnipropetrovsk | O3: 8711.6158
N4: Запорізька / Zaporizhzhya | O4: 4471.998
N5: Івано-Франківська / Ivano-Frankivsk | O5: 3873.7713
N6: Харківська / Kharkiv | O6: 1673.4525
N7: Вінницька / Vinnytsya | O7: 1511.8722
N8: Київська / Kyiv | O8: 1118.9303
N9: Львівська / Lviv | O9: 1023.4254
N10: Луганська / Luhansk | O10: 588.9422
N11: Черкаська / Cherkasy | O11: 369.1498
N12: Хмельницька / Khmelnytskiy | O12: 360.1922
N13: м.Київ / city Kyiv | O13: 320.3504
N14: Чернігівська / Chernihiv | O14: 265.168
N15: Кіровоградська / Kirovohrad | O15: 204.4636
N16: Миколаївська / Mykolayiv | O16: 150.0393
N17: Рівненська / Rivne | O17: 121.094
N18: Сумська / Sumy | O18: 65.0263
N19: Херсонська / Kherson | O19: 21.3968
N20: Одеська / Odesa | O20: 16.507
N21: Волинська / Volyn | O21: 13.9638
N22: Закарпатська / Zakarpattya | O22: 13.6071
N23: Полтавська / Poltava | O23: 13.4122
N24: Чернівецька / Chernivtsi | O24: 12.17
N25: Тернопільська / Ternopyl | O25: 11.3312
N26: Житомирська / Zhytomyr | O26: 9.3323

Sheet 44
A1: 2.3. Використання газу природного
A2: Natural Gas Сonsumption | J2: м.Київ / city Kyiv | K2: 3711.3813 | M2: Вінницька / Vinnytsya
H3: (млн.м³ / mln.m³) | J3: Дніпропетровська / Dnipropetrovsk | K3: 3401.6307 | M3: Волинська / Volyn
J4: Харківська / Kharkiv | K4: 2883.7885 | M4: Дніпропетровська / Dnipropetrovsk
J5: Донецька / Donetsk | K5: 1984.3974 | M5: Донецька / Donetsk
J6: Одеська / Odesa | K6: 1957.3593 | M6: Житомирська / Zhytomyr
J7: Київська / Kyiv | K7: 1767.7194 | M7: Закарпатська / Zakarpattya
J8: Черкаська / Cherkasy | K8: 1687.9077 | M8: Запорізька / Zaporizhzhya
J9: Полтавська / Poltava | K9: 1531.0081 | M9: Івано-Франківська / Ivano-Frankivsk
J10: Львівська / Lviv | K10: 1236.0486 | M10: Київська / Kyiv
J11: Луганська / Luhansk | K11: 1223.2107 | M11: Кіровоградська / Kirovohrad
J12: Запорізька / Zaporizhzhya | K12: 1000.788 | M12: Луганська / Luhansk
J13: Миколаївська / Mykolayiv | K13: 982.9932 | M13: Львівська / Lviv
J14: Івано-Франківська / Ivano-Frankivsk | K14: 732.0984 | M14: Миколаївська / Mykolayiv
J15: Сумська / Sumy | K15: 692.0177 | M15: Одеська / Odesa
J16: Вінницька / Vinnytsya | K16: 691.3164 | M16: Полтавська / Poltava
J17: Чернігівська / Chernihiv | K17: 618.2038 | M17: Рівненська / Rivne
J18: Хмельницька / Khmelnytskiy | K18: 615.1441 | M18: Сумська / Sumy
J19: Житомирська / Zhytomyr | K19: 522.9214 | M19: Тернопільська / Ternopyl
J20: Рівненська / Rivne | K20: 514.7609 | M20: Харківська / Kharkiv
J21: Тернопільська / Ternopyl | K21: 466.753 | M21: Херсонська / Kherson
J22: Закарпатська / Zakarpattya | K22: 395.6686 | M22: Хмельницька / Khmelnytskiy
J23: Волинська / Volyn | K23: 382.5681 | M23: Черкаська / Cherkasy
J24: Кіровоградська / Kirovohrad | K24: 340.2646 | M24: Чернівецька / Chernivtsi
J25: Чернівецька / Chernivtsi | K25: 300.7735 | M25: Чернігівська / Chernihiv
J26: Херсонська / Kherson | K26: 299.2031 | M26: м.Київ / city Kyiv

Sheet 45
A1: 2.4. Використання бензину моторного
A2: Motor Gasoline Сonsumption | J2: м.Київ / city Kyiv | K2: 245.5333 | N2: Вінницька / Vinnytsya
J3: Дніпропетровська / Dnipropetrovsk | K3: 162.3422 | N3: Волинська / Volyn
G4: (тис.т / thsd. t) | J4: Київська / Kyiv | K4: 160.0184 | N4: Дніпропетровська / Dnipropetrovsk
J5: Одеська / Odesa | K5: 130.1292 | N5: Донецька / Donetsk
J6: Харківська / Kharkiv | K6: 105.4452 | N6: Житомирська / Zhytomyr
J7: Львівська / Lviv | K7: 96.0688 | N7: Закарпатська / Zakarpattya
J8: Запорізька / Zaporizhzhya | K8: 91.0707 | N8: Запорізька / Zaporizhzhya
J9: Полтавська / Poltava | K9: 69.1812 | N9: Івано-Франківська / Ivano-Frankivsk
J10: Черкаська / Cherkasy | K10: 68.3089 | N10: Київська / Kyiv
J11: Вінницька / Vinnytsya | K11: 57.1519 | N11: Кіровоградська / Kirovohrad
J12: Донецька / Donetsk | K12: 50.9648 | N12: Луганська / Luhansk
J13: Херсонська / Kherson | K13: 46.622 | N13: Львівська / Lviv
J14: Миколаївська / Mykolayiv | K14: 46.0015 | N14: Миколаївська / Mykolayiv
J15: Хмельницька / Khmelnytskiy | K15: 45.7336 | N15: Одеська / Odesa
J16: Закарпатська / Zakarpattya | K16: 45.3864 | N16: Полтавська / Poltava
J17: Сумська / Sumy | K17: 44.5612 | N17: Рівненська / Rivne
J18: Житомирська / Zhytomyr | K18: 44.5433 | N18: Сумська / Sumy
J19: Кіровоградська / Kirovohrad | K19: 42.2945 | N19: Тернопільська / Ternopyl
J20: Івано-Франківська / Ivano-Frankivsk | K20: 39.612 | N20: Харківська / Kharkiv
J21: Волинська / Volyn | K21: 33.4125 | N21: Херсонська / Kherson
J22: Рівненська / Rivne | K22: 33.3361 | N22: Хмельницька / Khmelnytskiy
J23: Чернігівська / Chernihiv | K23: 31.2969 | N23: Черкаська / Cherkasy
J24: Чернівецька / Chernivtsi | K24: 29.3432 | N24: Чернівецька / Chernivtsi
J25: Тернопільська / Ternopyl | K25: 28.7787 | N25: Чернігівська / Chernihiv
J26: Луганська / Luhansk | K26: 20.5435 | N26: м.Київ / city Kyiv

Sheet 46
A1: 2.5. Використання газойлів (дизельного палива)
A2: Road Diesel Consumption | J2: Дніпропетровська / Dnipropetrovsk | K2: 540.6878 | N2: Вінницька / Vinnytsya
G3: (тис.т / thsd. t) | J3: м.Київ / city Kyiv | K3: 432.666 | N3: Волинська / Volyn
J4: Одеська / Odesa | K4: 384.0173 | N4: Дніпропетровська / Dnipropetrovsk
J5: Київська / Kyiv | K5: 356.9026 | N5: Донецька / Donetsk
J6: Полтавська / Poltava | K6: 312.6339 | N6: Житомирська / Zhytomyr
J7: Львівська / Lviv | K7: 278.6789 | N7: Закарпатська / Zakarpattya
J8: Харківська / Kharkiv | K8: 251.0948 | N8: Запорізька / Zaporizhzhya
J9: Вінницька / Vinnytsya | K9: 225.5219 | N9: Івано-Франківська / Ivano-Frankivsk
J10: Миколаївська / Mykolayiv | K10: 190.7497 | N10: Київська / Kyiv
J11: Донецька / Donetsk | K11: 190.1027 | N11: Кіровоградська / Kirovohrad
J12: Запорізька / Zaporizhzhya | K12: 189.162 | N12: Луганська / Luhansk
J13: Черкаська / Cherkasy | K13: 175.0476 | N13: Львівська / Lviv
J14: Житомирська / Zhytomyr | K14: 161.4895 | N14: Миколаївська / Mykolayiv
J15: Хмельницька / Khmelnytskiy | K15: 159.3727 | N15: Одеська / Odesa
J16: Волинська / Volyn | K16: 157.1018 | N16: Полтавська / Poltava
J17: Кіровоградська / Kirovohrad | K17: 154.125 | N17: Рівненська / Rivne
J18: Чернігівська / Chernihiv | K18: 145.5454 | N18: Сумська / Sumy
J19: Івано-Франківська / Ivano-Frankivsk | K19: 135.8422 | N19: Тернопільська / Ternopyl
J20: Рівненська / Rivne | K20: 130.0066 | N20: Харківська / Kharkiv
J21: Тернопільська / Ternopyl | K21: 127.6036 | N21: Херсонська / Kherson
J22: Сумська / Sumy | K22: 118.1726 | N22: Хмельницька / Khmelnytskiy
J23: Херсонська / Kherson | K23: 116.2097 | N23: Черкаська / Cherkasy
J24: Закарпатська / Zakarpattya | K24: 114.6293 | N24: Чернівецька / Chernivtsi
J25: Чернівецька / Chernivtsi | K25: 67.3889 | N25: Чернігівська / Chernihiv
J26: Луганська / Luhansk | K26: 59.0983 | N26: м.Київ / city Kyiv

Sheet 47
A1: 2.6. Використання пропану і бутану скраплених
A2: LPG Consumption | J2: Київська / Kyiv | K2: 137.0935 | N2: Вінницька / Vinnytsya
G3: (тис.т / thsd. t) | J3: Дніпропетровська / Dnipropetrovsk | K3: 135.2481 | N3: Волинська / Volyn
J4: м.Київ / city Kyiv | K4: 128.9107 | N4: Дніпропетровська / Dnipropetrovsk
J5: Харківська / Kharkiv | K5: 107.704 | N5: Донецька / Donetsk
J6: Одеська / Odesa | K6: 93.2109 | N6: Житомирська / Zhytomyr
J7: Полтавська / Poltava | K7: 77.8649 | N7: Закарпатська / Zakarpattya
J8: Запорізька / Zaporizhzhya | K8: 70.019 | N8: Запорізька / Zaporizhzhya
J9: Львівська / Lviv | K9: 59.1239 | N9: Івано-Франківська / Ivano-Frankivsk
J10: Донецька / Donetsk | K10: 56.6657 | N10: Київська / Kyiv
J11: Вінницька / Vinnytsya | K11: 55.3479 | N11: Кіровоградська / Kirovohrad
J12: Черкаська / Cherkasy | K12: 47.5562 | N12: Луганська / Luhansk
J13: Житомирська / Zhytomyr | K13: 44.5115 | N13: Львівська / Lviv
J14: Сумська / Sumy | K14: 44.0781 | N14: Миколаївська / Mykolayiv
J15: Хмельницька / Khmelnytskiy | K15: 41.2213 | N15: Одеська / Odesa
J16: Кіровоградська / Kirovohrad | K16: 40.7766 | N16: Полтавська / Poltava
J17: Херсонська / Kherson | K17: 38.0371 | N17: Рівненська / Rivne
J18: Чернігівська / Chernihiv | K18: 36.983 | N18: Сумська / Sumy
J19: Миколаївська / Mykolayiv | K19: 34.3896 | N19: Тернопільська / Ternopyl
J20: Тернопільська / Ternopyl | K20: 24.8346 | N20: Харківська / Kharkiv
J21: Івано-Франківська / Ivano-Frankivsk | K21: 22.8712 | N21: Херсонська / Kherson
J22: Луганська / Luhansk | K22: 21.4139 | N22: Хмельницька / Khmelnytskiy
J23: Рівненська / Rivne | K23: 20.9973 | N23: Черкаська / Cherkasy
J24: Волинська / Volyn | K24: 18.212 | N24: Чернівецька / Chernivtsi
J25: Закарпатська / Zakarpattya | K25: 17.7355 | N25: Чернігівська / Chernihiv
J26: Чернівецька / Chernivtsi | K26: 9.3432 | N26: м.Київ / city Kyiv

Sheet 48
A1: 2.7. Використання мазутів паливних важких
A2: Heavy Fuel Oil Consumption | J2: Полтавська / Poltava | K2: 34.4068 | N2: Вінницька / Vinnytsya
G3: (тис.т / thsd. t) | J3: Донецька / Donetsk | K3: 16.4649 | N3: Волинська / Volyn
J4: Харківська / Kharkiv | K4: 13.654 | N4: Дніпропетровська / Dnipropetrovsk
J5: Одеська / Odesa | K5: 7.5701 | N5: Донецька / Donetsk
J6: Київська / Kyiv | K6: 3.9383 | N6: Житомирська / Zhytomyr
J7: Вінницька / Vinnytsya | K7: 3.4057 | N7: Закарпатська / Zakarpattya
J8: Житомирська / Zhytomyr | K8: 3.2524 | N8: Запорізька / Zaporizhzhya
J9: Дніпропетровська / Dnipropetrovsk | K9: 3.045 | N9: Івано-Франківська / Ivano-Frankivsk
J10: Хмельницька / Khmelnytskiy | K10: 2.9843 | N10: Київська / Kyiv
J11: Луганська / Luhansk | K11: 2.1572 | N11: Кіровоградська / Kirovohrad
J12: Кіровоградська / Kirovohrad | K12: 1.7763 | N12: Луганська / Luhansk
J13: Рівненська / Rivne | K13: 1.4537 | N13: Львівська / Lviv
J14: м.Київ / city Kyiv | K14: 1.14 | N14: Миколаївська / Mykolayiv
J15: Херсонська / Kherson | K15: 0.9437 | N15: Одеська / Odesa
J16: Черкаська / Cherkasy | K16: 0.7765 | N16: Полтавська / Poltava
J17: Волинська / Volyn | K17: 0.4786 | N17: Рівненська / Rivne
J18: Запорізька / Zaporizhzhya | K18: 0.2971 | N18: Сумська / Sumy
J19: Закарпатська / Zakarpattya | K19: 0.1517 | N19: Тернопільська / Ternopyl
J20: Миколаївська / Mykolayiv | K20: 0.1067 | N20: Харківська / Kharkiv
J21: Чернівецька / Chernivtsi | K21: 0.0926 | N21: Херсонська / Kherson
J22: Івано-Франківська / Ivano-Frankivsk | K22: 0.0604 | N22: Хмельницька / Khmelnytskiy
J23: Чернігівська / Chernihiv | K23: 0.0077 | N23: Черкаська / Cherkasy
J24: Сумська / Sumy | K24: 0.0057 | N24: Чернівецька / Chernivtsi
J25: Львівська / Lviv | K25: 0 | N25: Чернігівська / Chernihiv
J26: Тернопільська / Ternopyl | K26: 0 | N26: м.Київ / city Kyiv

Sheet 49
A1: 2.8. Використання палива
A2: Fuel Consumption | J2: Дніпропетровська / Dnipropetrovsk | K2: 18449.92852 | M2: Вінницька / Vinnytsya
G3: (тис.т у.п. / thsd. tsc) | J3: Донецька / Donetsk | K3: 18207.36325 | M3: Волинська / Volyn
J4: Запорізька / Zaporizhzhya | K4: 9396.983564 | M4: Дніпропетровська / Dnipropetrovsk
J5: Полтавська / Poltava | K5: 6544.931774 | M5: Донецька / Donetsk
J6: Харківська / Kharkiv | K6: 6246.643757 | M6: Житомирська / Zhytomyr
J7: м.Київ / city Kyiv | K7: 6037.440027 | M7: Закарпатська / Zakarpattya
J8: Івано-Франківська / Ivano-Frankivsk | K8: 4204.652148 | M8: Запорізька / Zaporizhzhya
J9: Київська / Kyiv | K9: 4112.099453 | M9: Івано-Франківська / Ivano-Frankivsk
J10: Одеська / Odesa | K10: 3316.87263 | M10: Київська / Kyiv
J11: Львівська / Lviv | K11: 3018.399779 | M11: Кіровоградська / Kirovohrad
J12: Черкаська / Cherkasy | K12: 2870.667473 | M12: Луганська / Luhansk
J13: Вінницька / Vinnytsya | K13: 2606.115424 | M13: Львівська / Lviv
J14: Луганська / Luhansk | K14: 2051.624907 | M14: Миколаївська / Mykolayiv
J15: Миколаївська / Mykolayiv | K15: 1755.059976 | M15: Одеська / Odesa
J16: Хмельницька / Khmelnytskiy | K16: 1555.838511 | M16: Полтавська / Poltava
J17: Чернігівська / Chernihiv | K17: 1474.916143 | M17: Рівненська / Rivne
J18: Сумська / Sumy | K18: 1329.331269 | M18: Сумська / Sumy
J19: Житомирська / Zhytomyr | K19: 1223.92758 | M19: Тернопільська / Ternopyl
J20: Рівненська / Rivne | K20: 1168.230026 | M20: Харківська / Kharkiv
J21: Кіровоградська / Kirovohrad | K21: 1032.724076 | M21: Херсонська / Kherson
J22: Волинська / Volyn | K22: 932.5118776 | M22: Хмельницька / Khmelnytskiy
J23: Закарпатська / Zakarpattya | K23: 871.6541798 | M23: Черкаська / Cherkasy
J24: Тернопільська / Ternopyl | K24: 853.5694102 | M24: Чернівецька / Chernivtsi
J25: Херсонська / Kherson | K25: 698.6651206 | M25: Чернігівська / Chernihiv
J26: Чернівецька / Chernivtsi | K26: 568.0930093 | M26: м.Київ / city Kyiv

Sheet 50
A1: 2.9. Використання теплоенергії
A2: Heating Consumption
G3: (тис.Гкал / thsd.Gcal)
J4: Дніпропетровська / Dnipropetrovsk | K4: 10727.3662 | M4: Вінницька / Vinnytsya
J5: Донецька / Donetsk | K5: 4937.9452 | M5: Волинська / Volyn
J6: Запорізька / Zaporizhzhya | K6: 4710.8206 | M6: Дніпропетровська / Dnipropetrovsk
J7: Миколаївська / Mykolayiv | K7: 3904.3874 | M7: Донецька / Donetsk
J8: Рівненська / Rivne | K8: 2939.676 | M8: Житомирська / Zhytomyr
J9: м.Київ / city Kyiv | K9: 2891.9036 | M9: Закарпатська / Zakarpattya
J10: Київська / Kyiv | K10: 2632.6474 | M10: Запорізька / Zaporizhzhya
J11: Харківська / Kharkiv | K11: 2592.0303 | M11: Івано-Франківська / Ivano-Frankivsk
J12: Черкаська / Cherkasy | K12: 2463.4863 | M12: Київська / Kyiv
J13: Полтавська / Poltava | K13: 2272.6817 | M13: Кіровоградська / Kirovohrad
J14: Вінницька / Vinnytsya | K14: 1868.3575 | M14: Луганська / Luhansk
J15: Івано-Франківська / Ivano-Frankivsk | K15: 1860.4843 | M15: Львівська / Lviv
J16: Львівська / Lviv | K16: 1804.3177 | M16: Миколаївська / Mykolayiv
J17: Одеська / Odesa | K17: 1673.6462 | M17: Одеська / Odesa
J18: Луганська / Luhansk | K18: 1328.5649 | M18: Полтавська / Poltava
J19: Житомирська / Zhytomyr | K19: 1161.972 | M19: Рівненська / Rivne
J20: Кіровоградська / Kirovohrad | K20: 1157.8351 | M20: Сумська / Sumy
J21: Хмельницька / Khmelnytskiy | K21: 1092.3055 | M21: Тернопільська / Ternopyl
J22: Сумська / Sumy | K22: 1052.0278 | M22: Харківська / Kharkiv
J23: Волинська / Volyn | K23: 801.5386 | M23: Херсонська / Kherson
J24: Чернігівська / Chernihiv | K24: 717.43 | M24: Хмельницька / Khmelnytskiy
J25: Херсонська / Kherson | K25: 687.5946 | M25: Черкаська / Cherkasy
J26: Тернопільська / Ternopyl | K26: 577.1141 | M26: Чернівецька / Chernivtsi
J27: Закарпатська / Zakarpattya | K27: 377.4628 | M27: Чернігівська / Chernihiv
J28: Чернівецька / Chernivtsi | K28: 268.2403 | M28: м.Київ / city Kyiv

Sheet 51
A1: 2.10. Використання електроенергії
A2: Electricity Consumption
G3: (млн.кВт·г / mln.kWh)
J4: Дніпропетровська / Dnipropetrovsk | K4: 22012.0148 | M4: Вінницька / Vinnytsya
J5: Донецька / Donetsk | K5: 8901.4843 | M5: Волинська / Volyn
J6: Запорізька / Zaporizhzhya | K6: 7454.9722 | M6: Дніпропетровська / Dnipropetrovsk
J7: м.Київ / city Kyiv | K7: 5551.9466 | M7: Донецька / Donetsk
J8: Полтавська / Poltava | K8: 3822.7014 | M8: Житомирська / Zhytomyr
J9: Харківська / Kharkiv | K9: 3596.4046 | M9: Закарпатська / Zakarpattya
J10: Миколаївська / Mykolayiv | K10: 3299.32 | M10: Запорізька / Zaporizhzhya
J11: Київська / Kyiv | K11: 3014.6476 | M11: Івано-Франківська / Ivano-Frankivsk
J12: Рівненська / Rivne | K12: 2678.3322 | M12: Київська / Kyiv
J13: Івано-Франківська / Ivano-Frankivsk | K13: 2577.8624 | M13: Кіровоградська / Kirovohrad
J14: Одеська / Odesa | K14: 2320.0865 | M14: Луганська / Luhansk
J15: Львівська / Lviv | K15: 2302.9408 | M15: Львівська / Lviv
J16: Кіровоградська / Kirovohrad | K16: 2284.4416 | M16: Миколаївська / Mykolayiv
J17: Чернівецька / Chernivtsi | K17: 1900.6886 | M17: Одеська / Odesa
J18: Черкаська / Cherkasy | K18: 1773.6889 | M18: Полтавська / Poltava
J19: Вінницька / Vinnytsya | K19: 1728.7911 | M19: Рівненська / Rivne
J20: Хмельницька / Khmelnytskiy | K20: 1710.9601 | M20: Сумська / Sumy
J21: Житомирська / Zhytomyr | K21: 1268.4381 | M21: Тернопільська / Ternopyl
J22: Сумська / Sumy | K22: 1196.9322 | M22: Харківська / Kharkiv
J23: Луганська / Luhansk | K23: 1161.0356 | M23: Херсонська / Kherson
J24: Херсонська / Kherson | K24: 997.4882 | M24: Хмельницька / Khmelnytskiy
J25: Чернігівська / Chernihiv | K25: 786.9689 | M25: Черкаська / Cherkasy
J26: Волинська / Volyn | K26: 683.2021 | M26: Чернівецька / Chernivtsi
J27: Закарпатська / Zakarpattya | K27: 443.3512 | M27: Чернігівська / Chernihiv
J28: Тернопільська / Ternopyl | K28: 419.8513 | M28: м.Київ / city Kyiv

Sheet Р3_52
A22: 3. Основні напрями використання палива
A23: за видами економічної діяльності у 2020 році
C25: The main ways of fuel use by
A26: the types of economic in 2020

Sheet 53-55
A1: 3.1. Сільське господарство, лісове господарство та рибне господарство
A2: Agriculture, Forestry and Fishing
B4: Одиниці виміру | C4: Усього | D4: у тому числі
D5: including
D6: на пере-творення в інші види палива та енергію | E6: на неенер- гетичні цілі (як сировина матеріал) | F6: кінцеве споживання | G6: втрати при транспор-туванні, розподілі та зберіганні
B7: Unit | C7: Total | D7: transfor-mation into other types of fuel and energy | E7: non-energy use (raw matherial) | F7: final consumption | G7: transportation, distribution and storage losses
A9: Вугілля кам’яне | B9: т / t | C9: 36106.8 | D9: 28096.5 | E9: − | F9: 8010.3 | G9: − | H9: Hard coal
B10: т у.п. / tsc | C10: 27080.1 | D10: 21072.375 | E10: − | F10: 6007.725 | G10: −
A11: Вугілля буре | B11: т / t | C11: к/с | D11: − | E11: − | F11: к/с | G11: − | H11: Brown coal
B12: т у.п. / tsc | C12: к/с | D12: − | E12: − | F12: к/с | G12: −
A13: Торф неагломерований паливний | B13: т / t | C13: − | D13: − | E13: − | F13: − | G13: − | H13: Peat
B14: т у.п. / tsc | C14: − | D14: − | E14: − | F14: − | G14: −
A15: Брикети, котуни та подібні види твердого палива з вугілля кам’яного | B15: т / t | C15: к/с | D15: к/с | E15: − | F15: − | G15: − | H15: Hard coal briquettes
B16: т у.п. / tsc | C16: к/с | D16: к/с | E16: − | F16: − | G16: −
A17: Брикети, котуни та подібні види твердого палива з вугілля бурого | B17: т / t | C17: к/с | D17: − | E17: − | F17: к/с | G17: − | H17: Brown coal briquettes (BKB)
B18: т у.п. / tsc | C18: к/с | D18: − | E18: − | F18: к/с | G18: −
A19: Брикети, котуни та подібні види твердого палива з торфу | B19: т / t | C19: к/с | D19: к/с | E19: − | F19: 2373.2 | G19: − | H19: Peat briquettes
B20: т у.п. / tsc | C20: к/с | D20: к/с | E20: − | F20: 1186.6 | G20: −
A21: Кокс та напівкокс з вугілля кам'яного, кокс газовий | B21: т / t | C21: − | D21: − | E21: − | F21: − | G21: − | H21: Coal coke and coke breeze; gas coke
B22: т у.п. / tsc | C22: − | D22: − | E22: − | F22: − | G22: −
A23: Пек і кокс пековий | B23: т / t | C23: − | D23: − | E23: − | F23: − | G23: − | H23: Pitch and coal pitch
B24: т у.п. / tsc | C24: − | D24: − | E24: − | F24: − | G24: −
A25: Смоли кам’яновугільні, буровугільні або торф’яні | B25: т / t | C25: − | D25: − | E25: − | F25: − | G25: − | H25: Coal, brown coal or peat tar
B26: т у.п. / tsc | C26: − | D26: − | E26: − | F26: − | G26: −
A27: Коксовий газ | B27: тис.м³ / thsd. m³ | C27: − | D27: − | E27: − | F27: − | G27: − | H27: Coke oven gas
B28: т у.п. / tsc | C28: − | D28: − | E28: − | F28: − | G28: −
A29: Доменний газ | B29: тис.м³ / thsd. m³ | C29: − | D29: − | E29: − | F29: − | G29: − | H29: Blast furnace gas
B30: т у.п. / tsc | C30: − | D30: − | E30: − | F30: − | G30: −
A31: Газ інший (газ, отриманий шляхом газифікації вугілля; газ, отриманий у процесі виробництва феросплавів) | B31: тис.м³ / thsd. m³ | C31: − | D31: − | E31: − | F31: − | G31: − | H31: Other gas obtained during coal gasification and ferrous metals production
B32: т у.п. / tsc | C32: − | D32: − | E32: − | F32: − | G32: −
A33: Газ, отриманий у процесі конверторного виробництва сталі | B33: тис.м³ / thsd. m³ | C33: − | D33: − | E33: − | F33: − | G33: − | H33: The gas obtained in the process of converter steel production
B34: т у.п. / tsc | C34: − | D34: − | E34: − | F34: − | G34: −
F35: Продовження табл. 3.1 / Continued table 3.1
B36: Одиниці виміру | C36: Усього | D36: у тому числі
D37: including
D38: на пере-творення в інші види палива та енергію | E38: на неенер- гетичні цілі (як сировина матеріал) | F38: кінцеве споживання | G38: втрати при транспор-туванні, розподілі та зберіганні
B39: Unit | C39: Total | D39: transfor-mation into other types of fuel and energy | E39: non-energy use (raw matherial) | F39: final consumption | G39: transportation, distribution and storage losses
A41: Природний газ | B41: тис.м³ / thsd. m³ | C41: 333398.1 | D41: 178662.7 | E41: − | F41: 154735.4 | G41: − | H41: Natural gas
B42: т у.п. / tsc | C42: 386741.796 | D42: =1.16*D41 -> 207248.732 | E42: − | F42: =1.16*F41 -> 179493.064 | G42: −
A43: Нафта сира, у т.ч. нафта, одержана з мінералів бітумінозних | B43: т / t | C43: 215.9 | D43: − | E43: − | F43: 215.9 | G43: − | H43: Conventional crude oilб including obserbed from bitumenous minerals
B44: т у.п. / tsc | C44: 308.737 | D44: − | E44: − | F44: 308.737 | G44: −
A45: Газовий конденсат | B45: т / t | C45: к/с | D45: − | E45: − | F45: к/с | G45: − | H45: Natural gas liquids (NGL)
B46: т у.п. / tsc | C46: к/с | D46: − | E46: − | F46: к/с | G46: −
A47: Бензин моторний | B47: т / t | C47: 88373 | D47: к/с | E47: к/с | F47: 88359.7 | G47: 7.7 | H47: Motor gasoline
B48: т у.п. / tsc | C48: 131675.77 | D48: к/с | E48: к/с | F48: 131655.953 | G48: 11.473
A49: Газойлі (паливо дизельне) | B49: т / t | C49: 1314640.7 | D49: 296 | E49: к/с | F49: 1314312.2 | G49: 31 | H49: Road diesel
B50: т у.п. / tsc | C50: 1906229.015 | D50: 429.2 | E50: к/с | F50: 1905752.69 | G50: 44.95
A51: Гас | B51: т / t | C51: к/с | D51: − | E51: к/с | F51: к/с | G51: − | H51: Kerosene
B52: т у.п. / tsc | C52: к/с | D52: − | E52: к/с | F52: к/с | G52: −
A53: Мазути паливні важкі | B53: т / t | C53: к/с | D53: − | E53: к/с | F53: 73.5 | G53: − | H53: Heavy fuel oil
B54: т у.п. / tsc | C54: к/с | D54: − | E54: к/с | F54: 100.695 | G54: −
A55: Дистиляти нафтові легкі, фракції легкі інші | B55: т / t | C55: 3 | D55: − | E55: к/с | F55: к/с | G55: − | H55: Light oil distilates and light fractions
B56: т у.п. / tsc | C56: 4 | D56: − | E56: к/с | F56: к/с | G56: −
A57: Дистиляти нафтові середні, фракції середні інші | B57: т / t | C57: 575.9 | D57: − | E57: − | F57: 575.9 | G57: − | H57: Middle oil distilates, other middle fractions
B58: т у.п. / tsc | C58: 835.055 | D58: − | E58: − | F58: 835.055 | G58: −
A59: Оливи та мастила нафтові; | B59: т / t | C59: 15955.4 | D59: − | E59: 15083.6 | F59: 871.8 | G59: − | H59: Lubricants
A60: дистиляти нафтові важкі | B60: т у.п. / tsc | C60: 21858.898 | D60: − | E60: 20664.532 | F60: 1194.366 | G60: −
A61: Пропан і бутан скраплені | B61: т / t | C61: к/с | D61: − | E61: 4.5 | F61: 38887.7 | G61: к/с | H61: Liquefied petroleum gases (LPG)
B62: т у.п. / tsc | C62: к/с | D62: − | E62: 7.065 | F62: 61053.689 | G62: к/с
A63: Бітум нафтовий | B63: т / t | C63: к/с | D63: − | E63: к/с | F63: − | G63: − | H63: Oil bitumen
B64: т у.п. / tsc | C64: к/с | D64: − | E64: к/с | F64: − | G64: −
A65: Вазелін нафтовий, парафін, воски нафтові та інші | B65: т / t | C65: − | D65: − | E65: − | F65: − | G65: − | H65: Oil vaseline, paraffin, mineral waxes and others
B66: т у.п. / tsc | C66: − | D66: − | E66: − | F66: − | G66: −
A67: Кокс нафтовий | B67: т / t | C67: − | D67: − | E67: − | F67: − | G67: − | H67: Petroleum coke
B68: т у.п. / tsc | C68: − | D68: − | E68: − | F68: − | G68: −
A69: Етилен, пропілен, бутилен, бутадієн і гази нафтові інші або вуглеводи газоподібні, крім газу природного | B69: т / t | C69: к/с | D69: − | E69: − | F69: к/с | G69: − | H69: Ethylene, propylene, butylene, butadiene other refinery gas or other hydrocar-bons, excluding natural gas
B70: т у.п. / tsc | C70: к/с | D70: − | E70: − | F70: к/с | G70: −
A73: Присадки | B73: т / t | C73: 2.8 | D73: − | E73: 0.5 | F73: 2.3 | G73: − | H73: Additives
B74: т у.п. / tsc | C74: 4.06 | D74: − | E74: 0.725 | F74: 3.335 | G74: −
A75: Етан | B75: т / t | C75: − | D75: − | E75: − | F75: − | G75: − | H75: Etan
B76: т у.п. / tsc | C76: − | D76: − | E76: − | F76: − | G76: −
A77: Інші види нафтопродуктів | B77: т / t | C77: 80.7 | D77: − | E77: 3.4 | F77: 77.3 | G77: − | H77: Other oil products
B78: т у.п. / tsc | C78: 117.015 | D78: − | E78: 4.93 | F78: 112.085 | G78: −
A79: Вугілля деревне | B79: м³щільн. / density, m³ | C79: − | D79: − | E79: − | F79: − | G79: − | H79: Char coal
B80: т у.п. / tsc | C80: − | D80: − | E80: − | F80: − | G80: −
A81: Паливні брикети та гранули з деревини та іншої природньої сировини | B81: т / t | C81: 37920.3 | D81: 27699.9 | E81: − | F81: 10220.4 | G81: − | H81: Fuel briguettes fnd pellets made of wood and other natural materials
B82: т у.п. / tsc | C82: 21728.3319 | D82: 15872.0427 | E82: − | F82: 5856.2892 | G82: −
A83: Дрова для опалення | B83: м³щільн. / density, m³ | C83: к/с | D83: 159713.8 | E83: к/с | F83: 83432 | G83: − | H83: Fuel wood
B84: т у.п. / tsc | C84: к/с | D84: 42324.157 | E84: к/с | F84: 22109.48 | G84: −
A85: Стружка і тріска деревні | B85: т / t | C85: 50715.2 | D85: 46504.2 | E85: − | F85: 4211 | G85: − | H85: Wood shavings and chips
B86: т у.п. / tsc | C86: 18257.472 | D86: 16741.512 | E86: − | F86: 1515.96 | G86: −
A87: Інше тверде біопаливо рослинного походження | B87: т / t | C87: 73226.1 | D87: 44500.6 | E87: к/с | F87: 27746.5 | G87: к/с | H87: Other solid biofuel obtained from plants
B88: т у.п. / tsc | C88: 24603.9696 | D88: 14952.2016 | E88: к/с | F88: 9322.824 | G88: к/с
A89: Рідке біопаливо | B89: т / t | C89: − | D89: − | E89: − | F89: − | G89: − | H89: Liquified biofuel
B90: т у.п. / tsc | C90: − | D90: − | E90: − | F90: − | G90: −
A91: Біогаз | B91: тис.м³ / thsd. m³ | C91: к/с | D91: к/с | E91: − | F91: − | G91: − | H91: Biogas
B92: т у.п. / tsc | C92: к/с | D92: к/с | E92: − | F92: − | G92: −

Sheet 56-58
A1: 3.2. Промисловість
A2: Industry
B4: Одиниці виміру | C4: Усього | D4: у тому числі
D5: including
D6: на пере-творення в інші види палива та енергію | E6: на неенер- гетичні цілі (як сировина матеріал) | F6: кінцеве споживання | G6: втрати при транспор-туванні, розподілі та зберіганні
B7: Unit | C7: Total | D7: transfor-mation into other types of fuel and energy | E7: non-energy use (raw matherial) | F7: final consumption | G7: transportation, distribution and storage losses
A9: Вугілля кам’яне | B9: т / t | C9: 37557287.8 | D9: 33655993.3 | E9: 144077 | F9: 3751274.5 | G9: 5943 | H9: Hard coal
B10: т у.п. / tsc | C10: 28167965.85 | D10: 25241994.97 | E10: 108057.75 | F10: 2813455.875 | G10: 4457.25
A11: Вугілля буре | B11: т / t | C11: к/с | D11: к/с | E11: к/с | F11: к/с | G11: − | H11: Brown coal
B12: т у.п. / tsc | C12: к/с | D12: к/с | E12: к/с | F12: к/с | G12: −
A13: Торф неагломерований паливний | B13: т / t | C13: 279440.3 | D13: 258549.5 | E13: к/с | F13: к/с | G13: к/с | H13: Peat
B14: т у.п. / tsc | C14: 89979.7766 | D14: 83252.939 | E14: к/с | F14: к/с | G14: к/с
A15: Брикети, котуни та подібні види твердого палива з вугілля кам’яного | B15: т / t | C15: к/с | D15: 480.8 | E15: − | F15: к/с | G15: − | H15: Hard coal briquettes
B16: т у.п. / tsc | C16: к/с | D16: 283.672 | E16: − | F16: к/с | G16: −
A17: Брикети, котуни та подібні види твердого палива з вугілля бурого | B17: т / t | C17: к/с | D17: к/с | E17: − | F17: − | G17: − | H17: Brown coal briquettes (BKB)
B18: т у.п. / tsc | C18: к/с | D18: к/с | E18: − | F18: − | G18: −
A19: Брикети, котуни та подібні види твердого палива з торфу | B19: т / t | C19: к/с | D19: 28212.8 | E19: − | F19: 4063.5 | G19: к/с | H19: Peat briquettes
B20: т у.п. / tsc | C20: к/с | D20: 14106.4 | E20: − | F20: 2031.75 | G20: к/с
A21: Кокс та напівкокс з вугілля кам'яного, кокс газовий | B21: т / t | C21: 10441483.6 | D21: 4249248 | E21: 376491.8 | F21: 5815743.8 | G21: − | H21: Coal coke and coke breeze; gas coke
B22: т у.п. / tsc | C22: 10159563.54 | D22: 4134518.304 | E22: 366326.5214 | F22: 5658718.717 | G22: −
A23: Пек і кокс пековий | B23: т / t | C23: к/с | D23: − | E23: к/с | F23: − | G23: − | H23: Pitch and coal pitch
B24: т у.п. / tsc | C24: к/с | D24: − | E24: к/с | F24: − | G24: −
A25: Смоли кам’яновугільні, буровугільні або торф’яні | B25: т / t | C25: к/с | D25: к/с | E25: к/с | F25: − | G25: − | H25: Coal, brown coal or peat tar
B26: т у.п. / tsc | C26: к/с | D26: к/с | E26: к/с | F26: − | G26: −
A27: Коксовий газ | B27: тис.м³ / thsd. m³ | C27: 3984999.9 | D27: 1101747.3 | E27: − | F27: 2883252.6 | G27: − | H27: Coke oven gas
B28: т у.п. / tsc | C28: 2275434.943 | D28: 629097.7083 | E28: − | F28: 1646337.235 | G28: −
A29: Доменний газ | B29: тис.м³ / thsd. m³ | C29: к/с | D29: 8268041.4 | E29: к/с | F29: 15858340.8 | G29: − | H29: Blast furnace gas
B30: т у.п. / tsc | C30: к/с | D30: 1207134.044 | E30: к/с | F30: 2315317.757 | G30: −
A31: Газ інший (газ, отриманий шляхом газифікації вугілля; газ, отриманий у процесі виробництва феросплавів) | B31: тис.м³ / thsd. m³ | C31: к/с | D31: к/с | E31: − | F31: к/с | G31: − | H31: Other gas obtained during coal gasification and ferrous metals production
B32: т у.п. / tsc | C32: к/с | D32: к/с | E32: − | F32: к/с | G32: −
A33: Газ, отриманий у процесі конверторного виробництва сталі | B33: тис.м³ / thsd. m³ | C33: − | D33: − | E33: − | F33: − | G33: − | H33: The gas obtained in the process of converter steel production
B34: т у.п. / tsc | C34: − | D34: − | E34: − | F34: − | G34: −
F35: Продовження табл. 3.2 / Continued table 3.2
B36: Одиниці виміру | C36: Усього | D36: у тому числі
D37: including
D38: на пере-творення в інші види палива та енергію | E38: на неенер- гетичні цілі (як сировина матеріал) | F38: кінцеве споживання | G38: втрати при транспор-туванні, розподілі та зберіганні
B39: Unit | C39: Total | D39: transfor-mation into other types of fuel and energy | E39: non-energy use (raw matherial) | F39: final consumption | G39: transportation, distribution and storage losses
A41: Природний газ | B41: тис.м³ / thsd. m³ | C41: 19838969 | D41: 10988522.9 | E41: 2865809.3 | F41: 5097552.7 | G41: 887084.1 | H41: Natural gas
B42: т у.п. / tsc | C42: 23013204.04 | D42: 12746686.56 | E42: 3324338.788 | F42: 5913161.132 | G42: 1029017.556
A43: Нафта сира, у т.ч. нафта, одержана з мінералів бітумінозних | B43: т / t | C43: к/с | D43: к/с | E43: 3841 | F43: к/с | G43: 2770.8 | H43: Conventional crude oilб including obserbed from bitumenous minerals
B44: т у.п. / tsc | C44: к/с | D44: к/с | E44: 5492.63 | F44: к/с | G44: 3962.244
A45: Газовий конденсат | B45: т / t | C45: к/с | D45: 550054.8 | E45: к/с | F45: 2477 | G45: − | H45: Natural gas liquids (NGL)
B46: т у.п. / tsc | C46: к/с | D46: 786578.364 | E46: к/с | F46: 3542.11 | G46: −
A47: Бензин моторний | B47: т / t | C47: 103370.1 | D47: 32.1 | E47: 16 | F47: 103321.9 | G47: к/с | H47: Motor gasoline
B48: т у.п. / tsc | C48: 154021.449 | D48: 47.829 | E48: 23.84 | F48: 153949.631 | G48: к/с
A49: Газойлі (паливо дизельне) | B49: т / t | C49: 994759.2 | D49: 7268 | E49: 585.9 | F49: 986905.3 | G49: − | H49: Road diesel
B50: т у.п. / tsc | C50: 1442400.84 | D50: 10538.6 | E50: 849.555 | F50: 1431012.685 | G50: −
A51: Гас | B51: т / t | C51: 4853.4 | D51: − | E51: 829 | F51: 4024.4 | G51: − | H51: Kerosene
B52: т у.п. / tsc | C52: 7070.218 | D52: − | E52: 1217.266 | F52: 5852.952 | G52: −
A53: Мазути паливні важкі | B53: т / t | C53: к/с | D53: 68449.9 | E53: 538 | F53: 8866.8 | G53: к/с | H53: Heavy fuel oil
B54: т у.п. / tsc | C54: к/с | D54: 93776.363 | E54: 737.06 | F54: 12147.516 | G54: к/с
A55: Дистиляти нафтові легкі, фракції легкі інші | B55: т / t | C55: к/с | D55: к/с | E55: 1053.3 | F55: 717.1 | G55: − | H55: Light oil distilates and light fractions
B56: т у.п. / tsc | C56: к/с | D56: к/с | E56: 1527.285 | F56: 1039.795 | G56: −
A57: Дистиляти нафтові середні, фракції середні інші | B57: т / t | C57: к/с | D57: 8588.5 | E57: к/с | F57: 2962.6 | G57: − | H57: Middle oil distilates, other middle fractions
B58: т у.п. / tsc | C58: к/с | D58: 12453.325 | E58: к/с | F58: 4295.77 | G58: −
A59: Оливи та мастила нафтові; | B59: т / t | C59: к/с | D59: к/с | E59: 182953.9 | F59: 1117.2 | G59: − | H59: Lubricants
A60: дистиляти нафтові важкі | B60: т у.п. / tsc | C60: к/с | D60: к/с | E60: 250646.843 | F60: 1530.564 | G60: −
A61: Пропан і бутан скраплені | B61: т / t | C61: 156145.2 | D61: к/с | E61: 182.9 | F61: 151672.9 | G61: к/с | H61: Liquefied petroleum gases (LPG)
B62: т у.п. / tsc | C62: 245147.964 | D62: к/с | E62: 287.153 | F62: 238126.453 | G62: к/с
A63: Бітум нафтовий | B63: т / t | C63: к/с | D63: − | E63: 204380.8 | F63: к/с | G63: − | H63: Oil bitumen
B64: т у.п. / tsc | C64: к/с | D64: − | E64: 275914.08 | F64: к/с | G64: −
A65: Вазелін нафтовий, парафін, воски нафтові та інші | B65: т / t | C65: к/с | D65: − | E65: 74.3 | F65: к/с | G65: − | H65: Oil vaseline, paraffin, mineral waxes and others
B66: т у.п. / tsc | C66: к/с | D66: − | E66: 109.8897 | F66: к/с | G66: −
A67: Кокс нафтовий | B67: т / t | C67: к/с | D67: − | E67: к/с | F67: к/с | G67: − | H67: Petroleum coke
B68: т у.п. / tsc | C68: к/с | D68: − | E68: к/с | F68: к/с | G68: −
A69: Етилен, пропілен, бутилен, бутадієн і гази нафтові інші або вуглеводи газоподібні, крім газу природного | B69: т / t | C69: к/с | D69: − | E69: к/с | F69: к/с | G69: − | H69: Ethylene, propylene, butylene, butadiene other refinery gas or other hydrocar-bons, excluding natural gas
B70: т у.п. / tsc | C70: к/с | D70: − | E70: к/с | F70: к/с | G70: −
A73: Присадки | B73: т / t | C73: к/с | D73: к/с | E73: к/с | F73: к/с | G73: − | H73: Additives
B74: т у.п. / tsc | C74: к/с | D74: к/с | E74: к/с | F74: к/с | G74: −
A75: Етан | B75: т / t | C75: − | D75: − | E75: − | F75: − | G75: − | H75: Etan
B76: т у.п. / tsc | C76: − | D76: − | E76: − | F76: − | G76: −
A77: Інші види нафтопродуктів | B77: т / t | C77: 10575.6 | D77: 1317.3 | E77: 8111.5 | F77: 1146.8 | G77: − | H77: Other oil products
B78: т у.п. / tsc | C78: 15334.62 | D78: 1910.085 | E78: 11761.675 | F78: 1662.86 | G78: −
A79: Вугілля деревне | B79: м³ щільн. / density, m³ | C79: к/с | D79: − | E79: к/с | F79: 177.6 | G79: − | H79: Char coal
B80: т у.п. / tsc | C80: к/с | D80: − | E80: к/с | F80: 165.168 | G80: −
A81: Паливні брикети та гранули з деревини та іншої природньої сировини | B81: т / t | C81: к/с | D81: 315294.1 | E81: к/с | F81: 27942.2 | G81: − | H81: Fuel briguettes fnd pellets made of wood and other natural materials
B82: т у.п. / tsc | C82: к/с | D82: 180663.5193 | E82: к/с | F82: 16010.8806 | G82: −
A83: Дрова для опалення | B83: м³ щільн. / density, m³ | C83: к/с | D83: 740979.5 | E83: к/с | F83: 174081.7 | G83: − | H83: Fuel wood
B84: т у.п. / tsc | C84: к/с | D84: 196359.5675 | E84: к/с | F84: 46131.6505 | G84: −
A85: Стружка і тріска деревні | B85: т / t | C85: 910466.1 | D85: 860350.2 | E85: к/с | F85: 50043.6 | G85: к/с | H85: Wood shavings and chips
B86: т у.п. / tsc | C86: 327767.796 | D86: 309726.072 | E86: к/с | F86: 18015.696 | G86: к/с
A87: Інше тверде біопаливо рослинного походження | B87: т / t | C87: 1605957.9 | D87: 1435656.3 | E87: к/с | F87: к/с | G87: − | H87: Other solid biofuel obtained from plants
B88: т у.п. / tsc | C88: 539601.8544 | D88: 482380.5168 | E88: к/с | F88: к/с | G88: −
A89: Рідке біопаливо | B89: т / t | C89: − | D89: − | E89: − | F89: − | G89: − | H89: Liquified biofuel
B90: т у.п. / tsc | C90: − | D90: − | E90: − | F90: − | G90: −
A91: Біогаз | B91: тис.м³ / thsd. m³ | C91: 168179.8 | D91: 168179.8 | E91: − | F91: − | G91: − | H91: Biogas
B92: тис.м³ / thsd. m³ | C92: 289269.256 | D92: 289269.256 | E92: − | F92: − | G92: −

Sheet 59-61
A1: 3.2.1. Добувна промисловість і розроблення кар'єрів
A2: Mining and Quarrying
B4: Одиниці виміру | C4: Усього | D4: у тому числі
D5: including
D6: на пере-творення в інші види палива та енергію | E6: на неенер- гетичні цілі (як сировина матеріал) | F6: кінцеве споживання | G6: втрати при транспор-туванні, розподілі та зберіганні
B7: Unit | C7: Total | D7: transfor-mation into other types of fuel and energy | E7: non-energy use (raw matherial) | F7: final consumption | G7: transportation, distribution and storage losses
A9: Вугілля кам’яне | B9: т / t | C9: 128291.7 | D9: 127012.9 | E9: − | F9: 1278.8 | G9: − | H9: Hard coal
B10: т у.п. / tsc | C10: 96218.775 | D10: 95259.675 | E10: − | F10: 959.1 | G10: −
A11: Вугілля буре | B11: т / t | C11: к/с | D11: − | E11: − | F11: к/с | G11: − | H11: Brown coal
B12: т у.п. / tsc | C12: к/с | D12: − | E12: − | F12: к/с | G12: −
A13: Торф неагломерований паливний | B13: т / t | C13: − | D13: − | E13: − | F13: − | G13: − | H13: Peat
B14: т у.п. / tsc | C14: − | D14: − | E14: − | F14: − | G14: −
A15: Брикети, котуни та подібні види твердого палива з вугілля кам’яного | B15: т / t | C15: к/с | D15: к/с | E15: − | F15: − | G15: − | H15: Hard coal briquettes
B16: т у.п. / tsc | C16: к/с | D16: к/с | E16: − | F16: − | G16: −
A17: Брикети, котуни та подібні види твердого палива з вугілля бурого | B17: т / t | C17: − | D17: − | E17: − | F17: − | G17: − | H17: Brown coal briquettes (BKB)
B18: т у.п. / tsc | C18: − | D18: − | E18: − | F18: − | G18: −
A19: Брикети, котуни та подібні види твердого палива з торфу | B19: т / t | C19: 127.8 | D19: − | E19: − | F19: 127.8 | G19: − | H19: Peat briquettes
B20: т у.п. / tsc | C20: 63.9 | D20: − | E20: − | F20: 63.9 | G20: −
A21: Кокс та напівкокс з вугілля кам'яного, кокс газовий | B21: т / t | C21: к/с | D21: − | E21: − | F21: к/с | G21: − | H21: Coal coke and coke breeze; gas coke
B22: т у.п. / tsc | C22: к/с | D22: − | E22: − | F22: к/с | G22: −
A23: Пек і кокс пековий | B23: т / t | C23: − | D23: − | E23: − | F23: − | G23: − | H23: Pitch and coal pitch
B24: т у.п. / tsc | C24: − | D24: − | E24: − | F24: − | G24: −
A25: Смоли кам’яновугільні, буровугільні або торф’яні | B25: т / t | C25: − | D25: − | E25: − | F25: − | G25: − | H25: Coal, brown coal or peat tar
B26: т у.п. / tsc | C26: − | D26: − | E26: − | F26: − | G26: −
A27: Коксовий газ | B27: тис.м³ / thsd. m³ | C27: − | D27: − | E27: − | F27: − | G27: − | H27: Coke oven gas
B28: т у.п. / tsc | C28: − | D28: − | E28: − | F28: − | G28: −
A29: Доменний газ | B29: тис.м³ / thsd. m³ | C29: − | D29: − | E29: − | F29: − | G29: − | H29: Blast furnace gas
B30: т у.п. / tsc | C30: − | D30: − | E30: − | F30: − | G30: −
A31: Газ інший (газ, отриманий шляхом газифікації вугілля; газ, отриманий у процесі виробництва феросплавів) | B31: тис.м³ / thsd. m³ | C31: − | D31: − | E31: − | F31: − | G31: − | H31: Other gas obtained during coal gasification and ferrous metals production
B32: т у.п. / tsc | C32: − | D32: − | E32: − | F32: − | G32: −
A33: Газ, отриманий у процесі конверторного виробництва сталі | B33: тис.м³ / thsd. m³ | C33: − | D33: − | E33: − | F33: − | G33: − | H33: The gas obtained in the process of converter steel production
B34: т у.п. / tsc | C34: − | D34: − | E34: − | F34: − | G34: −
F35: Продовження табл. 3.2.1 / Continued table 3.2.1
B36: Одиниці виміру | C36: Усього | D36: у тому числі
D37: including
D38: на пере-творення в інші види палива та енергію | E38: на неенер- гетичні цілі (як сировина матеріал) | F38: кінцеве споживання | G38: втрати при транспор-туванні, розподілі та зберіганні
B39: Unit | C39: Total | D39: transfor-mation into other types of fuel and energy | E39: non-energy use (raw matherial) | F39: final consumption | G39: transportation, distribution and storage losses
A41: Природний газ | B41: тис.м³ / thsd. m³ | C41: 1312020.8 | D41: 258482.2 | E41: 21878 | F41: 1021867.5 | G41: 9793.1 | H41: Natural gas
B42: т у.п. / tsc | C42: 1521944.128 | D42: 299839.352 | E42: 25378.48 | F42: 1185366.3 | G42: 11359.996
A43: Нафта сира, у т.ч. нафта, одержана з мінералів бітумінозних | B43: т / t | C43: 49392.8 | D43: к/с | E43: 3660.6 | F43: к/с | G43: 6524.4 | H43: Conventional crude oilб including obserbed from bitumenous minerals
B44: т у.п. / tsc | C44: 70631.704 | D44: к/с | E44: 5234.658 | F44: к/с | G44: 9329.892
A45: Газовий конденсат | B45: т / t | C45: к/с | D45: к/с | E45: к/с | F45: к/с | G45: − | H45: Natural gas liquids (NGL)
B46: т у.п. / tsc | C46: к/с | D46: к/с | E46: к/с | F46: к/с | G46: −
A47: Бензин моторний | B47: т / t | C47: 9713.1 | D47: к/с | E47: 1.3 | F47: 9709.5 | G47: к/с | H47: Motor gasoline
B48: т у.п. / tsc | C48: 14472.519 | D48: к/с | E48: 1.937 | F48: 14467.155 | G48: к/с
A49: Газойлі (паливо дизельне) | B49: т / t | C49: к/с | D49: к/с | E49: 252.9 | F49: 374743 | G49: − | H49: Road diesel
B50: т у.п. / tsc | C50: к/с | D50: к/с | E50: 366.705 | F50: 543377.35 | G50: −
A51: Гас | B51: т / t | C51: к/с | D51: − | E51: к/с | F51: 317.3 | G51: − | H51: Kerosene
B52: т у.п. / tsc | C52: к/с | D52: − | E52: к/с | F52: 465.901 | G52: −
A53: Мазути паливні важкі | B53: т / t | C53: к/с | D53: 2119.8 | E53: к/с | F53: − | G53: − | H53: Heavy fuel oil
B54: т у.п. / tsc | C54: к/с | D54: 2904.126 | E54: к/с | F54: − | G54: −
A55: Дистиляти нафтові легкі, фракції легкі інші | B55: т / t | C55: к/с | D55: − | E55: к/с | F55: − | G55: − | H55: Light oil distilates and light fractions
B56: т у.п. / tsc | C56: к/с | D56: − | E56: к/с | F56: − | G56: −
A57: Дистиляти нафтові середні, фракції середні інші | B57: т / t | C57: к/с | D57: − | E57: к/с | F57: − | G57: − | H57: Middle oil distilates, other middle fractions
B58: т у.п. / tsc | C58: к/с | D58: − | E58: к/с | F58: − | G58: −
A59: Оливи та мастила нафтові; | B59: т / t | C59: 13338.1 | D59: − | E59: 13028.7 | F59: 309.4 | G59: − | H59: Lubricants
A60: дистиляти нафтові важкі | B60: т у.п. / tsc | C60: 18273.197 | D60: − | E60: 17849.319 | F60: 423.878 | G60: −
A61: Пропан і бутан скраплені | B61: т / t | C61: 1999.2 | D61: − | E61: 5.5 | F61: 1993.7 | G61: − | H61: Liquefied petroleum gases (LPG)
B62: т у.п. / tsc | C62: 3138.744 | D62: − | E62: 8.635 | F62: 3130.109 | G62: −
A63: Бітум нафтовий | B63: т / t | C63: к/с | D63: − | E63: к/с | F63: к/с | G63: − | H63: Oil bitumen
B64: т у.п. / tsc | C64: к/с | D64: − | E64: к/с | F64: к/с | G64: −
A65: Вазелін нафтовий, парафін, воски нафтові та інші | B65: т / t | C65: − | D65: − | E65: − | F65: − | G65: − | H65: Oil vaseline, paraffin, mineral waxes and others
B66: т у.п. / tsc | C66: − | D66: − | E66: − | F66: − | G66: −
A67: Кокс нафтовий | B67: т / t | C67: − | D67: − | E67: − | F67: − | G67: − | H67: Petroleum coke
B68: т у.п. / tsc | C68: − | D68: − | E68: − | F68: − | G68: −
A69: Етилен, пропілен, бутилен, бутадієн і гази нафтові інші або вуглеводи газоподібні, крім газу природного | B69: т / t | C69: к/с | D69: − | E69: к/с | F69: к/с | G69: − | H69: Ethylene, propylene, butylene, butadiene other refinery gas or other hydrocar-bons, excluding natural gas
B70: т у.п. / tsc | C70: к/с | D70: − | E70: к/с | F70: к/с | G70: −
A72: Присадки | B72: т / t | C72: к/с | D72: − | E72: − | F72: к/с | G72: − | H72: Additives
B73: т у.п. / tsc | C73: к/с | D73: − | E73: − | F73: к/с | G73: −
A74: Етан | B74: т / t | C74: − | D74: − | E74: − | F74: − | G74: − | H74: Etan
B75: т у.п. / tsc | C75: − | D75: − | E75: − | F75: − | G75: −
A76: Інші види нафтопродуктів | B76: т / t | C76: к/с | D76: к/с | E76: 99.4 | F76: к/с | G76: − | H76: Other oil products
B77: т у.п. / tsc | C77: к/с | D77: к/с | E77: 144.13 | F77: к/с | G77: −
A78: Вугілля деревне | B78: м³ щільн. / density, m³ | C78: − | D78: − | E78: − | F78: − | G78: − | H78: Char coal
B79: т у.п. / tsc | C79: − | D79: − | E79: − | F79: − | G79: −
A80: Паливні брикети та гранули з деревини та іншої природньої сировини | B80: т / t | C80: к/с | D80: к/с | E80: − | F80: к/с | G80: − | H80: Fuel briguettes fnd pellets made of wood and other natural materials
B81: т у.п. / tsc | C81: к/с | D81: к/с | E81: − | F81: к/с | G81: −
A82: Дрова для опалення | B82: м³ щільн. / density, m³ | C82: к/с | D82: 2569.7 | E82: к/с | F82: 2861.8 | G82: − | H82: Fuel wood
B83: т у.п. / tsc | C83: к/с | D83: 680.9705 | E83: к/с | F83: 758.377 | G83: −
A84: Стружка і тріска деревні | B84: т / t | C84: к/с | D84: к/с | E84: − | F84: к/с | G84: − | H84: Wood shavings and chips
B85: т у.п. / tsc | C85: к/с | D85: к/с | E85: − | F85: к/с | G85: −
A86: Інше тверде біопаливо рослинного походження | B86: т / t | C86: к/с | D86: к/с | E86: − | F86: к/с | G86: − | H86: Other solid biofuel obtained from plants
B87: т у.п. / tsc | C87: к/с | D87: к/с | E87: − | F87: к/с | G87: −
A88: Рідке біопаливо | B88: т / t | C88: − | D88: − | E88: − | F88: − | G88: − | H88: Liquified biofuel
B89: т у.п. / tsc | C89: − | D89: − | E89: − | F89: − | G89: −
A90: Біогаз | B90: тис.м³ / thsd. m³ | C90: − | D90: − | E90: − | F90: − | G90: − | H90: Biogas
B91: т у.п. / tsc | C91: − | D91: − | E91: − | F91: − | G91: −

Sheet 62-64
A1: 3.2.1.1. Добування кам'яного та бурого вугілля
A2: Mining of coal and lignite
B4: Одиниці виміру | C4: Усього | D4: у тому числі
D5: including
D6: на пере-творення в інші види палива та енергію | E6: на неенер- гетичні цілі (як сировина матеріал) | F6: кінцеве споживання | G6: втрати при транспор-туванні, розподілі та зберіганні
B7: Unit | C7: Total | D7: transfor-mation into other types of fuel and energy | E7: non-energy use (raw matherial) | F7: final consumption | G7: transportation, distribution and storage losses
A9: Вугілля кам’яне | B9: т / t | C9: 123281.1 | D9: 122567.2 | E9: − | F9: 713.9 | G9: − | H9: Hard coal
B10: т у.п. / tsc | C10: 92460.825 | D10: 91925.4 | E10: − | F10: 535.425 | G10: −
A11: Вугілля буре | B11: т / t | C11: к/с | D11: − | E11: − | F11: к/с | G11: − | H11: Brown coal
B12: т у.п. / tsc | C12: к/с | D12: − | E12: − | F12: к/с | G12: −
A13: Торф неагломерований паливний | B13: т / t | C13: − | D13: − | E13: − | F13: − | G13: − | H13: Peat
B14: т у.п. / tsc | C14: − | D14: − | E14: − | F14: − | G14: −
A15: Брикети, котуни та подібні види твердого палива з вугілля кам’яного | B15: т / t | C15: − | D15: − | E15: − | F15: − | G15: − | H15: Hard coal briquettes
B16: т у.п. / tsc | C16: − | D16: − | E16: − | F16: − | G16: −
A17: Брикети, котуни та подібні види твердого палива з вугілля бурого | B17: т / t | C17: − | D17: − | E17: − | F17: − | G17: − | H17: Brown coal briquettes (BKB)
B18: т у.п. / tsc | C18: − | D18: − | E18: − | F18: − | G18: −
A19: Брикети, котуни та подібні види твердого палива з торфу | B19: т / t | C19: − | D19: − | E19: − | F19: − | G19: − | H19: Peat briquettes
B20: т у.п. / tsc | C20: − | D20: − | E20: − | F20: − | G20: −
A21: Кокс та напівкокс з вугілля кам'яного, кокс газовий | B21: т / t | C21: − | D21: − | E21: − | F21: − | G21: − | H21: Coal coke and coke breeze; gas coke
B22: т у.п. / tsc | C22: − | D22: − | E22: − | F22: − | G22: −
A23: Пек і кокс пековий | B23: т / t | C23: − | D23: − | E23: − | F23: − | G23: − | H23: Pitch and coal pitch
B24: т у.п. / tsc | C24: − | D24: − | E24: − | F24: − | G24: −
A25: Смоли кам’яновугільні, буровугільні або торф’яні | B25: т / t | C25: − | D25: − | E25: − | F25: − | G25: − | H25: Coal, brown coal or peat tar
B26: т у.п. / tsc | C26: − | D26: − | E26: − | F26: − | G26: −
A27: Коксовий газ | B27: тис.м³ / thsd. m³ | C27: − | D27: − | E27: − | F27: − | G27: − | H27: Coke oven gas
B28: т у.п. / tsc | C28: − | D28: − | E28: − | F28: − | G28: −
A29: Доменний газ | B29: тис.м³ / thsd. m³ | C29: − | D29: − | E29: − | F29: − | G29: − | H29: Blast furnace gas
B30: т у.п. / tsc | C30: − | D30: − | E30: − | F30: − | G30: −
A31: Газ інший (газ, отриманий шляхом газифікації вугілля; газ, отриманий у процесі виробництва феросплавів) | B31: тис.м³ / thsd. m³ | C31: − | D31: − | E31: − | F31: − | G31: − | H31: Other gas obtained during coal gasification and ferrous metals production
B32: т у.п. / tsc | C32: − | D32: − | E32: − | F32: − | G32: −
A33: Газ, отриманий у процесі конверторного виробництва сталі | B33: тис.м³ / thsd. m³ | C33: − | D33: − | E33: − | F33: − | G33: − | H33: The gas obtained in the process of converter steel production
B34: т у.п. / tsc | C34: − | D34: − | E34: − | F34: − | G34: −
F35: Продовження табл. 3.2.1.1 / Continued table 3.2.1.1
B36: Одиниці виміру | C36: Усього | D36: у тому числі
D37: including
D38: на пере-творення в інші види палива та енергію | E38: на неенер- гетичні цілі (як сировина матеріал) | F38: кінцеве споживання | G38: втрати при транспор-туванні, розподілі та зберіганні
B39: Unit | C39: Total | D39: transfor-mation into other types of fuel and energy | E39: non-energy use (raw matherial) | F39: final consumption | G39: transportation, distribution and storage losses
A41: Природний газ | B41: тис.м³ / thsd. m³ | C41: к/с | D41: к/с | E41: − | F41: к/с | G41: − | H41: Natural gas
B42: т у.п. / tsc | C42: к/с | D42: к/с | E42: − | F42: к/с | G42: −
A43: Нафта сира, у т.ч. нафта, одержана з мінералів бітумінозних | B43: т / t | C43: − | D43: − | E43: − | F43: − | G43: − | H43: Conventional crude oilб including obserbed from bitumenous minerals
B44: т у.п. / tsc | C44: − | D44: − | E44: − | F44: − | G44: −
A45: Газовий конденсат | B45: т / t | C45: − | D45: − | E45: − | F45: − | G45: − | H45: Natural gas liquids (NGL)
B46: т у.п. / tsc | C46: − | D46: − | E46: − | F46: − | G46: −
A47: Бензин моторний | B47: т / t | C47: к/с | D47: − | E47: к/с | F47: 323.6 | G47: − | H47: Motor gasoline
B48: т у.п. / tsc | C48: к/с | D48: − | E48: к/с | F48: 482.164 | G48: −
A49: Газойлі (паливо дизельне) | B49: т / t | C49: к/с | D49: − | E49: к/с | F49: 2638.1 | G49: − | H49: Road diesel
B50: т у.п. / tsc | C50: к/с | D50: − | E50: к/с | F50: 3825.245 | G50: −
A51: Гас | B51: т / t | C51: к/с | D51: − | E51: к/с | F51: к/с | G51: − | H51: Kerosene
B52: т у.п. / tsc | C52: к/с | D52: − | E52: к/с | F52: к/с | G52: −
A53: Мазути паливні важкі | B53: т / t | C53: к/с | D53: − | E53: к/с | F53: − | G53: − | H53: Heavy fuel oil
B54: т у.п. / tsc | C54: к/с | D54: − | E54: к/с | F54: − | G54: −
A55: Дистиляти нафтові легкі, фракції легкі інші | B55: т / t | C55: к/с | D55: − | E55: к/с | F55: − | G55: − | H55: Light oil distilates and light fractions
B56: т у.п. / tsc | C56: к/с | D56: − | E56: к/с | F56: − | G56: −
A57: Дистиляти нафтові середні, фракції середні інші | B57: т / t | C57: к/с | D57: − | E57: к/с | F57: − | G57: − | H57: Middle oil distilates, other middle fractions
B58: т у.п. / tsc | C58: к/с | D58: − | E58: к/с | F58: − | G58: −
A59: Оливи та мастила нафтові; | B59: т / t | C59: 1384.6 | D59: − | E59: к/с | F59: − | G59: − | H59: Lubricants
A60: дистиляти нафтові важкі | B60: т у.п. / tsc | C60: 1896.902 | D60: − | E60: 1896.902 | F60: − | G60: −
A61: Пропан і бутан скраплені | B61: т / t | C61: 45.7 | D61: − | E61: − | F61: 45.7 | G61: − | H61: Liquefied petroleum gases (LPG)
B62: т у.п. / tsc | C62: 71.749 | D62: − | E62: − | F62: 71.749 | G62: −
A63: Бітум нафтовий | B63: т / t | C63: к/с | D63: − | E63: к/с | F63: к/с | G63: − | H63: Oil bitumen
B64: т у.п. / tsc | C64: к/с | D64: − | E64: к/с | F64: к/с | G64: −
A65: Вазелін нафтовий, парафін, воски нафтові та інші | B65: т / t | C65: − | D65: − | E65: − | F65: − | G65: − | H65: Oil vaseline, paraffin, mineral waxes and others
B66: т у.п. / tsc | C66: − | D66: − | E66: − | F66: − | G66: −
A67: Кокс нафтовий | B67: т / t | C67: − | D67: − | E67: − | F67: − | G67: − | H67: Petroleum coke
B68: т у.п. / tsc | C68: − | D68: − | E68: − | F68: − | G68: −
A69: Етилен, пропілен, бутилен, бутадієн і гази нафтові інші або вуглеводи газоподібні, крім газу природного | B69: т / t | C69: − | D69: − | E69: − | F69: − | G69: − | H69: Ethylene, propylene, butylene, butadiene other refinery gas or other hydrocar-bons, excluding natural gas
B70: т у.п. / tsc | C70: − | D70: − | E70: − | F70: − | G70: −
A71: Присадки | B71: т / t | C71: − | D71: − | E71: − | F71: − | G71: − | H71: Additives
B72: т у.п. / tsc | C72: − | D72: − | E72: − | F72: − | G72: −
A73: Етан | B73: т / t | C73: − | D73: − | E73: − | F73: − | G73: − | H73: Etan
B74: т у.п. / tsc | C74: − | D74: − | E74: − | F74: − | G74: −
A75: Інші види нафтопродуктів | B75: т / t | C75: к/с | D75: − | E75: к/с | F75: − | G75: − | H75: Other oil products
B76: т у.п. / tsc | C76: к/с | D76: − | E76: к/с | F76: − | G76: −
A77: Вугілля деревне | B77: м³ щільн. / density, m³ | C77: − | D77: − | E77: − | F77: − | G77: − | H77: Char coal
B78: т у.п. / tsc | C78: − | D78: − | E78: − | F78: − | G78: −
A79: Паливні брикети та гранули з деревини та іншої природньої сировини | B79: т / t | C79: − | D79: − | E79: − | F79: − | G79: − | H79: Fuel briguettes fnd pellets made of wood and other natural materials
B80: т у.п. / tsc | C80: − | D80: − | E80: − | F80: − | G80: −
A81: Дрова для опалення | B81: м³ щільн. / density, m³ | C81: 192.6 | D81: к/с | E81: − | F81: к/с | G81: − | H81: Fuel wood
B82: т у.п. / tsc | C82: 51.039 | D82: к/с | E82: − | F82: к/с | G82: −
A83: Стружка і тріска деревні | B83: т / t | C83: − | D83: − | E83: − | F83: − | G83: − | H83: Wood shavings and chips
B84: т у.п. / tsc | C84: − | D84: − | E84: − | F84: − | G84: −
A85: Інше тверде біопаливо рослинного походження | B85: т / t | C85: − | D85: − | E85: − | F85: − | G85: − | H85: Other solid biofuel obtained from plants
B86: т у.п. / tsc | C86: − | D86: − | E86: − | F86: − | G86: −
A87: Рідке біопаливо | B87: т / t | C87: − | D87: − | E87: − | F87: − | G87: − | H87: Liquified biofuel
B88: т у.п. / tsc | C88: − | D88: − | E88: − | F88: − | G88: −
A89: Біогаз | B89: тис.м³ / thsd. m³ | C89: − | D89: − | E89: − | F89: − | G89: − | H89: Biogas
B90: т у.п. / tsc | C90: − | D90: − | E90: − | F90: − | G90: −

Sheet 65-67
A1: 3.2.1.2. Добування сирої нафти та природного газу
A2: Extraction of crude petroleum and natural gas
B4: Одиниці виміру | C4: Усього | D4: у тому числі
D5: including
D6: на пере-творення в інші види палива та енергію | E6: на неенер- гетичні цілі (як сировина матеріал) | F6: кінцеве споживання | G6: втрати при транспор-туванні, розподілі та зберіганні
B7: Unit | C7: Total | D7: transfor-mation into other types of fuel and energy | E7: non-energy use (raw matherial) | F7: final consumption | G7: transportation, distribution and storage losses
A9: Вугілля кам’яне | B9: т / t | C9: к/с | D9: − | E9: − | F9: к/с | G9: − | H9: Hard coal
B10: т у.п. / tsc | C10: к/с | D10: − | E10: − | F10: к/с | G10: −
A11: Вугілля буре | B11: т / t | C11: − | D11: − | E11: − | F11: − | G11: − | H11: Brown coal
B12: т у.п. / tsc | C12: − | D12: − | E12: − | F12: − | G12: −
A13: Торф неагломерований паливний | B13: т / t | C13: − | D13: − | E13: − | F13: − | G13: − | H13: Peat
B14: т у.п. / tsc | C14: − | D14: − | E14: − | F14: − | G14: −
A15: Брикети, котуни та подібні види твердого палива з вугілля кам’яного | B15: т / t | C15: − | D15: − | E15: − | F15: − | G15: − | H15: Hard coal briquettes
B16: т у.п. / tsc | C16: − | D16: − | E16: − | F16: − | G16: −
A17: Брикети, котуни та подібні види твердого палива з вугілля бурого | B17: т / t | C17: − | D17: − | E17: − | F17: − | G17: − | H17: Brown coal briquettes (BKB)
B18: т у.п. / tsc | C18: − | D18: − | E18: − | F18: − | G18: −
A19: Брикети, котуни та подібні види твердого палива з торфу | B19: т / t | C19: − | D19: − | E19: − | F19: − | G19: − | H19: Peat briquettes
B20: т у.п. / tsc | C20: − | D20: − | E20: − | F20: − | G20: −
A21: Кокс та напівкокс з вугілля кам'яного, кокс газовий | B21: т / t | C21: − | D21: − | E21: − | F21: − | G21: − | H21: Coal coke and coke breeze; gas coke
B22: т у.п. / tsc | C22: − | D22: − | E22: − | F22: − | G22: −
A23: Пек і кокс пековий | B23: т / t | C23: − | D23: − | E23: − | F23: − | G23: − | H23: Pitch and coal pitch
B24: т у.п. / tsc | C24: − | D24: − | E24: − | F24: − | G24: −
A25: Смоли кам’яновугільні, буровугільні або торф’яні | B25: т / t | C25: − | D25: − | E25: − | F25: − | G25: − | H25: Coal, brown coal or peat tar
B26: т у.п. / tsc | C26: − | D26: − | E26: − | F26: − | G26: −
A27: Коксовий газ | B27: тис.м³ / thsd. m³ | C27: − | D27: − | E27: − | F27: − | G27: − | H27: Coke oven gas
B28: т у.п. / tsc | C28: − | D28: − | E28: − | F28: − | G28: −
A29: Доменний газ | B29: тис.м³ / thsd. m³ | C29: − | D29: − | E29: − | F29: − | G29: − | H29: Blast furnace gas
B30: т у.п. / tsc | C30: − | D30: − | E30: − | F30: − | G30: −
A31: Газ інший (газ, отриманий шляхом газифікації вугілля; газ, отриманий у процесі виробництва феросплавів) | B31: тис.м³ / thsd. m³ | C31: − | D31: − | E31: − | F31: − | G31: − | H31: Other gas obtained during coal gasification and ferrous metals production
B32: т у.п. / tsc | C32: − | D32: − | E32: − | F32: − | G32: −
A33: Газ, отриманий у процесі конверторного виробництва сталі | B33: тис.м³ / thsd. m³ | C33: − | D33: − | E33: − | F33: − | G33: − | H33: The gas obtained in the process of converter steel production
B34: т у.п. / tsc | C34: − | D34: − | E34: − | F34: − | G34: −
F35: Продовження табл. 3.2.1.2 / Continued table 3.2.1.2
B36: Одиниці виміру | C36: Усього | D36: у тому числі
D37: including
D38: на пере-творення в інші види палива та енергію | E38: на неенер- гетичні цілі (як сировина матеріал) | F38: кінцеве споживання | G38: втрати при транспор-туванні, розподілі та зберіганні
B39: Unit | C39: Total | D39: transfor-mation into other types of fuel and energy | E39: non-energy use (raw matherial) | F39: final consumption | G39: transportation, distribution and storage losses
A41: Природний газ | B41: тис.м³ / thsd. m³ | C41: 980490.3 | D41: 203825.3 | E41: 21878 | F41: 744993.9 | G41: 9793.1 | H41: Natural gas
B42: т у.п. / tsc | C42: 1137368.748 | D42: 236437.348 | E42: 25378.48 | F42: 864192.924 | G42: 11359.996
A43: Нафта сира, у т.ч. нафта, одержана з мінералів бітумінозних | B43: т / t | C43: 49164.3 | D43: к/с | E43: 3432.1 | F43: к/с | G43: 6524.4 | H43: Conventional crude oilб including obserbed from bitumenous minerals
B44: т у.п. / tsc | C44: 70304.949 | D44: к/с | E44: 4907.903 | F44: к/с | G44: 9329.892
A45: Газовий конденсат | B45: т / t | C45: к/с | D45: к/с | E45: к/с | F45: к/с | G45: − | H45: Natural gas liquids (NGL)
B46: т у.п. / tsc | C46: к/с | D46: к/с | E46: к/с | F46: к/с | G46: −
A47: Бензин моторний | B47: т / t | C47: к/с | D47: к/с | E47: − | F47: 3120.4 | G47: − | H47: Motor gasoline
B48: т у.п. / tsc | C48: к/с | D48: к/с | E48: − | F48: 4649.396 | G48: −
A49: Газойлі (паливо дизельне) | B49: т / t | C49: 10761.2 | D49: 98.6 | E49: − | F49: 10662.6 | G49: − | H49: Road diesel
B50: т у.п. / tsc | C50: 15603.74 | D50: 142.97 | E50: − | F50: 15460.77 | G50: −
A51: Гас | B51: т / t | C51: к/с | D51: − | E51: к/с | F51: к/с | G51: − | H51: Kerosene
B52: т у.п. / tsc | C52: к/с | D52: − | E52: к/с | F52: к/с | G52: −
A53: Мазути паливні важкі | B53: т / t | C53: − | D53: − | E53: − | F53: − | G53: − | H53: Heavy fuel oil
B54: т у.п. / tsc | C54: − | D54: − | E54: − | F54: − | G54: −
A55: Дистиляти нафтові легкі, фракції легкі інші | B55: т / t | C55: к/с | D55: − | E55: к/с | F55: − | G55: − | H55: Light oil distilates and light fractions
B56: т у.п. / tsc | C56: к/с | D56: − | E56: к/с | F56: − | G56: −
A57: Дистиляти нафтові середні, фракції середні інші | B57: т / t | C57: − | D57: − | E57: − | F57: − | G57: − | H57: Middle oil distilates, other middle fractions
B58: т у.п. / tsc | C58: − | D58: − | E58: − | F58: − | G58: −
A59: Оливи та мастила нафтові; | B59: т / t | C59: 1247.9 | D59: − | E59: 1247.9 | F59: − | G59: − | H59: Lubricants
A60: дистиляти нафтові важкі | B60: т у.п. / tsc | C60: 1709.623 | D60: − | E60: 1709.623 | F60: − | G60: −
A61: Пропан і бутан скраплені | B61: т / t | C61: к/с | D61: − | E61: − | F61: к/с | G61: − | H61: Liquefied petroleum gases (LPG)
B62: т у.п. / tsc | C62: к/с | D62: − | E62: − | F62: к/с | G62: −
A63: Бітум нафтовий | B63: т / t | C63: к/с | D63: − | E63: к/с | F63: − | G63: − | H63: Oil bitumen
B64: т у.п. / tsc | C64: к/с | D64: − | E64: к/с | F64: − | G64: −
A65: Вазелін нафтовий, парафін, воски нафтові та інші | B65: т / t | C65: − | D65: − | E65: − | F65: − | G65: − | H65: Oil vaseline, paraffin, mineral waxes and others
B66: т у.п. / tsc | C66: − | D66: − | E66: − | F66: − | G66: −
A67: Кокс нафтовий | B67: т / t | C67: − | D67: − | E67: − | F67: − | G67: − | H67: Petroleum coke
B68: т у.п. / tsc | C68: − | D68: − | E68: − | F68: − | G68: −
A69: Етилен, пропілен, бутилен, бутадієн і гази нафтові інші або вуглеводи газоподібні, крім газу природного | B69: т / t | C69: к/с | D69: − | E69: к/с | F69: к/с | G69: − | H69: Ethylene, propylene, butylene, butadiene other refinery gas or other hydrocar-bons, excluding natural gas
B70: т у.п. / tsc | C70: к/с | D70: − | E70: к/с | F70: к/с | G70: −
A73: Присадки | B73: т / t | C73: − | D73: − | E73: − | F73: − | G73: − | H73: Additives
B74: т у.п. / tsc | C74: − | D74: − | E74: − | F74: − | G74: −
A75: Етан | B75: т / t | C75: − | D75: − | E75: − | F75: − | G75: − | H75: Etan
B76: т у.п. / tsc | C76: − | D76: − | E76: − | F76: − | G76: −
A77: Інші види нафтопродуктів | B77: т / t | C77: − | D77: − | E77: − | F77: − | G77: − | H77: Other oil products
B78: т у.п. / tsc | C78: − | D78: − | E78: − | F78: − | G78: −
A79: Вугілля деревне | B79: м³ щільн. / density, m³ | C79: − | D79: − | E79: − | F79: − | G79: − | H79: Char coal
B80: т у.п. / tsc | C80: − | D80: − | E80: − | F80: − | G80: −
A81: Паливні брикети та гранули з деревини та іншої природньої сировини | B81: т / t | C81: − | D81: − | E81: − | F81: − | G81: − | H81: Fuel briguettes fnd pellets made of wood and other natural materials
B82: т у.п. / tsc | C82: − | D82: − | E82: − | F82: − | G82: −
A83: Дрова для опалення | B83: м³ щільн. / density, m³ | C83: − | D83: − | E83: − | F83: − | G83: − | H83: Fuel wood
B84: т у.п. / tsc | C84: − | D84: − | E84: − | F84: − | G84: −
A85: Стружка і тріска деревні | B85: т / t | C85: − | D85: − | E85: − | F85: − | G85: − | H85: Wood shavings and chips
B86: т у.п. / tsc | C86: − | D86: − | E86: − | F86: − | G86: −
A87: Інше тверде біопаливо рослинного походження | B87: т / t | C87: − | D87: − | E87: − | F87: − | G87: − | H87: Other solid biofuel obtained from plants
B88: т у.п. / tsc | C88: − | D88: − | E88: − | F88: − | G88: −
A89: Рідке біопаливо | B89: т / t | C89: − | D89: − | E89: − | F89: − | G89: − | H89: Liquified biofuel
B90: т у.п. / tsc | C90: − | D90: − | E90: − | F90: − | G90: −
A91: Біогаз | B91: тис.м³ / thsd. m³ | C91: − | D91: − | E91: − | F91: − | G91: − | H91: Biogas
B92: т у.п. / tsc | C92: − | D92: − | E92: − | F92: − | G92: −

Sheet 68-70
A1: 3.2.1.3. Добування металевих руд
A2: Mining of metal ores
B4: Одиниці виміру | C4: Усього | D4: у тому числі
D5: including
D6: на пере-творення в інші види палива та енергію | E6: на неенер- гетичні цілі (як сировина матеріал) | F6: кінцеве споживання | G6: втрати при транспор-туванні, розподілі та зберіганні
B7: Unit | C7: Total | D7: transfor-mation into other types of fuel and energy | E7: non-energy use (raw matherial) | F7: final consumption | G7: transportation, distribution and storage losses
A9: Вугілля кам’яне | B9: т / t | C9: 312.9 | D9: к/с | E9: − | F9: к/с | G9: − | H9: Hard coal
B10: т у.п. / tsc | C10: 234.675 | D10: к/с | E10: − | F10: к/с | G10: −
A11: Вугілля буре | B11: т / t | C11: − | D11: − | E11: − | F11: − | G11: − | H11: Brown coal
B12: т у.п. / tsc | C12: − | D12: − | E12: − | F12: − | G12: −
A13: Торф неагломерований паливний | B13: т / t | C13: − | D13: − | E13: − | F13: − | G13: − | H13: Peat
B14: т у.п. / tsc | C14: − | D14: − | E14: − | F14: − | G14: −
A15: Брикети, котуни та подібні види твердого палива з вугілля кам’яного | B15: т / t | C15: − | D15: − | E15: − | F15: − | G15: − | H15: Hard coal briquettes
B16: т у.п. / tsc | C16: − | D16: − | E16: − | F16: − | G16: −
A17: Брикети, котуни та подібні види твердого палива з вугілля бурого | B17: т / t | C17: − | D17: − | E17: − | F17: − | G17: − | H17: Brown coal briquettes (BKB)
B18: т у.п. / tsc | C18: − | D18: − | E18: − | F18: − | G18: −
A19: Брикети, котуни та подібні види твердого палива з торфу | B19: т / t | C19: − | D19: − | E19: − | F19: − | G19: − | H19: Peat briquettes
B20: т у.п. / tsc | C20: − | D20: − | E20: − | F20: − | G20: −
A21: Кокс та напівкокс з вугілля кам'яного, кокс газовий | B21: т / t | C21: к/с | D21: − | E21: − | F21: к/с | G21: − | H21: Coal coke and coke breeze; gas coke
B22: т у.п. / tsc | C22: к/с | D22: − | E22: − | F22: к/с | G22: −
A23: Пек і кокс пековий | B23: т / t | C23: − | D23: − | E23: − | F23: − | G23: − | H23: Pitch and coal pitch
B24: т у.п. / tsc | C24: − | D24: − | E24: − | F24: − | G24: −
A25: Смоли кам’яновугільні, буровугільні або торф’яні | B25: т / t | C25: − | D25: − | E25: − | F25: − | G25: − | H25: Coal, brown coal or peat tar
B26: т у.п. / tsc | C26: − | D26: − | E26: − | F26: − | G26: −
A27: Коксовий газ | B27: тис.м³ / thsd. m³ | C27: − | D27: − | E27: − | F27: − | G27: − | H27: Coke oven gas
B28: т у.п. / tsc | C28: − | D28: − | E28: − | F28: − | G28: −
A29: Доменний газ | B29: тис.м³ / thsd. m³ | C29: − | D29: − | E29: − | F29: − | G29: − | H29: Blast furnace gas
B30: т у.п. / tsc | C30: − | D30: − | E30: − | F30: − | G30: −
A31: Газ інший (газ, отриманий шляхом газифікації вугілля; газ, отриманий у процесі виробництва феросплавів) | B31: тис.м³ / thsd. m³ | C31: − | D31: − | E31: − | F31: − | G31: − | H31: Other gas obtained during coal gasification and ferrous metals production
B32: т у.п. / tsc | C32: − | D32: − | E32: − | F32: − | G32: −
A33: Газ, отриманий у процесі конверторного виробництва сталі | B33: тис.м³ / thsd. m³ | C33: − | D33: − | E33: − | F33: − | G33: − | H33: The gas obtained in the process of converter steel production
B34: т у.п. / tsc | C34: − | D34: − | E34: − | F34: − | G34: −
F35: Продовження табл. 3.2.1.3 / Continued table 3.2.1.3
B36: Одиниці виміру | C36: Усього | D36: у тому числі
D37: including
D38: на пере-творення в інші види палива та енергію | E38: на неенер- гетичні цілі (як сировина матеріал) | F38: кінцеве споживання | G38: втрати при транспор-туванні, розподілі та зберіганні
B39: Unit | C39: Total | D39: transfor-mation into other types of fuel and energy | E39: non-energy use (raw matherial) | F39: final consumption | G39: transportation, distribution and storage losses
A41: Природний газ | B41: тис.м³ / thsd. m³ | C41: 301604.7 | D41: 40778.9 | E41: − | F41: 260825.8 | G41: − | H41: Natural gas
B42: т у.п. / tsc | C42: 349861.452 | D42: 47303.524 | E42: − | F42: 302557.928 | G42: −
A43: Нафта сира, у т.ч. нафта, одержана з мінералів бітумінозних | B43: т / t | C43: − | D43: − | E43: − | F43: − | G43: − | H43: Conventional crude oilб including obserbed from bitumenous minerals
B44: т у.п. / tsc | C44: − | D44: − | E44: − | F44: − | G44: −
A45: Газовий конденсат | B45: т / t | C45: − | D45: − | E45: − | F45: − | G45: − | H45: Natural gas liquids (NGL)
B46: т у.п. / tsc | C46: − | D46: − | E46: − | F46: − | G46: −
A47: Бензин моторний | B47: т / t | C47: к/с | D47: − | E47: к/с | F47: 3359.7 | G47: − | H47: Motor gasoline
B48: т у.п. / tsc | C48: к/с | D48: − | E48: к/с | F48: 5005.953 | G48: −
A49: Газойлі (паливо дизельне) | B49: т / t | C49: к/с | D49: − | E49: к/с | F49: 244575.1 | G49: − | H49: Road diesel
B50: т у.п. / tsc | C50: к/с | D50: − | E50: к/с | F50: 354633.895 | G50: −
A51: Гас | B51: т / t | C51: к/с | D51: − | E51: к/с | F51: 217.1 | G51: − | H51: Kerosene
B52: т у.п. / tsc | C52: к/с | D52: − | E52: к/с | F52: 318.641 | G52: −
A53: Мазути паливні важкі | B53: т / t | C53: к/с | D53: к/с | E53: − | F53: − | G53: − | H53: Heavy fuel oil
B54: т у.п. / tsc | C54: к/с | D54: к/с | E54: − | F54: − | G54: −
A55: Дистиляти нафтові легкі, фракції легкі інші | B55: т / t | C55: к/с | D55: − | E55: к/с | F55: − | G55: − | H55: Light oil distilates and light fractions
B56: т у.п. / tsc | C56: к/с | D56: − | E56: к/с | F56: − | G56: −
A57: Дистиляти нафтові середні, фракції середні інші | B57: т / t | C57: − | D57: − | E57: − | F57: − | G57: − | H57: Middle oil distilates, other middle fractions
B58: т у.п. / tsc | C58: − | D58: − | E58: − | F58: − | G58: −
A59: Оливи та мастила нафтові; | B59: т / t | C59: к/с | D59: − | E59: 7322.9 | F59: к/с | G59: − | H59: Lubricants
A60: дистиляти нафтові важкі | B60: т у.п. / tsc | C60: к/с | D60: − | E60: 10032.373 | F60: к/с | G60: −
A61: Пропан і бутан скраплені | B61: т / t | C61: к/с | D61: − | E61: − | F61: к/с | G61: − | H61: Liquefied petroleum gases (LPG)
B62: т у.п. / tsc | C62: к/с | D62: − | E62: − | F62: к/с | G62: −
A63: Бітум нафтовий | B63: т / t | C63: к/с | D63: − | E63: к/с | F63: к/с | G63: − | H63: Oil bitumen
B64: т у.п. / tsc | C64: к/с | D64: − | E64: к/с | F64: к/с | G64: −
A65: Вазелін нафтовий, парафін, воски нафтові та інші | B65: т / t | C65: − | D65: − | E65: − | F65: − | G65: − | H65: Oil vaseline, paraffin, mineral waxes and others
B66: т у.п. / tsc | C66: − | D66: − | E66: − | F66: − | G66: −
A67: Кокс нафтовий | B67: т / t | C67: − | D67: − | E67: − | F67: − | G67: − | H67: Petroleum coke
B68: т у.п. / tsc | C68: − | D68: − | E68: − | F68: − | G68: −
A69: Етилен, пропілен, бутилен, бутадієн і гази нафтові інші або вуглеводи газоподібні, крім газу природного | B69: т / t | C69: к/с | D69: − | E69: − | F69: к/с | G69: − | H69: Ethylene, propylene, butylene, butadiene other refinery gas or other hydrocar-bons, excluding natural gas
B70: т у.п. / tsc | C70: к/с | D70: − | E70: − | F70: к/с | G70: −
A72: Присадки | B72: т / t | C72: к/с | D72: − | E72: − | F72: к/с | G72: − | H72: Additives
B73: т / t | C73: к/с | D73: − | E73: − | F73: к/с | G73: −
A74: Етан | B74: т / t | C74: − | D74: − | E74: − | F74: − | G74: − | H74: Etan
B75: т / t | C75: − | D75: − | E75: − | F75: − | G75: −
A76: Інші види нафтопродуктів | B76: т / t | C76: к/с | D76: к/с | E76: к/с | F76: − | G76: − | H76: Other oil products
B77: т / t | C77: к/с | D77: к/с | E77: к/с | F77: − | G77: −
A78: Вугілля деревне | B78: м³ щільн. / density, m³ | C78: − | D78: − | E78: − | F78: − | G78: − | H78: Char coal
B79: т у.п. / tsc | C79: − | D79: − | E79: − | F79: − | G79: −
A80: Паливні брикети та гранули з деревини та іншої природньої сировини | B80: т / t | C80: − | D80: − | E80: − | F80: − | G80: − | H80: Fuel briguettes fnd pellets made of wood and other natural materials
B81: т / t | C81: − | D81: − | E81: − | F81: − | G81: −
A82: Дрова для опалення | B82: м³ щільн. / density, m³ | C82: 33.4 | D82: − | E82: к/с | F82: к/с | G82: − | H82: Fuel wood
B83: т у.п. / tsc | C83: 8.851 | D83: − | E83: к/с | F83: к/с | G83: −
A84: Стружка і тріска деревні | B84: т / t | C84: − | D84: − | E84: − | F84: − | G84: − | H84: Wood shavings and chips
B85: т / t | C85: − | D85: − | E85: − | F85: − | G85: −
A86: Інше тверде біопаливо рослинного походження | B86: т / t | C86: − | D86: − | E86: − | F86: − | G86: − | H86: Other solid biofuel obtained from plants
B87: т / t | C87: − | D87: − | E87: − | F87: − | G87: −
A88: Рідке біопаливо | B88: т / t | C88: − | D88: − | E88: − | F88: − | G88: − | H88: Liquified biofuel
B89: т / t | C89: − | D89: − | E89: − | F89: − | G89: −
A90: Біогаз | B90: тис.м³ / thsd. m³ | C90: − | D90: − | E90: − | F90: − | G90: − | H90: Biogas
B91: т у.п. / tsc | C91: − | D91: − | E91: − | F91: − | G91: −

Sheet 71-73
A1: 3.2.1.4. Добування інших корисних копалин та розроблення кар'єрів
A2: Other mining and quarrying
B4: Одиниці виміру | C4: Усього | D4: у тому числі
D5: including
D6: на пере-творення в інші види палива та енергію | E6: на неенер- гетичні цілі (як сировина матеріал) | F6: кінцеве споживання | G6: втрати при транспор-туванні, розподілі та зберіганні
B7: Unit | C7: Total | D7: transfor-mation into other types of fuel and energy | E7: non-energy use (raw matherial) | F7: final consumption | G7: transportation, distribution and storage losses
A9: Вугілля кам’яне | B9: т / t | C9: 1693.1 | D9: 1559.3 | E9: − | F9: 133.8 | G9: − | H9: Hard coal
B10: т у.п. / tsc | C10: 1269.825 | D10: 1169.475 | E10: − | F10: 100.35 | G10: −
A11: Вугілля буре | B11: т / t | C11: − | D11: − | E11: − | F11: − | G11: − | H11: Brown coal
B12: т у.п. / tsc | C12: − | D12: − | E12: − | F12: − | G12: −
A13: Торф неагломерований паливний | B13: т / t | C13: − | D13: − | E13: − | F13: − | G13: − | H13: Peat
B14: т у.п. / tsc | C14: − | D14: − | E14: − | F14: − | G14: −
A15: Брикети, котуни та подібні види твердого палива з вугілля кам’яного | B15: т / t | C15: к/с | D15: к/с | E15: − | F15: − | G15: − | H15: Hard coal briquettes
B16: т у.п. / tsc | C16: к/с | D16: к/с | E16: − | F16: − | G16: −
A17: Брикети, котуни та подібні види твердого палива з вугілля бурого | B17: т / t | C17: − | D17: − | E17: − | F17: − | G17: − | H17: Brown coal briquettes (BKB)
B18: т у.п. / tsc | C18: − | D18: − | E18: − | F18: − | G18: −
A19: Брикети, котуни та подібні види твердого палива з торфу | B19: т / t | C19: 127.8 | D19: − | E19: − | F19: 127.8 | G19: − | H19: Peat briquettes
B20: т у.п. / tsc | C20: 63.9 | D20: − | E20: − | F20: 63.9 | G20: −
A21: Кокс та напівкокс з вугілля кам'яного, кокс газовий | B21: т / t | C21: к/с | D21: − | E21: − | F21: к/с | G21: − | H21: Coal coke and coke breeze; gas coke
B22: т у.п. / tsc | C22: к/с | D22: − | E22: − | F22: к/с | G22: −
A23: Пек і кокс пековий | B23: т / t | C23: − | D23: − | E23: − | F23: − | G23: − | H23: Pitch and coal pitch
B24: т у.п. / tsc | C24: − | D24: − | E24: − | F24: − | G24: −
A25: Смоли кам’яновугільні, буровугільні або торф’яні | B25: т / t | C25: − | D25: − | E25: − | F25: − | G25: − | H25: Coal, brown coal or peat tar
B26: т у.п. / tsc | C26: − | D26: − | E26: − | F26: − | G26: −
A27: Коксовий газ | B27: тис.м³ / thsd. m³ | C27: − | D27: − | E27: − | F27: − | G27: − | H27: Coke oven gas
B28: т у.п. / tsc | C28: − | D28: − | E28: − | F28: − | G28: −
A29: Доменний газ | B29: тис.м³ / thsd. m³ | C29: − | D29: − | E29: − | F29: − | G29: − | H29: Blast furnace gas
B30: т у.п. / tsc | C30: − | D30: − | E30: − | F30: − | G30: −
A31: Газ інший (газ, отриманий шляхом газифікації вугілля; газ, отриманий у процесі виробництва феросплавів) | B31: тис.м³ / thsd. m³ | C31: − | D31: − | E31: − | F31: − | G31: − | H31: Other gas obtained during coal gasification and ferrous metals production
B32: т у.п. / tsc | C32: − | D32: − | E32: − | F32: − | G32: −
A33: Газ, отриманий у процесі конверторного виробництва сталі | B33: тис.м³ / thsd. m³ | C33: − | D33: − | E33: − | F33: − | G33: − | H33: The gas obtained in the process of converter steel production
B34: т у.п. / tsc | C34: − | D34: − | E34: − | F34: − | G34: −
F35: Продовження табл. 3.2.1.4 / Continued table 3.2.1.4
B36: Одиниці виміру | C36: Усього | D36: у тому числі
D37: including
D38: на пере-творення в інші види палива та енергію | E38: на неенер- гетичні цілі (як сировина матеріал) | F38: кінцеве споживання | G38: втрати при транспор-туванні, розподілі та зберіганні
B39: Unit | C39: Total | D39: transfor-mation into other types of fuel and energy | E39: non-energy use (raw matherial) | F39: final consumption | G39: transportation, distribution and storage losses
A41: Природний газ | B41: тис.м³ / thsd. m³ | C41: 29332.8 | D41: 13408.7 | E41: − | F41: 15924.1 | G41: − | H41: Natural gas
B42: т у.п. / tsc | C42: 34026.048 | D42: 15554.092 | E42: − | F42: 18471.956 | G42: −
A43: Нафта сира, у т.ч. нафта, одержана з мінералів бітумінозних | B43: т / t | C43: − | D43: − | E43: − | F43: − | G43: − | H43: Conventional crude oilб including obserbed from bitumenous minerals
B44: т у.п. / tsc | C44: − | D44: − | E44: − | F44: − | G44: −
A45: Газовий конденсат | B45: т / t | C45: − | D45: − | E45: − | F45: − | G45: − | H45: Natural gas liquids (NGL)
B46: т у.п. / tsc | C46: − | D46: − | E46: − | F46: − | G46: −
A47: Бензин моторний | B47: т / t | C47: к/с | D47: − | E47: − | F47: 2180.3 | G47: к/с | H47: Motor gasoline
B48: т у.п. / tsc | C48: к/с | D48: − | E48: − | F48: 3248.647 | G48: к/с
A49: Газойлі (паливо дизельне) | B49: т / t | C49: 102148.8 | D49: − | E49: − | F49: 102148.8 | G49: − | H49: Road diesel
B50: т у.п. / tsc | C50: 148115.76 | D50: − | E50: − | F50: 148115.76 | G50: −
A51: Гас | B51: т / t | C51: к/с | D51: − | E51: 4.1 | F51: к/с | G51: − | H51: Kerosene
B52: т у.п. / tsc | C52: к/с | D52: − | E52: 6.027 | F52: к/с | G52: −
A53: Мазути паливні важкі | B53: т / t | C53: к/с | D53: к/с | E53: к/с | F53: − | G53: − | H53: Heavy fuel oil
B54: т у.п. / tsc | C54: к/с | D54: к/с | E54: к/с | F54: − | G54: −
A55: Дистиляти нафтові легкі, фракції легкі інші | B55: т / t | C55: − | D55: − | E55: − | F55: − | G55: − | H55: Light oil distilates and light fractions
B56: т у.п. / tsc | C56: − | D56: − | E56: − | F56: − | G56: −
A57: Дистиляти нафтові середні, фракції середні інші | B57: т / t | C57: к/с | D57: − | E57: к/с | F57: − | G57: − | H57: Middle oil distilates, other middle fractions
B58: т у.п. / tsc | C58: к/с | D58: − | E58: к/с | F58: − | G58: −
A59: Оливи та мастила нафтові; | B59: т / t | C59: 2912.8 | D59: − | E59: 2693.3 | F59: 219.5 | G59: − | H59: Lubricants
A60: дистиляти нафтові важкі | B60: т у.п. / tsc | C60: 3990.536 | D60: − | E60: 3689.821 | F60: 300.715 | G60: −
A61: Пропан і бутан скраплені | B61: т / t | C61: 505.7 | D61: − | E61: 5.5 | F61: 500.2 | G61: − | H61: Liquefied petroleum gases (LPG)
B62: т у.п. / tsc | C62: 793.949 | D62: − | E62: 8.635 | F62: 785.314 | G62: −
A63: Бітум нафтовий | B63: т / t | C63: к/с | D63: − | E63: к/с | F63: − | G63: − | H63: Oil bitumen
B64: т у.п. / tsc | C64: к/с | D64: − | E64: к/с | F64: − | G64: −
A65: Вазелін нафтовий, парафін, воски нафтові та інші | B65: т / t | C65: − | D65: − | E65: − | F65: − | G65: − | H65: Oil vaseline, paraffin, mineral waxes and others
B66: т у.п. / tsc | C66: − | D66: − | E66: − | F66: − | G66: −
A67: Кокс нафтовий | B67: т / t | C67: − | D67: − | E67: − | F67: − | G67: − | H67: Petroleum coke
B68: т у.п. / tsc | C68: − | D68: − | E68: − | F68: − | G68: −
A69: Етилен, пропілен, бутилен, бутадієн і гази нафтові інші або вуглеводи газоподібні, крім газу природного | B69: т / t | C69: − | D69: − | E69: − | F69: − | G69: − | H69: Ethylene, propylene, butylene, butadiene other refinery gas or other hydrocar-bons, excluding natural gas
B70: т у.п. / tsc | C70: − | D70: − | E70: − | F70: − | G70: −
A72: Присадки | B72: т / t | C72: к/с | D72: − | E72: − | F72: к/с | G72: − | H72: Additives
B73: т у.п. / tsc | C73: к/с | D73: − | E73: − | F73: к/с | G73: −
A74: Етан | B74: т / t | C74: − | D74: − | E74: − | F74: − | G74: − | H74: Etan
B75: т у.п. / tsc | C75: − | D75: − | E75: − | F75: − | G75: −
A76: Інші види нафтопродуктів | B76: т / t | C76: к/с | D76: − | E76: к/с | F76: к/с | G76: − | H76: Other oil products
B77: т у.п. / tsc | C77: к/с | D77: − | E77: к/с | F77: к/с | G77: −
A78: Вугілля деревне | B78: м³ щільн. / density, m³ | C78: − | D78: − | E78: − | F78: − | G78: − | H78: Char coal
B79: т у.п. / tsc | C79: − | D79: − | E79: − | F79: − | G79: −
A80: Паливні брикети та гранули з деревини та іншої природньої сировини | B80: т / t | C80: к/с | D80: к/с | E80: − | F80: к/с | G80: − | H80: Fuel briguettes fnd pellets made of wood and other natural materials
B81: т у.п. / tsc | C81: к/с | D81: к/с | E81: − | F81: к/с | G81: −
A82: Дрова для опалення | B82: м³ щільн. / density, m³ | C82: 5107.6 | D82: 2485.7 | E82: − | F82: 2621.9 | G82: − | H82: Fuel wood
B83: т у.п. / tsc | C83: 1353.514 | D83: 658.7105 | E83: − | F83: 694.8035 | G83: −
A84: Стружка і тріска деревні | B84: т / t | C84: к/с | D84: к/с | E84: − | F84: к/с | G84: − | H84: Wood shavings and chips
B85: т у.п. / tsc | C85: к/с | D85: к/с | E85: − | F85: к/с | G85: −
A86: Інше тверде біопаливо рослинного походження | B86: т / t | C86: к/с | D86: к/с | E86: − | F86: к/с | G86: − | H86: Other solid biofuel obtained from plants
B87: т у.п. / tsc | C87: к/с | D87: к/с | E87: − | F87: к/с | G87: −
A88: Рідке біопаливо | B88: т / t | C88: − | D88: − | E88: − | F88: − | G88: − | H88: Liquified biofuel
B89: т у.п. / tsc | C89: − | D89: − | E89: − | F89: − | G89: −
A90: Біогаз | B90: тис.м³ / thsd. m³ | C90: − | D90: − | E90: − | F90: − | G90: − | H90: Biogas
B91: т у.п. / tsc | C91: − | D91: − | E91: − | F91: − | G91: −

Sheet 74-76
A1: 3.2.1.5. Надання допоміжних послуг у сфері добувної промисловості та розроблення кар'єрів
A2: Mining support service activities
B4: Одиниці виміру | C4: Усього | D4: у тому числі
D5: including
D6: на пере-творення в інші види палива та енергію | E6: на неенер- гетичні цілі (як сировина матеріал) | F6: кінцеве споживання | G6: втрати при транспор-туванні, розподілі та зберіганні
B7: Unit | C7: Total | D7: transfor-mation into other types of fuel and energy | E7: non-energy use (raw matherial) | F7: final consumption | G7: transportation, distribution and storage losses
A9: Вугілля кам’яне | B9: т / t | C9: к/с | D9: к/с | E9: − | F9: к/с | G9: − | H9: Hard coal
B10: т у.п. / tsc | C10: к/с | D10: к/с | E10: − | F10: к/с | G10: −
A11: Вугілля буре | B11: т / t | C11: − | D11: − | E11: − | F11: − | G11: − | H11: Brown coal
B12: т у.п. / tsc | C12: − | D12: − | E12: − | F12: − | G12: −
A13: Торф неагломерований паливний | B13: т / t | C13: − | D13: − | E13: − | F13: − | G13: − | H13: Peat
B14: т у.п. / tsc | C14: − | D14: − | E14: − | F14: − | G14: −
A15: Брикети, котуни та подібні види твердого палива з вугілля кам’яного | B15: т / t | C15: − | D15: − | E15: − | F15: − | G15: − | H15: Hard coal briquettes
B16: т у.п. / tsc | C16: − | D16: − | E16: − | F16: − | G16: −
A17: Брикети, котуни та подібні види твердого палива з вугілля бурого | B17: т / t | C17: − | D17: − | E17: − | F17: − | G17: − | H17: Brown coal briquettes (BKB)
B18: т у.п. / tsc | C18: − | D18: − | E18: − | F18: − | G18: −
A19: Брикети, котуни та подібні види твердого палива з торфу | B19: т / t | C19: − | D19: − | E19: − | F19: − | G19: − | H19: Peat briquettes
B20: т у.п. / tsc | C20: − | D20: − | E20: − | F20: − | G20: −
A21: Кокс та напівкокс з вугілля кам'яного, кокс газовий | B21: т / t | C21: − | D21: − | E21: − | F21: − | G21: − | H21: Coal coke and coke breeze; gas coke
B22: т у.п. / tsc | C22: − | D22: − | E22: − | F22: − | G22: −
A23: Пек і кокс пековий | B23: т / t | C23: − | D23: − | E23: − | F23: − | G23: − | H23: Pitch and coal pitch
B24: т у.п. / tsc | C24: − | D24: − | E24: − | F24: − | G24: −
A25: Смоли кам’яновугільні, буровугільні або торф’яні | B25: т / t | C25: − | D25: − | E25: − | F25: − | G25: − | H25: Coal, brown coal or peat tar
B26: т у.п. / tsc | C26: − | D26: − | E26: − | F26: − | G26: −
A27: Коксовий газ | B27: тис.м³ / thsd. m³ | C27: − | D27: − | E27: − | F27: − | G27: − | H27: Coke oven gas
B28: т у.п. / tsc | C28: − | D28: − | E28: − | F28: − | G28: −
A29: Доменний газ | B29: тис.м³ / thsd. m³ | C29: − | D29: − | E29: − | F29: − | G29: − | H29: Blast furnace gas
B30: т у.п. / tsc | C30: − | D30: − | E30: − | F30: − | G30: −
A31: Газ інший (газ, отриманий шляхом газифікації вугілля; газ, отриманий у процесі виробництва феросплавів) | B31: тис.м³ / thsd. m³ | C31: − | D31: − | E31: − | F31: − | G31: − | H31: Other gas obtained during coal gasification and ferrous metals production
B32: т у.п. / tsc | C32: − | D32: − | E32: − | F32: − | G32: −
A33: Газ, отриманий у процесі конверторного виробництва сталі | B33: тис.м³ / thsd. m³ | C33: − | D33: − | E33: − | F33: − | G33: − | H33: The gas obtained in the process of converter steel production
B34: т у.п. / tsc | C34: − | D34: − | E34: − | F34: − | G34: −
F35: Продовження табл. 3.2.1.4 / Continued table 3.2.1.4
B36: Одиниці виміру | C36: Усього | D36: у тому числі
D37: including
D38: на пере-творення в інші види палива та енергію | E38: на неенер- гетичні цілі (як сировина матеріал) | F38: кінцеве споживання | G38: втрати при транспор-туванні, розподілі та зберіганні
B39: Unit | C39: Total | D39: transfor-mation into other types of fuel and energy | E39: non-energy use (raw matherial) | F39: final consumption | G39: transportation, distribution and storage losses
A41: Природний газ | B41: тис.м³ / thsd. m³ | C41: 426.4 | D41: 412.9 | E41: − | F41: 13.5 | G41: − | H41: Natural gas
B42: т у.п. / tsc | C42: 494.624 | D42: 478.964 | E42: − | F42: 15.66 | G42: −
A43: Нафта сира, у т.ч. нафта, одержана з мінералів бітумінозних | B43: т / t | C43: к/с | D43: − | E43: к/с | F43: − | G43: − | H43: Conventional crude oilб including obserbed from bitumenous minerals
B44: т у.п. / tsc | C44: к/с | D44: − | E44: к/с | F44: − | G44: −
A45: Газовий конденсат | B45: т / t | C45: − | D45: − | E45: − | F45: − | G45: − | H45: Natural gas liquids (NGL)
B46: т у.п. / tsc | C46: − | D46: − | E46: − | F46: − | G46: −
A47: Бензин моторний | B47: т / t | C47: к/с | D47: к/с | E47: − | F47: 725.5 | G47: − | H47: Motor gasoline
B48: т у.п. / tsc | C48: к/с | D48: к/с | E48: − | F48: 1080.995 | G48: −
A49: Газойлі (паливо дизельне) | B49: т / t | C49: 18714.5 | D49: к/с | E49: к/с | F49: 14718.4 | G49: − | H49: Road diesel
B50: т у.п. / tsc | C50: 27136.025 | D50: к/с | E50: к/с | F50: 21341.68 | G50: −
A51: Гас | B51: т / t | C51: к/с | D51: − | E51: − | F51: к/с | G51: − | H51: Kerosene
B52: т у.п. / tsc | C52: к/с | D52: − | E52: − | F52: к/с | G52: −
A53: Мазути паливні важкі | B53: т / t | C53: − | D53: − | E53: − | F53: − | G53: − | H53: Heavy fuel oil
B54: т у.п. / tsc | C54: − | D54: − | E54: − | F54: − | G54: −
A55: Дистиляти нафтові легкі, фракції легкі інші | B55: т / t | C55: − | D55: − | E55: − | F55: − | G55: − | H55: Light oil distilates and light fractions
B56: т у.п. / tsc | C56: − | D56: − | E56: − | F56: − | G56: −
A57: Дистиляти нафтові середні, фракції середні інші | B57: т / t | C57: − | D57: − | E57: − | F57: − | G57: − | H57: Middle oil distilates, other middle fractions
B58: т у.п. / tsc | C58: − | D58: − | E58: − | F58: − | G58: −
A59: Оливи та мастила нафтові; | B59: т / t | C59: 380 | D59: − | E59: 380 | F59: − | G59: − | H59: Lubricants
A60: дистиляти нафтові важкі | B60: т у.п. / tsc | C60: 520.6 | D60: − | E60: 520.6 | F60: − | G60: −
A61: Пропан і бутан скраплені | B61: т / t | C61: 75.2 | D61: − | E61: − | F61: 75.2 | G61: − | H61: Liquefied petroleum gases (LPG)
B62: т у.п. / tsc | C62: 118.064 | D62: − | E62: − | F62: 118.064 | G62: −
A63: Бітум нафтовий | B63: т / t | C63: − | D63: − | E63: − | F63: − | G63: − | H63: Oil bitumen
B64: т у.п. / tsc | C64: − | D64: − | E64: − | F64: − | G64: −
A65: Вазелін нафтовий, парафін, воски нафтові та інші | B65: т / t | C65: − | D65: − | E65: − | F65: − | G65: − | H65: Oil vaseline, paraffin, mineral waxes and others
B66: т у.п. / tsc | C66: − | D66: − | E66: − | F66: − | G66: −
A67: Кокс нафтовий | B67: т / t | C67: − | D67: − | E67: − | F67: − | G67: − | H67: Petroleum coke
B68: т у.п. / tsc | C68: − | D68: − | E68: − | F68: − | G68: −
A69: Етилен, пропілен, бутилен, бутадієн і гази нафтові інші або вуглеводи газоподібні, крім газу природного | B69: т / t | C69: − | D69: − | E69: − | F69: − | G69: − | H69: Ethylene, propylene, butylene, butadiene other refinery gas or other hydrocar-bons, excluding natural gas
B70: т у.п. / tsc | C70: − | D70: − | E70: − | F70: − | G70: −
B72: т / t
A73: Присадки | B73: т / t | C73: − | D73: − | E73: − | F73: − | G73: − | H73: Additives
B74: т / t | C74: − | D74: − | E74: − | F74: − | G74: −
A75: Етан | B75: т / t | C75: − | D75: − | E75: − | F75: − | G75: − | H75: Etan
B76: т / t | C76: − | D76: − | E76: − | F76: − | G76: −
A77: Інші види нафтопродуктів | B77: т / t | C77: − | D77: − | E77: − | F77: − | G77: − | H77: Other oil products
B78: т у.п. / tsc | C78: − | D78: − | E78: − | F78: − | G78: −
A79: Вугілля деревне | B79: м³ щільн. / density, m³ | C79: − | D79: − | E79: − | F79: − | G79: − | H79: Char coal
B80: т / t | C80: − | D80: − | E80: − | F80: − | G80: −
A81: Паливні брикети та гранули з деревини та іншої природньої сировини | B81: т / t | C81: − | D81: − | E81: − | F81: − | G81: − | H81: Fuel briguettes fnd pellets made of wood and other natural materials
B82: т у.п. / tsc | C82: − | D82: − | E82: − | F82: − | G82: −
A83: Дрова для опалення | B83: м³ щільн. / density, m³ | C83: 149.3 | D83: к/с | E83: к/с | F83: к/с | G83: − | H83: Fuel wood
B84: т / t | C84: 39.5645 | D84: к/с | E84: к/с | F84: к/с | G84: −
A85: Стружка і тріска деревні | B85: т / t | C85: − | D85: − | E85: − | F85: − | G85: − | H85: Wood shavings and chips
B86: т / t | C86: − | D86: − | E86: − | F86: − | G86: −
A87: Інше тверде біопаливо рослинного походження | B87: т / t | C87: − | D87: − | E87: − | F87: − | G87: − | H87: Other solid biofuel obtained from plants
B88: т / t | C88: − | D88: − | E88: − | F88: − | G88: −
A89: Рідке біопаливо | B89: т / t | C89: − | D89: − | E89: − | F89: − | G89: − | H89: Liquified biofuel
B90: т у.п. / tsc | C90: − | D90: − | E90: − | F90: − | G90: −
A91: Біогаз | B91: тис.м³ / thsd. m³ | C91: − | D91: − | E91: − | F91: − | G91: − | H91: Biogas
B92: т у.п. / tsc | C92: − | D92: − | E92: − | F92: − | G92: −

Sheet 77-79
A1: 3.2.2. Переробна промисловість
A2: Manufacturing
B4: Одиниці виміру | C4: Усього | D4: у тому числі
D5: including
D6: на пере-творення в інші види палива та енергію | E6: на неенер- гетичні цілі (як сировина матеріал) | F6: кінцеве споживання | G6: втрати при транспор-туванні, розподілі та зберіганні
B7: Unit | C7: Total | D7: transfor-mation into other types of fuel and energy | E7: non-energy use (raw matherial) | F7: final consumption | G7: transportation, distribution and storage losses
A9: Вугілля кам’яне | B9: т / t | C9: к/с | D9: 13071798.2 | E9: 144077 | F9: 3482624.4 | G9: к/с | H9: Hard coal
B10: т у.п. / tsc | C10: к/с | D10: 9803848.65 | E10: 108057.75 | F10: 2611968.3 | G10: к/с
A11: Вугілля буре | B11: т / t | C11: к/с | D11: к/с | E11: к/с | F11: к/с | G11: − | H11: Brown coal
B12: т у.п. / tsc | C12: к/с | D12: к/с | E12: к/с | F12: к/с | G12: −
A13: Торф неагломерований паливний | B13: т / t | C13: 273813.5 | D13: 252922.7 | E13: к/с | F13: к/с | G13: к/с | H13: Peat
B14: т у.п. / tsc | C14: 88167.947 | D14: 81441.1094 | E14: к/с | F14: к/с | G14: к/с
A15: Брикети, котуни та подібні види твердого палива з вугілля кам’яного | B15: т / t | C15: к/с | D15: 110.9 | E15: − | F15: к/с | G15: − | H15: Hard coal briquettes
B16: т у.п. / tsc | C16: к/с | D16: 65.431 | E16: − | F16: к/с | G16: −
A17: Брикети, котуни та подібні види твердого палива з вугілля бурого | B17: т / t | C17: к/с | D17: к/с | E17: − | F17: − | G17: − | H17: Brown coal briquettes (BKB)
B18: т у.п. / tsc | C18: к/с | D18: к/с | E18: − | F18: − | G18: −
A19: Брикети, котуни та подібні види твердого палива з торфу | B19: т / t | C19: к/с | D19: 23741.5 | E19: − | F19: 3882.1 | G19: к/с | H19: Peat briquettes
B20: т у.п. / tsc | C20: к/с | D20: 11870.75 | E20: − | F20: 1941.05 | G20: к/с
A21: Кокс та напівкокс з вугілля кам'яного, кокс газовий | B21: т / t | C21: 10427924.4 | D21: 4249248 | E21: 376491.8 | F21: 5802184.6 | G21: − | H21: Coal coke and coke breeze; gas coke
B22: т у.п. / tsc | C22: 10146370.44 | D22: 4134518.304 | E22: 366326.5214 | F22: 5645525.616 | G22: −
A23: Пек і кокс пековий | B23: т / t | C23: к/с | D23: − | E23: к/с | F23: − | G23: − | H23: Pitch and coal pitch
B24: т у.п. / tsc | C24: к/с | D24: − | E24: к/с | F24: − | G24: −
A25: Смоли кам’яновугільні, буровугільні або торф’яні | B25: т / t | C25: к/с | D25: к/с | E25: к/с | F25: − | G25: − | H25: Coal, brown coal or peat tar
B26: т у.п. / tsc | C26: к/с | D26: к/с | E26: к/с | F26: − | G26: −
A27: Коксовий газ | B27: тис.м³ / thsd. m³ | C27: 3984999.9 | D27: 1101747.3 | E27: − | F27: 2883252.6 | G27: − | H27: Coke oven gas
B28: т у.п. / tsc | C28: 2275434.943 | D28: 629097.7083 | E28: − | F28: 1646337.235 | G28: −
A29: Доменний газ | B29: тис.м³ / thsd. m³ | C29: к/с | D29: 8268041.4 | E29: к/с | F29: 15858340.8 | G29: − | H29: Blast furnace gas
B30: т у.п. / tsc | C30: к/с | D30: 1207134.044 | E30: к/с | F30: 2315317.757 | G30: −
A31: Газ інший (газ, отриманий шляхом газифікації вугілля; газ, отриманий у процесі виробництва феросплавів) | B31: тис.м³ / thsd. m³ | C31: к/с | D31: к/с | E31: − | F31: к/с | G31: − | H31: Other gas obtained during coal gasification and ferrous metals production
B32: т у.п. / tsc | C32: к/с | D32: к/с | E32: − | F32: к/с | G32: −
A33: Газ, отриманий у процесі конверторного виробництва сталі | B33: тис.м³ / thsd. m³ | C33: − | D33: − | E33: − | F33: − | G33: − | H33: The gas obtained in the process of converter steel production
B34: т у.п. / tsc | C34: − | D34: − | E34: − | F34: − | G34: −
F35: Продовження табл. 3.2.1.4 / Continued table 3.2.1.4
B36: Одиниці виміру | C36: Усього | D36: у тому числі
D37: including
D38: на пере-творення в інші види палива та енергію | E38: на неенер- гетичні цілі (як сировина матеріал) | F38: кінцеве споживання | G38: втрати при транспор-туванні, розподілі та зберіганні
B39: Unit | C39: Total | D39: transfor-mation into other types of fuel and energy | E39: non-energy use (raw matherial) | F39: final consumption | G39: transportation, distribution and storage losses
A41: Природний газ | B41: тис.м³/ thsd. m³ | C41: к/с | D41: 2016087.1 | E41: 2745674.8 | F41: 3309094.4 | G41: к/с | H41: Natural gas
B42: т у.п. / tsc | C42: к/с | D42: 2338661.036 | E42: 3184982.768 | F42: 3838549.504 | G42: к/с
A43: Нафта сира, у т.ч. нафта, одержана з мінералів бітумінозних | B43: т / t | C43: к/с | D43: к/с | E43: к/с | F43: − | G43: − | H43: Conventional crude oilб including obserbed from bitumenous minerals
B44: т у.п. / tsc | C44: к/с | D44: к/с | E44: к/с | F44: − | G44: −
A45: Газовий конденсат | B45: т / t | C45: 77316.7 | D45: 76923.7 | E45: к/с | F45: к/с | G45: − | H45: Natural gas liquids (NGL)
B46: т у.п. / tsc | C46: 110562.881 | D46: 110000.891 | E46: к/с | F46: к/с | G46: −
A47: Бензин моторний | B47: т / t | C47: к/с | D47: к/с | E47: 13.8 | F47: 55675.1 | G47: − | H47: Motor gasoline
B48: т у.п. / tsc | C48: к/с | D48: к/с | E48: 20.562 | F48: 82955.899 | G48: −
A49: Газойлі (паливо дизельне) | B49: т / t | C49: 526942.1 | D49: 3229.2 | E49: 330.2 | F49: 523382.7 | G49: − | H49: Road diesel
B50: т у.п. / tsc | C50: 764066.045 | D50: 4682.34 | E50: 478.79 | F50: 758904.915 | G50: −
A51: Гас | B51: т / t | C51: 3997.4 | D51: − | E51: 295.4 | F51: 3702 | G51: − | H51: Kerosene
B52: т у.п. / tsc | C52: 5812.506 | D52: − | E52: 432.952 | F52: 5379.554 | G52: −
A53: Мазути паливні важкі | B53: т / t | C53: к/с | D53: 13558.6 | E53: 520.2 | F53: 5822.6 | G53: к/с | H53: Heavy fuel oil
B54: т у.п. / tsc | C54: к/с | D54: 18575.282 | E54: 712.674 | F54: 7976.962 | G54: к/с
A55: Дистиляти нафтові легкі, фракції легкі інші | B55: т / t | C55: к/с | D55: к/с | E55: 957.2 | F55: 715.7 | G55: − | H55: Light oil distilates and light fractions
B56: т у.п. / tsc | C56: к/с | D56: к/с | E56: 1387.94 | F56: 1037.765 | G56: −
A57: Дистиляти нафтові середні, фракції середні інші | B57: т / t | C57: 11377.6 | D57: 8363.6 | E57: 52.8 | F57: 2961.2 | G57: − | H57: Middle oil distilates, other middle fractions
B58: т у.п. / tsc | C58: 16497.52 | D58: 12127.22 | E58: 76.56 | F58: 4293.74 | G58: −
A59: Оливи та мастила нафтові; | B59: т / t | C59: к/с | D59: к/с | E59: 166259.4 | F59: 575.7 | G59: − | H59: Lubricants
A60: дистиляти нафтові важкі | B60: т у.п. / tsc | C60: к/с | D60: к/с | E60: 227775.378 | F60: 788.709 | G60: −
A61: Пропан і бутан скраплені | B61: т / t | C61: к/с | D61: к/с | E61: 155.7 | F61: 134914.9 | G61: − | H61: Liquefied petroleum gases (LPG)
B62: т у.п. / tsc | C62: к/с | D62: к/с | E62: 244.449 | F62: 211816.393 | G62: −
A63: Бітум нафтовий | B63: т / t | C63: к/с | D63: − | E63: 202432.1 | F63: к/с | G63: − | H63: Oil bitumen
B64: т у.п. / tsc | C64: к/с | D64: − | E64: 273283.335 | F64: к/с | G64: −
A65: Вазелін нафтовий, парафін, воски нафтові та інші | B65: т / t | C65: к/с | D65: − | E65: 74.3 | F65: к/с | G65: − | H65: Oil vaseline, paraffin, mineral waxes and others
B66: т у.п. / tsc | C66: к/с | D66: − | E66: 109.8897 | F66: к/с | G66: −
A67: Кокс нафтовий | B67: т / t | C67: к/с | D67: − | E67: к/с | F67: − | G67: − | H67: Petroleum coke
B68: т у.п. / tsc | C68: к/с | D68: − | E68: к/с | F68: − | G68: −
A69: Етилен, пропілен, бутилен, бутадієн і гази нафтові інші або вуглеводи газоподібні, крім газу природного | B69: т / t | C69: 384.4 | D69: − | E69: − | F69: 384.4 | G69: − | H69: Ethylene, propylene, butylene, butadiene other refinery gas or other hydrocar-bons, excluding natural gas
B70: т у.п. / tsc | C70: 572.756 | D70: − | E70: − | F70: 572.756 | G70: −
A72: Присадки | B72: т / t | C72: к/с | D72: к/с | E72: к/с | F72: − | G72: − | H72: Additives
B73: т у.п. / tsc | C73: к/с | D73: к/с | E73: к/с | F73: − | G73: −
A74: Етан | B74: т / t | C74: − | D74: − | E74: − | F74: − | G74: − | H74: Etan
B75: т у.п. / tsc | C75: − | D75: − | E75: − | F75: − | G75: −
A76: Інші види нафтопродуктів | B76: т / t | C76: к/с | D76: к/с | E76: 7955.9 | F76: 1142.5 | G76: − | H76: Other oil products
B77: т у.п. / tsc | C77: к/с | D77: к/с | E77: 11536.055 | F77: 1656.625 | G77: −
A78: Вугілля деревне | B78: м³ щільн. / density, m³ | C78: к/с | D78: − | E78: к/с | F78: 177.6 | G78: − | H78: Char coal
B79: т у.п. / tsc | C79: к/с | D79: − | E79: к/с | F79: 165.168 | G79: −
A80: Паливні брикети та гранули з деревини та іншої природньої сировини | B80: т / t | C80: к/с | D80: 157344.6 | E80: к/с | F80: 24057.5 | G80: − | H80: Fuel briguettes fnd pellets made of wood and other natural materials
B81: т у.п. / tsc | C81: к/с | D81: 90158.4558 | E81: к/с | F81: 13784.9475 | G81: −
A82: Дрова для опалення | B82: м³ щільн. / density, m³ | C82: к/с | D82: 273914.6 | E82: к/с | F82: 159424.8 | G82: − | H82: Fuel wood
B83: т у.п. / tsc | C83: к/с | D83: 72587.369 | E83: к/с | F83: 42247.572 | G83: −
A84: Стружка і тріска деревні | B84: т / t | C84: 431672.4 | D84: 384799 | E84: к/с | F84: 46801.1 | G84: к/с | H84: Wood shavings and chips
B85: т у.п. / tsc | C85: 155402.064 | D85: 138527.64 | E85: к/с | F85: 16848.396 | G85: к/с
A86: Інше тверде біопаливо рослинного походження | B86: т / t | C86: 1356652.4 | D86: 1192671.8 | E86: к/с | F86: к/с | G86: − | H86: Other solid biofuel obtained from plants
B87: т у.п. / tsc | C87: 455835.2064 | D87: 400737.7248 | E87: к/с | F87: к/с | G87: −
A88: Рідке біопаливо | B88: т / t | C88: − | D88: − | E88: − | F88: − | G88: − | H88: Liquified biofuel
B89: т у.п. / tsc | C89: − | D89: − | E89: − | F89: − | G89: −
A90: Біогаз | B90: тис.м³ / thsd. m³ | C90: 20909.2 | D90: 20909.2 | E90: − | F90: − | G90: − | H90: Biogas
B91: т у.п. / tsc | C91: 35963.824 | D91: 35963.824 | E91: − | F91: − | G91: −

Sheet 80-82
A1: 3.2.2.1 Виробництво харчових продуктів
A2: Manufacturing of food
B4: Одиниці виміру | C4: Усього | D4: у тому числі
D5: including
D6: на пере-творення в інші види палива та енергію | E6: на неенер- гетичні цілі (як сировина матеріал) | F6: кінцеве споживання | G6: втрати при транспор-туванні, розподілі та зберіганні
B7: Unit | C7: Total | D7: transfor-mation into other types of fuel and energy | E7: non-energy use (raw matherial) | F7: final consumption | G7: transportation, distribution and storage losses
A9: Вугілля кам’яне | B9: т / t | C9: 70615.5 | D9: 29075.4 | E9: − | F9: 41540.1 | G9: − | H9: Hard coal
B10: т у.п. / tsc | C10: 52961.625 | D10: 21806.55 | E10: − | F10: 31155.075 | G10: −
A11: Вугілля буре | B11: т / t | C11: к/с | D11: к/с | E11: − | F11: − | G11: − | H11: Brown coal
B12: т у.п. / tsc | C12: к/с | D12: к/с | E12: − | F12: − | G12: −
A13: Торф неагломерований паливний | B13: т / t | C13: к/с | D13: к/с | E13: − | F13: − | G13: − | H13: Peat
B14: т у.п. / tsc | C14: к/с | D14: к/с | E14: − | F14: − | G14: −
A15: Брикети, котуни та подібні види твердого палива з вугілля кам’яного | B15: т / t | C15: к/с | D15: к/с | E15: − | F15: − | G15: − | H15: Hard coal briquettes
B16: т у.п. / tsc | C16: к/с | D16: к/с | E16: − | F16: − | G16: −
A17: Брикети, котуни та подібні види твердого палива з вугілля бурого | B17: т / t | C17: − | D17: − | E17: − | F17: − | G17: − | H17: Brown coal briquettes (BKB)
B18: т у.п. / tsc | C18: − | D18: − | E18: − | F18: − | G18: −
A19: Брикети, котуни та подібні види твердого палива з торфу | B19: т / t | C19: к/с | D19: к/с | E19: − | F19: к/с | G19: − | H19: Peat briquettes
B20: т у.п. / tsc | C20: к/с | D20: к/с | E20: − | F20: к/с | G20: −
A21: Кокс та напівкокс з вугілля кам'яного, кокс газовий | B21: т / t | C21: к/с | D21: − | E21: − | F21: к/с | G21: − | H21: Coal coke and coke breeze; gas coke
B22: т у.п. / tsc | C22: к/с | D22: − | E22: − | F22: к/с | G22: −
A23: Пек і кокс пековий | B23: т / t | C23: − | D23: − | E23: − | F23: − | G23: − | H23: Pitch and coal pitch
B24: т у.п. / tsc | C24: − | D24: − | E24: − | F24: − | G24: −
A25: Смоли кам’яновугільні, буровугільні або торф’яні | B25: т / t | C25: − | D25: − | E25: − | F25: − | G25: − | H25: Coal, brown coal or peat tar
B26: т у.п. / tsc | C26: − | D26: − | E26: − | F26: − | G26: −
A27: Коксовий газ | B27: тис.м³ / thsd. m³ | C27: − | D27: − | E27: − | F27: − | G27: − | H27: Coke oven gas
B28: т у.п. / tsc | C28: − | D28: − | E28: − | F28: − | G28: −
A29: Доменний газ | B29: тис.м³ / thsd. m³ | C29: − | D29: − | E29: − | F29: − | G29: − | H29: Blast furnace gas
B30: т у.п. / tsc | C30: − | D30: − | E30: − | F30: − | G30: −
A31: Газ інший (газ, отриманий шляхом газифікації вугілля; газ, отриманий у процесі виробництва феросплавів) | B31: тис.м³ / thsd. m³ | C31: − | D31: − | E31: − | F31: − | G31: − | H31: Other gas obtained during coal gasification and ferrous metals production
B32: т у.п. / tsc | C32: − | D32: − | E32: − | F32: − | G32: −
A33: Газ, отриманий у процесі конверторного виробництва сталі | B33: тис.м³ / thsd. m³ | C33: − | D33: − | E33: − | F33: − | G33: − | H33: The gas obtained in the process of converter steel production
B34: т у.п. / tsc | C34: − | D34: − | E34: − | F34: − | G34: −
F35: Продовження табл. 3.2.1.4 / Continued table 3.2.1.4
B36: Одиниці виміру | C36: Усього | D36: у тому числі
D37: including
D38: на пере-творення в інші види палива та енергію | E38: на неенер- гетичні цілі (як сировина матеріал) | F38: кінцеве споживання | G38: втрати при транспор-туванні, розподілі та зберіганні
B39: Unit | C39: Total | D39: transfor-mation into other types of fuel and energy | E39: non-energy use (raw matherial) | F39: final consumption | G39: transportation, distribution and storage losses
A41: Природний газ | B41: тис.м³ / thsd. m³ | C41: к/с | D41: 573647.2 | E41: − | F41: 180833.7 | G41: к/с | H41: Natural gas
B42: т у.п. / tsc | C42: к/с | D42: 665430.752 | E42: − | F42: 209767.092 | G42: к/с
A43: Нафта сира, у т.ч. нафта, одержана з мінералів бітумінозних | B43: т / t | C43: − | D43: − | E43: − | F43: − | G43: − | H43: Conventional crude oilб including obserbed from bitumenous minerals
B44: т у.п. / tsc | C44: − | D44: − | E44: − | F44: − | G44: −
A45: Газовий конденсат | B45: т / t | C45: − | D45: − | E45: − | F45: − | G45: − | H45: Natural gas liquids (NGL)
B46: т у.п. / tsc | C46: − | D46: − | E46: − | F46: − | G46: −
A47: Бензин моторний | B47: т / t | C47: к/с | D47: к/с | E47: − | F47: 14797.7 | G47: − | H47: Motor gasoline
B48: т у.п. / tsc | C48: к/с | D48: к/с | E48: − | F48: 22048.573 | G48: −
A49: Газойлі (паливо дизельне) | B49: т / t | C49: 114869.1 | D49: 1015.1 | E49: − | F49: 113854 | G49: − | H49: Road diesel
B50: т у.п. / tsc | C50: 166560.195 | D50: 1471.895 | E50: − | F50: 165088.3 | G50: −
A51: Гас | B51: т / t | C51: к/с | D51: − | E51: к/с | F51: к/с | G51: − | H51: Kerosene
B52: т у.п. / tsc | C52: к/с | D52: − | E52: к/с | F52: к/с | G52: −
A53: Мазути паливні важкі | B53: т / t | C53: к/с | D53: к/с | E53: − | F53: 165 | G53: − | H53: Heavy fuel oil
B54: т у.п. / tsc | C54: к/с | D54: к/с | E54: − | F54: 226.05 | G54: −
A55: Дистиляти нафтові легкі, фракції легкі інші | B55: т / t | C55: 662.5 | D55: к/с | E55: к/с | F55: к/с | G55: − | H55: Light oil distilates and light fractions
B56: т у.п. / tsc | C56: 960.625 | D56: к/с | E56: к/с | F56: к/с | G56: −
A57: Дистиляти нафтові середні, фракції середні інші | B57: т / t | C57: к/с | D57: 649.9 | E57: − | F57: к/с | G57: − | H57: Middle oil distilates, other middle fractions
B58: т у.п. / tsc | C58: к/с | D58: 942.355 | E58: − | F58: к/с | G58: −
A59: Оливи та мастила нафтові; | B59: т / t | C59: 1354.6 | D59: − | E59: 1319 | F59: 35.6 | G59: − | H59: Lubricants
A60: дистиляти нафтові важкі | B60: т у.п. / tsc | C60: 1855.802 | D60: − | E60: 1807.03 | F60: 48.772 | G60: −
A61: Пропан і бутан скраплені | B61: т / t | C61: 29062.1 | D61: к/с | E61: к/с | F61: 26041.6 | G61: − | H61: Liquefied petroleum gases (LPG)
B62: т у.п. / tsc | C62: 45627.497 | D62: к/с | E62: к/с | F62: 40885.312 | G62: −
A63: Бітум нафтовий | B63: т / t | C63: − | D63: − | E63: − | F63: − | G63: − | H63: Oil bitumen
B64: т у.п. / tsc | C64: − | D64: − | E64: − | F64: − | G64: −
A65: Вазелін нафтовий, парафін, воски нафтові та інші | B65: т / t | C65: к/с | D65: − | E65: к/с | F65: − | G65: − | H65: Oil vaseline, paraffin, mineral waxes and others
B66: т у.п. / tsc | C66: к/с | D66: − | E66: к/с | F66: − | G66: −
A67: Кокс нафтовий | B67: т / t | C67: − | D67: − | E67: − | F67: − | G67: − | H67: Petroleum coke
B68: т у.п. / tsc | C68: − | D68: − | E68: − | F68: − | G68: −
A69: Етилен, пропілен, бутилен, бутадієн і гази нафтові інші або вуглеводи газоподібні, крім газу природного | B69: т / t | C69: − | D69: − | E69: − | F69: − | G69: − | H69: Ethylene, propylene, butylene, butadiene other refinery gas or other hydrocar-bons, excluding natural gas
B70: т у.п. / tsc | C70: − | D70: − | E70: − | F70: − | G70: −
B72: т / t
A73: Присадки | B73: т / t | C73: − | D73: − | E73: − | F73: − | G73: − | H73: Additives
B74: т / t | C74: − | D74: − | E74: − | F74: − | G74: −
A75: Етан | B75: т / t | C75: − | D75: − | E75: − | F75: − | G75: − | H75: Etan
B76: т / t | C76: − | D76: − | E76: − | F76: − | G76: −
A77: Інші види нафтопродуктів | B77: т / t | C77: к/с | D77: − | E77: 811.2 | F77: к/с | G77: − | H77: Other oil products
B78: т у.п. / tsc | C78: к/с | D78: − | E78: 1176.24 | F78: к/с | G78: −
A79: Вугілля деревне | B79: м³ щільн. / density, m³ | C79: − | D79: − | E79: − | F79: − | G79: − | H79: Char coal
B80: т / t | C80: − | D80: − | E80: − | F80: − | G80: −
A81: Паливні брикети та гранули з деревини та іншої природньої сировини | B81: т / t | C81: 110080.8 | D81: 104427.7 | E81: − | F81: 5653.1 | G81: − | H81: Fuel briguettes fnd pellets made of wood and other natural materials
B82: т у.п. / tsc | C82: 63076.2984 | D82: 59837.0721 | E82: − | F82: 3239.2263 | G82: −
A83: Дрова для опалення | B83: м³ щільн. / density, m³ | C83: 71483.8 | D83: 56387.6 | E83: − | F83: 15096.2 | G83: − | H83: Fuel wood
B84: т / t | C84: 18943.207 | D84: 14942.714 | E84: − | F84: 4000.493 | G84: −
A85: Стружка і тріска деревні | B85: т / t | C85: 31607 | D85: 29699.1 | E85: к/с | F85: к/с | G85: − | H85: Wood shavings and chips
B86: т / t | C86: 11378.52 | D86: 10691.676 | E86: к/с | F86: к/с | G86: −
A87: Інше тверде біопаливо рослинного походження | B87: т / t | C87: к/с | D87: 1048238.3 | E87: к/с | F87: 8333.9 | G87: − | H87: Other solid biofuel obtained from plants
B88: т / t | C88: к/с | D88: 352208.0688 | E88: к/с | F88: 2800.1904 | G88: −
A89: Рідке біопаливо | B89: т / t | C89: − | D89: − | E89: − | F89: − | G89: − | H89: Liquified biofuel
B90: т у.п. / tsc | C90: − | D90: − | E90: − | F90: − | G90: −
A91: Біогаз | B91: тис.м³ / thsd. m³ | C91: 19671.6 | D91: 19671.6 | E91: − | F91: − | G91: − | H91: Biogas
B92: т у.п. / tsc | C92: 33835.152 | D92: 33835.152 | E92: − | F92: − | G92: −

Sheet 83-85
A1: 3.2.2.2 Виробництво напоїв
A2: Manufacture of beverages
B4: Одиниці виміру | C4: Усього | D4: у тому числі
D5: including
D6: на пере-творення в інші види палива та енергію | E6: на неенер- гетичні цілі (як сировина матеріал) | F6: кінцеве споживання | G6: втрати при транспор-туванні, розподілі та зберіганні
B7: Unit | C7: Total | D7: transfor-mation into other types of fuel and energy | E7: non-energy use (raw matherial) | F7: final consumption | G7: transportation, distribution and storage losses
A9: Вугілля кам’яне | B9: т / t | C9: к/с | D9: к/с | E9: − | F9: − | G9: − | H9: Hard coal
B10: т у.п. / tsc | C10: к/с | D10: к/с | E10: − | F10: − | G10: −
A11: Вугілля буре | B11: т / t | C11: − | D11: − | E11: − | F11: − | G11: − | H11: Brown coal
B12: т у.п. / tsc | C12: − | D12: − | E12: − | F12: − | G12: −
A13: Торф неагломерований паливний | B13: т / t | C13: − | D13: − | E13: − | F13: − | G13: − | H13: Peat
B14: т у.п. / tsc | C14: − | D14: − | E14: − | F14: − | G14: −
A15: Брикети, котуни та подібні види твердого палива з вугілля кам’яного | B15: т / t | C15: − | D15: − | E15: − | F15: − | G15: − | H15: Hard coal briquettes
B16: т у.п. / tsc | C16: − | D16: − | E16: − | F16: − | G16: −
A17: Брикети, котуни та подібні види твердого палива з вугілля бурого | B17: т / t | C17: − | D17: − | E17: − | F17: − | G17: − | H17: Brown coal briquettes (BKB)
B18: т у.п. / tsc | C18: − | D18: − | E18: − | F18: − | G18: −
A19: Брикети, котуни та подібні види твердого палива з торфу | B19: т / t | C19: к/с | D19: − | E19: − | F19: к/с | G19: − | H19: Peat briquettes
B20: т у.п. / tsc | C20: к/с | D20: − | E20: − | F20: к/с | G20: −
A21: Кокс та напівкокс з вугілля кам'яного, кокс газовий | B21: т / t | C21: − | D21: − | E21: − | F21: − | G21: − | H21: Coal coke and coke breeze; gas coke
B22: т у.п. / tsc | C22: − | D22: − | E22: − | F22: − | G22: −
A23: Пек і кокс пековий | B23: т / t | C23: − | D23: − | E23: − | F23: − | G23: − | H23: Pitch and coal pitch
B24: т у.п. / tsc | C24: − | D24: − | E24: − | F24: − | G24: −
A25: Смоли кам’яновугільні, буровугільні або торф’яні | B25: т / t | C25: − | D25: − | E25: − | F25: − | G25: − | H25: Coal, brown coal or peat tar
B26: т у.п. / tsc | C26: − | D26: − | E26: − | F26: − | G26: −
A27: Коксовий газ | B27: тис.м³ / thsd. m³ | C27: − | D27: − | E27: − | F27: − | G27: − | H27: Coke oven gas
B28: т у.п. / tsc | C28: − | D28: − | E28: − | F28: − | G28: −
A29: Доменний газ | B29: тис.м³ / thsd. m³ | C29: − | D29: − | E29: − | F29: − | G29: − | H29: Blast furnace gas
B30: т у.п. / tsc | C30: − | D30: − | E30: − | F30: − | G30: −
A31: Газ інший (газ, отриманий шляхом газифікації вугілля; газ, отриманий у процесі виробництва феросплавів) | B31: тис.м³ / thsd. m³ | C31: − | D31: − | E31: − | F31: − | G31: − | H31: Other gas obtained during coal gasification and ferrous metals production
B32: т у.п. / tsc | C32: − | D32: − | E32: − | F32: − | G32: −
A33: Газ, отриманий у процесі конверторного виробництва сталі | B33: тис.м³ / thsd. m³ | C33: − | D33: − | E33: − | F33: − | G33: − | H33: The gas obtained in the process of converter steel production
B34: т у.п. / tsc | C34: − | D34: − | E34: − | F34: − | G34: −
F35: Продовження табл. 3.2.1.4 / Continued table 3.2.1.4
B36: Одиниці виміру | C36: Усього | D36: у тому числі
D37: including
D38: на пере-творення в інші види палива та енергію | E38: на неенер- гетичні цілі (як сировина матеріал) | F38: кінцеве споживання | G38: втрати при транспор-туванні, розподілі та зберіганні
B39: Unit | C39: Total | D39: transfor-mation into other types of fuel and energy | E39: non-energy use (raw matherial) | F39: final consumption | G39: transportation, distribution and storage losses
A41: Природний газ | B41: тис.м³ / thsd. m³ | C41: к/с | D41: 62864.1 | E41: 0 | F41: 23035.8 | G41: к/с | H41: Natural gas
B42: т у.п. / tsc | C42: к/с | D42: 72922.356 | E42: 0 | F42: 26721.528 | G42: к/с
A43: Нафта сира, у т.ч. нафта, одержана з мінералів бітумінозних | B43: т / t | C43: − | D43: − | E43: − | F43: − | G43: − | H43: Conventional crude oilб including obserbed from bitumenous minerals
B44: т у.п. / tsc | C44: − | D44: − | E44: − | F44: − | G44: −
A45: Газовий конденсат | B45: т / t | C45: − | D45: − | E45: − | F45: − | G45: − | H45: Natural gas liquids (NGL)
B46: т у.п. / tsc | C46: − | D46: − | E46: − | F46: − | G46: −
A47: Бензин моторний | B47: т / t | C47: 4063.3 | D47: − | E47: − | F47: 4063.3 | G47: − | H47: Motor gasoline
B48: т у.п. / tsc | C48: 6054.317 | D48: − | E48: − | F48: 6054.317 | G48: −
A49: Газойлі (паливо дизельне) | B49: т / t | C49: к/с | D49: к/с | E49: − | F49: 7462.5 | G49: − | H49: Road diesel
B50: т у.п. / tsc | C50: к/с | D50: к/с | E50: − | F50: 10820.625 | G50: −
A51: Гас | B51: т / t | C51: − | D51: − | E51: − | F51: − | G51: − | H51: Kerosene
B52: т у.п. / tsc | C52: − | D52: − | E52: − | F52: − | G52: −
A53: Мазути паливні важкі | B53: т / t | C53: к/с | D53: к/с | E53: − | F53: к/с | G53: − | H53: Heavy fuel oil
B54: т у.п. / tsc | C54: к/с | D54: к/с | E54: − | F54: к/с | G54: −
A55: Дистиляти нафтові легкі, фракції легкі інші | B55: т / t | C55: к/с | D55: − | E55: к/с | F55: к/с | G55: − | H55: Light oil distilates and light fractions
B56: т у.п. / tsc | C56: к/с | D56: − | E56: к/с | F56: к/с | G56: −
A57: Дистиляти нафтові середні, фракції середні інші | B57: т / t | C57: к/с | D57: к/с | E57: − | F57: − | G57: − | H57: Middle oil distilates, other middle fractions
B58: т у.п. / tsc | C58: к/с | D58: к/с | E58: − | F58: − | G58: −
A59: Оливи та мастила нафтові; | B59: т / t | C59: 51.4 | D59: − | E59: 51.4 | F59: − | G59: − | H59: Lubricants
A60: дистиляти нафтові важкі | B60: т у.п. / tsc | C60: 70.418 | D60: − | E60: 70.418 | F60: − | G60: −
A61: Пропан і бутан скраплені | B61: т / t | C61: 1758.9 | D61: − | E61: − | F61: 1758.9 | G61: − | H61: Liquefied petroleum gases (LPG)
B62: т у.п. / tsc | C62: 2761.473 | D62: − | E62: − | F62: 2761.473 | G62: −
A63: Бітум нафтовий | B63: т / t | C63: − | D63: − | E63: − | F63: − | G63: − | H63: Oil bitumen
B64: т у.п. / tsc | C64: − | D64: − | E64: − | F64: − | G64: −
A65: Вазелін нафтовий, парафін, воски нафтові та інші | B65: т / t | C65: − | D65: − | E65: − | F65: − | G65: − | H65: Oil vaseline, paraffin, mineral waxes and others
B66: т у.п. / tsc | C66: − | D66: − | E66: − | F66: − | G66: −
A67: Кокс нафтовий | B67: т / t | C67: − | D67: − | E67: − | F67: − | G67: − | H67: Petroleum coke
B68: т у.п. / tsc | C68: − | D68: − | E68: − | F68: − | G68: −
A69: Етилен, пропілен, бутилен, бутадієн і гази нафтові інші або вуглеводи газоподібні, крім газу природного | B69: т / t | C69: − | D69: − | E69: − | F69: − | G69: − | H69: Ethylene, propylene, butylene, butadiene other refinery gas or other hydrocar-bons, excluding natural gas
B70: т у.п. / tsc | C70: − | D70: − | E70: − | F70: − | G70: −
B72: т / t
A73: Присадки | B73: т / t | C73: − | D73: − | E73: − | F73: − | G73: − | H73: Additives
B74: т / t | C74: − | D74: − | E74: − | F74: − | G74: −
A75: Етан | B75: т / t | C75: − | D75: − | E75: − | F75: − | G75: − | H75: Etan
B76: т / t | C76: − | D76: − | E76: − | F76: − | G76: −
A77: Інші види нафтопродуктів | B77: т / t | C77: к/с | D77: − | E77: к/с | F77: − | G77: − | H77: Other oil products
B78: т у.п. / tsc | C78: к/с | D78: − | E78: к/с | F78: − | G78: −
A79: Вугілля деревне | B79: м³ щільн. / density, m³ | C79: − | D79: − | E79: − | F79: − | G79: − | H79: Char coal
B80: т / t | C80: − | D80: − | E80: − | F80: − | G80: −
A81: Паливні брикети та гранули з деревини та іншої природньої сировини | B81: т / t | C81: к/с | D81: 1137.1 | E81: − | F81: к/с | G81: − | H81: Fuel briguettes fnd pellets made of wood and other natural materials
B82: т у.п. / tsc | C82: к/с | D82: 651.5583 | E82: − | F82: к/с | G82: −
A83: Дрова для опалення | B83: м³ щільн. / density, m³ | C83: 4767.2 | D83: 3869.6 | E83: − | F83: 897.6 | G83: − | H83: Fuel wood
B84: т / t | C84: 1263.308 | D84: 1025.444 | E84: − | F84: 237.864 | G84: −
A85: Стружка і тріска деревні | B85: т / t | C85: 4197.1 | D85: к/с | E85: − | F85: к/с | G85: − | H85: Wood shavings and chips
B86: т / t | C86: 1510.956 | D86: к/с | E86: − | F86: к/с | G86: −
A87: Інше тверде біопаливо рослинного походження | B87: т / t | C87: к/с | D87: к/с | E87: − | F87: к/с | G87: − | H87: Other solid biofuel obtained from plants
B88: т / t | C88: к/с | D88: к/с | E88: − | F88: к/с | G88: −
A89: Рідке біопаливо | B89: т / t | C89: − | D89: − | E89: − | F89: − | G89: − | H89: Liquified biofuel
B90: т у.п. / tsc | C90: − | D90: − | E90: − | F90: − | G90: −
A91: Біогаз | B91: тис.м³ / thsd. m³ | C91: к/с | D91: к/с | E91: − | F91: − | G91: − | H91: Biogas
B92: т у.п. / tsc | C92: к/с | D92: к/с | E92: − | F92: − | G92: −

Sheet 86-88
A1: 3.2.2.3. Виробництво тютюнових виробів
A2: Manufacture of tobacco products
B4: Одиниці виміру | C4: Усього | D4: у тому числі
D5: including
D6: на пере-творення в інші види палива та енергію | E6: на неенер- гетичні цілі (як сировина матеріал) | F6: кінцеве споживання | G6: втрати при транспор-туванні, розподілі та зберіганні
B7: Unit | C7: Total | D7: transfor-mation into other types of fuel and energy | E7: non-energy use (raw matherial) | F7: final consumption | G7: transportation, distribution and storage losses
A9: Вугілля кам’яне | B9: т / t | C9: − | D9: − | E9: − | F9: − | G9: − | H9: Hard coal
B10: т у.п. / tsc | C10: − | D10: − | E10: − | F10: − | G10: −
A11: Вугілля буре | B11: т / t | C11: − | D11: − | E11: − | F11: − | G11: − | H11: Brown coal
B12: т у.п. / tsc | C12: − | D12: − | E12: − | F12: − | G12: −
A13: Торф неагломерований паливний | B13: т / t | C13: − | D13: − | E13: − | F13: − | G13: − | H13: Peat
B14: т у.п. / tsc | C14: − | D14: − | E14: − | F14: − | G14: −
A15: Брикети, котуни та подібні види твердого палива з вугілля кам’яного | B15: т / t | C15: − | D15: − | E15: − | F15: − | G15: − | H15: Hard coal briquettes
B16: т у.п. / tsc | C16: − | D16: − | E16: − | F16: − | G16: −
A17: Брикети, котуни та подібні види твердого палива з вугілля бурого | B17: т / t | C17: − | D17: − | E17: − | F17: − | G17: − | H17: Brown coal briquettes (BKB)
B18: т у.п. / tsc | C18: − | D18: − | E18: − | F18: − | G18: −
A19: Брикети, котуни та подібні види твердого палива з торфу | B19: т / t | C19: − | D19: − | E19: − | F19: − | G19: − | H19: Peat briquettes
B20: т у.п. / tsc | C20: − | D20: − | E20: − | F20: − | G20: −
A21: Кокс та напівкокс з вугілля кам'яного, кокс газовий | B21: т / t | C21: − | D21: − | E21: − | F21: − | G21: − | H21: Coal coke and coke breeze; gas coke
B22: т у.п. / tsc | C22: − | D22: − | E22: − | F22: − | G22: −
A23: Пек і кокс пековий | B23: т / t | C23: − | D23: − | E23: − | F23: − | G23: − | H23: Pitch and coal pitch
B24: т у.п. / tsc | C24: − | D24: − | E24: − | F24: − | G24: −
A25: Смоли кам’яновугільні, буровугільні або торф’яні | B25: т / t | C25: − | D25: − | E25: − | F25: − | G25: − | H25: Coal, brown coal or peat tar
B26: т у.п. / tsc | C26: − | D26: − | E26: − | F26: − | G26: −
A27: Коксовий газ | B27: тис.м³ / thsd. m³ | C27: − | D27: − | E27: − | F27: − | G27: − | H27: Coke oven gas
B28: т у.п. / tsc | C28: − | D28: − | E28: − | F28: − | G28: −
A29: Доменний газ | B29: тис.м³ / thsd. m³ | C29: − | D29: − | E29: − | F29: − | G29: − | H29: Blast furnace gas
B30: т у.п. / tsc | C30: − | D30: − | E30: − | F30: − | G30: −
A31: Газ інший (газ, отриманий шляхом газифікації вугілля; газ, отриманий у процесі виробництва феросплавів) | B31: тис.м³ / thsd. m³ | C31: − | D31: − | E31: − | F31: − | G31: − | H31: Other gas obtained during coal gasification and ferrous metals production
B32: т у.п. / tsc | C32: − | D32: − | E32: − | F32: − | G32: −
A33: Газ, отриманий у процесі конверторного виробництва сталі | B33: тис.м³ / thsd. m³ | C33: − | D33: − | E33: − | F33: − | G33: − | H33: The gas obtained in the process of converter steel production
B34: т у.п. / tsc | C34: − | D34: − | E34: − | F34: − | G34: −
F35: Продовження табл. 3.2.1.4 / Continued table 3.2.1.4
B36: Одиниці виміру | C36: Усього | D36: у тому числі
D37: including
D38: на пере-творення в інші види палива та енергію | E38: на неенер- гетичні цілі (як сировина матеріал) | F38: кінцеве споживання | G38: втрати при транспор-туванні, розподілі та зберіганні
B39: Unit | C39: Total | D39: transfor-mation into other types of fuel and energy | E39: non-energy use (raw matherial) | F39: final consumption | G39: transportation, distribution and storage losses
A41: Природний газ | B41: тис.м³ / thsd. m³ | C41: к/с | D41: 6075.1 | E41: к/с | F41: − | G41: − | H41: Natural gas
B42: т у.п. / tsc | C42: к/с | D42: 7047.116 | E42: к/с | F42: − | G42: −
A43: Нафта сира, у т.ч. нафта, одержана з мінералів бітумінозних | B43: т / t | C43: − | D43: − | E43: − | F43: − | G43: − | H43: Conventional crude oilб including obserbed from bitumenous minerals
B44: т у.п. / tsc | C44: − | D44: − | E44: − | F44: − | G44: −
A45: Газовий конденсат | B45: т / t | C45: − | D45: − | E45: − | F45: − | G45: − | H45: Natural gas liquids (NGL)
B46: т у.п. / tsc | C46: − | D46: − | E46: − | F46: − | G46: −
A47: Бензин моторний | B47: т / t | C47: к/с | D47: − | E47: − | F47: к/с | G47: − | H47: Motor gasoline
B48: т у.п. / tsc | C48: к/с | D48: − | E48: − | F48: к/с | G48: −
A49: Газойлі (паливо дизельне) | B49: т / t | C49: к/с | D49: к/с | E49: − | F49: 92.1 | G49: − | H49: Road diesel
B50: т у.п. / tsc | C50: к/с | D50: к/с | E50: − | F50: 133.545 | G50: −
A51: Гас | B51: т / t | C51: − | D51: − | E51: − | F51: − | G51: − | H51: Kerosene
B52: т у.п. / tsc | C52: − | D52: − | E52: − | F52: − | G52: −
A53: Мазути паливні важкі | B53: т / t | C53: − | D53: − | E53: − | F53: − | G53: − | H53: Heavy fuel oil
B54: т у.п. / tsc | C54: − | D54: − | E54: − | F54: − | G54: −
A55: Дистиляти нафтові легкі, фракції легкі інші | B55: т / t | C55: − | D55: − | E55: − | F55: − | G55: − | H55: Light oil distilates and light fractions
B56: т у.п. / tsc | C56: − | D56: − | E56: − | F56: − | G56: −
A57: Дистиляти нафтові середні, фракції середні інші | B57: т / t | C57: − | D57: − | E57: − | F57: − | G57: − | H57: Middle oil distilates, other middle fractions
B58: т у.п. / tsc | C58: − | D58: − | E58: − | F58: − | G58: −
A59: Оливи та мастила нафтові; | B59: т / t | C59: к/с | D59: − | E59: к/с | F59: − | G59: − | H59: Lubricants
A60: дистиляти нафтові важкі | B60: т у.п. / tsc | C60: к/с | D60: − | E60: к/с | F60: − | G60: −
A61: Пропан і бутан скраплені | B61: т / t | C61: к/с | D61: − | E61: − | F61: к/с | G61: − | H61: Liquefied petroleum gases (LPG)
B62: т у.п. / tsc | C62: к/с | D62: − | E62: − | F62: к/с | G62: −
A63: Бітум нафтовий | B63: т / t | C63: − | D63: − | E63: − | F63: − | G63: − | H63: Oil bitumen
B64: т у.п. / tsc | C64: − | D64: − | E64: − | F64: − | G64: −
A65: Вазелін нафтовий, парафін, воски нафтові та інші | B65: т / t | C65: − | D65: − | E65: − | F65: − | G65: − | H65: Oil vaseline, paraffin, mineral waxes and others
B66: т у.п. / tsc | C66: − | D66: − | E66: − | F66: − | G66: −
A67: Кокс нафтовий | B67: т / t | C67: − | D67: − | E67: − | F67: − | G67: − | H67: Petroleum coke
B68: т у.п. / tsc | C68: − | D68: − | E68: − | F68: − | G68: −
A69: Етилен, пропілен, бутилен, бутадієн і гази нафтові інші або вуглеводи газоподібні, крім газу природного | B69: т / t | C69: − | D69: − | E69: − | F69: − | G69: − | H69: Ethylene, propylene, butylene, butadiene other refinery gas or other hydrocar-bons, excluding natural gas
B70: т у.п. / tsc | C70: − | D70: − | E70: − | F70: − | G70: −
B72: т / t
A73: Присадки | B73: т / t | C73: − | D73: − | E73: − | F73: − | G73: − | H73: Additives
B74: т / t | C74: − | D74: − | E74: − | F74: − | G74: −
A75: Етан | B75: т / t | C75: − | D75: − | E75: − | F75: − | G75: − | H75: Etan
B76: т / t | C76: − | D76: − | E76: − | F76: − | G76: −
A77: Інші види нафтопродуктів | B77: т / t | C77: − | D77: − | E77: − | F77: − | G77: − | H77: Other oil products
B78: т у.п. / tsc | C78: − | D78: − | E78: − | F78: − | G78: −
A79: Вугілля деревне | B79: м³ щільн. / density, m³ | C79: − | D79: − | E79: − | F79: − | G79: − | H79: Char coal
B80: т / t | C80: − | D80: − | E80: − | F80: − | G80: −
A81: Паливні брикети та гранули з деревини та іншої природньої сировини | B81: т / t | C81: к/с | D81: к/с | E81: − | F81: − | G81: − | H81: Fuel briguettes fnd pellets made of wood and other natural materials
B82: т у.п. / tsc | C82: к/с | D82: к/с | E82: − | F82: − | G82: −
A83: Дрова для опалення | B83: м³ щільн. / density, m³ | C83: − | D83: − | E83: − | F83: − | G83: − | H83: Fuel wood
B84: т / t | C84: − | D84: − | E84: − | F84: − | G84: −
A85: Стружка і тріска деревні | B85: т / t | C85: − | D85: − | E85: − | F85: − | G85: − | H85: Wood shavings and chips
B86: т / t | C86: − | D86: − | E86: − | F86: − | G86: −
A87: Інше тверде біопаливо рослинного походження | B87: т / t | C87: − | D87: − | E87: − | F87: − | G87: − | H87: Other solid biofuel obtained from plants
B88: т / t | C88: − | D88: − | E88: − | F88: − | G88: −
A89: Рідке біопаливо | B89: т / t | C89: − | D89: − | E89: − | F89: − | G89: − | H89: Liquified biofuel
B90: т у.п. / tsc | C90: − | D90: − | E90: − | F90: − | G90: −
A91: Біогаз | B91: тис.м³ / thsd. m³ | C91: − | D91: − | E91: − | F91: − | G91: − | H91: Biogas
B92: т у.п. / tsc | C92: − | D92: − | E92: − | F92: − | G92: −

Sheet 89-91
A1: 3.2.2.4. Текстильне виробництво
A2: Manufacture of textiles
B4: Одиниці виміру | C4: Усього | D4: у тому числі
D5: including
D6: на пере-творення в інші види палива та енергію | E6: на неенер- гетичні цілі (як сировина матеріал) | F6: кінцеве споживання | G6: втрати при транспор-туванні, розподілі та зберіганні
B7: Unit | C7: Total | D7: transfor-mation into other types of fuel and energy | E7: non-energy use (raw matherial) | F7: final consumption | G7: transportation, distribution and storage losses
A9: Вугілля кам’яне | B9: т / t | C9: к/с | D9: к/с | E9: − | F9: − | G9: − | H9: Hard coal
B10: т у.п. / tsc | C10: к/с | D10: к/с | E10: − | F10: − | G10: −
A11: Вугілля буре | B11: т / t | C11: − | D11: − | E11: − | F11: − | G11: − | H11: Brown coal
B12: т у.п. / tsc | C12: − | D12: − | E12: − | F12: − | G12: −
A13: Торф неагломерований паливний | B13: т / t | C13: − | D13: − | E13: − | F13: − | G13: − | H13: Peat
B14: т у.п. / tsc | C14: − | D14: − | E14: − | F14: − | G14: −
A15: Брикети, котуни та подібні види твердого палива з вугілля кам’яного | B15: т / t | C15: − | D15: − | E15: − | F15: − | G15: − | H15: Hard coal briquettes
B16: т у.п. / tsc | C16: − | D16: − | E16: − | F16: − | G16: −
A17: Брикети, котуни та подібні види твердого палива з вугілля бурого | B17: т / t | C17: − | D17: − | E17: − | F17: − | G17: − | H17: Brown coal briquettes (BKB)
B18: т у.п. / tsc | C18: − | D18: − | E18: − | F18: − | G18: −
A19: Брикети, котуни та подібні види твердого палива з торфу | B19: т / t | C19: − | D19: − | E19: − | F19: − | G19: − | H19: Peat briquettes
B20: т у.п. / tsc | C20: − | D20: − | E20: − | F20: − | G20: −
A21: Кокс та напівкокс з вугілля кам'яного, кокс газовий | B21: т / t | C21: − | D21: − | E21: − | F21: − | G21: − | H21: Coal coke and coke breeze; gas coke
B22: т у.п. / tsc | C22: − | D22: − | E22: − | F22: − | G22: −
A23: Пек і кокс пековий | B23: т / t | C23: − | D23: − | E23: − | F23: − | G23: − | H23: Pitch and coal pitch
B24: т у.п. / tsc | C24: − | D24: − | E24: − | F24: − | G24: −
A25: Смоли кам’яновугільні, буровугільні або торф’яні | B25: т / t | C25: − | D25: − | E25: − | F25: − | G25: − | H25: Coal, brown coal or peat tar
B26: т у.п. / tsc | C26: − | D26: − | E26: − | F26: − | G26: −
A27: Коксовий газ | B27: тис.м³ / thsd. m³ | C27: − | D27: − | E27: − | F27: − | G27: − | H27: Coke oven gas
B28: т у.п. / tsc | C28: − | D28: − | E28: − | F28: − | G28: −
A29: Доменний газ | B29: тис.м³ / thsd. m³ | C29: − | D29: − | E29: − | F29: − | G29: − | H29: Blast furnace gas
B30: т у.п. / tsc | C30: − | D30: − | E30: − | F30: − | G30: −
A31: Газ інший (газ, отриманий шляхом газифікації вугілля; газ, отриманий у процесі виробництва феросплавів) | B31: тис.м³ / thsd. m³ | C31: − | D31: − | E31: − | F31: − | G31: − | H31: Other gas obtained during coal gasification and ferrous metals production
B32: т у.п. / tsc | C32: − | D32: − | E32: − | F32: − | G32: −
A33: Газ, отриманий у процесі конверторного виробництва сталі | B33: тис.м³ / thsd. m³ | C33: − | D33: − | E33: − | F33: − | G33: − | H33: The gas obtained in the process of converter steel production
B34: т у.п. / tsc | C34: − | D34: − | E34: − | F34: − | G34: −
F35: Продовження табл. 3.2.1.4 / Continued table 3.2.1.4
B36: Одиниці виміру | C36: Усього | D36: у тому числі
D37: including
D38: на пере-творення в інші види палива та енергію | E38: на неенер- гетичні цілі (як сировина матеріал) | F38: кінцеве споживання | G38: втрати при транспор-туванні, розподілі та зберіганні
B39: Unit | C39: Total | D39: transfor-mation into other types of fuel and energy | E39: non-energy use (raw matherial) | F39: final consumption | G39: transportation, distribution and storage losses
A41: Природний газ | B41: тис.м³ / thsd. m³ | C41: 9995.5 | D41: 6010.8 | E41: − | F41: 3984.7 | G41: − | H41: Natural gas
B42: т у.п. / tsc | C42: 11594.78 | D42: 6972.528 | E42: − | F42: 4622.252 | G42: −
A43: Нафта сира, у т.ч. нафта, одержана з мінералів бітумінозних | B43: т / t | C43: − | D43: − | E43: − | F43: − | G43: − | H43: Conventional crude oilб including obserbed from bitumenous minerals
B44: т у.п. / tsc | C44: − | D44: − | E44: − | F44: − | G44: −
A45: Газовий конденсат | B45: т / t | C45: − | D45: − | E45: − | F45: − | G45: − | H45: Natural gas liquids (NGL)
B46: т у.п. / tsc | C46: − | D46: − | E46: − | F46: − | G46: −
A47: Бензин моторний | B47: т / t | C47: 299.1 | D47: − | E47: − | F47: 299.1 | G47: − | H47: Motor gasoline
B48: т у.п. / tsc | C48: 445.659 | D48: − | E48: − | F48: 445.659 | G48: −
A49: Газойлі (паливо дизельне) | B49: т / t | C49: 1410.5 | D49: − | E49: − | F49: 1410.5 | G49: − | H49: Road diesel
B50: т у.п. / tsc | C50: 2045.225 | D50: − | E50: − | F50: 2045.225 | G50: −
A51: Гас | B51: т / t | C51: к/с | D51: − | E51: к/с | F51: − | G51: − | H51: Kerosene
B52: т у.п. / tsc | C52: к/с | D52: − | E52: к/с | F52: − | G52: −
A53: Мазути паливні важкі | B53: т / t | C53: − | D53: − | E53: − | F53: − | G53: − | H53: Heavy fuel oil
B54: т у.п. / tsc | C54: − | D54: − | E54: − | F54: − | G54: −
A55: Дистиляти нафтові легкі, фракції легкі інші | B55: т / t | C55: к/с | D55: − | E55: к/с | F55: − | G55: − | H55: Light oil distilates and light fractions
B56: т у.п. / tsc | C56: к/с | D56: − | E56: к/с | F56: − | G56: −
A57: Дистиляти нафтові середні, фракції середні інші | B57: т / t | C57: − | D57: − | E57: − | F57: − | G57: − | H57: Middle oil distilates, other middle fractions
B58: т у.п. / tsc | C58: − | D58: − | E58: − | F58: − | G58: −
A59: Оливи та мастила нафтові; | B59: т / t | C59: к/с | D59: − | E59: 12.3 | F59: к/с | G59: − | H59: Lubricants
A60: дистиляти нафтові важкі | B60: т у.п. / tsc | C60: к/с | D60: − | E60: 16.851 | F60: к/с | G60: −
A61: Пропан і бутан скраплені | B61: т / t | C61: 77 | D61: − | E61: − | F61: 77 | G61: − | H61: Liquefied petroleum gases (LPG)
B62: т у.п. / tsc | C62: 120.89 | D62: − | E62: − | F62: 120.89 | G62: −
A63: Бітум нафтовий | B63: т / t | C63: к/с | D63: − | E63: к/с | F63: − | G63: − | H63: Oil bitumen
B64: т у.п. / tsc | C64: к/с | D64: − | E64: к/с | F64: − | G64: −
A65: Вазелін нафтовий, парафін, воски нафтові та інші | B65: т / t | C65: к/с | D65: − | E65: к/с | F65: − | G65: − | H65: Oil vaseline, paraffin, mineral waxes and others
B66: т у.п. / tsc | C66: к/с | D66: − | E66: к/с | F66: − | G66: −
A67: Кокс нафтовий | B67: т / t | C67: − | D67: − | E67: − | F67: − | G67: − | H67: Petroleum coke
B68: т у.п. / tsc | C68: − | D68: − | E68: − | F68: − | G68: −
A69: Етилен, пропілен, бутилен, бутадієн і гази нафтові інші або вуглеводи газоподібні, крім газу природного | B69: т / t | C69: − | D69: − | E69: − | F69: − | G69: − | H69: Ethylene, propylene, butylene, butadiene other refinery gas or other hydrocar-bons, excluding natural gas
B70: т у.п. / tsc | C70: − | D70: − | E70: − | F70: − | G70: −
A72: Присадки | B72: т / t | C72: − | D72: − | E72: − | F72: − | G72: − | H72: Additives
B73: т у.п. / tsc | C73: − | D73: − | E73: − | F73: − | G73: −
A74: Етан | B74: т / t | C74: − | D74: − | E74: − | F74: − | G74: − | H74: Etan
B75: т у.п. / tsc | C75: − | D75: − | E75: − | F75: − | G75: −
A76: Інші види нафтопродуктів | B76: т / t | C76: − | D76: − | E76: − | F76: − | G76: − | H76: Other oil products
B77: т у.п. / tsc | C77: − | D77: − | E77: − | F77: − | G77: −
A78: Вугілля деревне | B78: м³ щільн. / density, m³ | C78: − | D78: − | E78: − | F78: − | G78: − | H78: Char coal
B79: т у.п. / tsc | C79: − | D79: − | E79: − | F79: − | G79: −
A80: Паливні брикети та гранули з деревини та іншої природньої сировини | B80: т / t | C80: к/с | D80: 157.8 | E80: − | F80: к/с | G80: − | H80: Fuel briguettes fnd pellets made of wood and other natural materials
B81: т у.п. / tsc | C81: к/с | D81: 90.4194 | E81: − | F81: к/с | G81: −
A82: Дрова для опалення | B82: м³ щільн. / density, m³ | C82: к/с | D82: 1101.5 | E82: − | F82: к/с | G82: − | H82: Fuel wood
B83: т у.п. / tsc | C83: к/с | D83: 291.8975 | E83: − | F83: к/с | G83: −
A84: Стружка і тріска деревні | B84: т / t | C84: − | D84: − | E84: − | F84: − | G84: − | H84: Wood shavings and chips
B85: т у.п. / tsc | C85: − | D85: − | E85: − | F85: − | G85: −
A86: Інше тверде біопаливо рослинного походження | B86: т / t | C86: 859.2 | D86: 859.2 | E86: − | F86: − | G86: − | H86: Other solid biofuel obtained from plants
B87: т у.п. / tsc | C87: 288.6912 | D87: 288.6912 | E87: − | F87: − | G87: −
A88: Рідке біопаливо | B88: т / t | C88: − | D88: − | E88: − | F88: − | G88: − | H88: Liquified biofuel
B89: т у.п. / tsc | C89: − | D89: − | E89: − | F89: − | G89: −
A90: Біогаз | B90: тис.м³ / thsd. m³ | C90: − | D90: − | E90: − | F90: − | G90: − | H90: Biogas
B91: т у.п. / tsc | C91: − | D91: − | E91: − | F91: − | G91: −

Sheet 92-94
A1: 3.2.2.5. Виробництво одягу
A2: Manufacture of wearing apparel
B4: Одиниці виміру | C4: Усього | D4: у тому числі
D5: including
D6: на пере-творення в інші види палива та енергію | E6: на неенер- гетичні цілі (як сировина матеріал) | F6: кінцеве споживання | G6: втрати при транспор-туванні, розподілі та зберіганні
B7: Unit | C7: Total | D7: transfor-mation into other types of fuel and energy | E7: non-energy use (raw matherial) | F7: final consumption | G7: transportation, distribution and storage losses
A9: Вугілля кам’яне | B9: т / t | C9: к/с | D9: к/с | E9: − | F9: 15.2 | G9: − | H9: Hard coal
B10: т у.п. / tsc | C10: к/с | D10: к/с | E10: − | F10: 11.4 | G10: −
A11: Вугілля буре | B11: т / t | C11: − | D11: − | E11: − | F11: − | G11: − | H11: Brown coal
B12: т у.п. / tsc | C12: − | D12: − | E12: − | F12: − | G12: −
A13: Торф неагломерований паливний | B13: т / t | C13: к/с | D13: к/с | E13: − | F13: − | G13: − | H13: Peat
B14: т у.п. / tsc | C14: к/с | D14: к/с | E14: − | F14: − | G14: −
A15: Брикети, котуни та подібні види твердого палива з вугілля кам’яного | B15: т / t | C15: − | D15: − | E15: − | F15: − | G15: − | H15: Hard coal briquettes
B16: т у.п. / tsc | C16: − | D16: − | E16: − | F16: − | G16: −
A17: Брикети, котуни та подібні види твердого палива з вугілля бурого | B17: т / t | C17: − | D17: − | E17: − | F17: − | G17: − | H17: Brown coal briquettes (BKB)
B18: т у.п. / tsc | C18: − | D18: − | E18: − | F18: − | G18: −
A19: Брикети, котуни та подібні види твердого палива з торфу | B19: т / t | C19: к/с | D19: к/с | E19: − | F19: − | G19: − | H19: Peat briquettes
B20: т у.п. / tsc | C20: к/с | D20: к/с | E20: − | F20: − | G20: −
A21: Кокс та напівкокс з вугілля кам'яного, кокс газовий | B21: т / t | C21: − | D21: − | E21: − | F21: − | G21: − | H21: Coal coke and coke breeze; gas coke
B22: т у.п. / tsc | C22: − | D22: − | E22: − | F22: − | G22: −
A23: Пек і кокс пековий | B23: т / t | C23: − | D23: − | E23: − | F23: − | G23: − | H23: Pitch and coal pitch
B24: т у.п. / tsc | C24: − | D24: − | E24: − | F24: − | G24: −
A25: Смоли кам’яновугільні, буровугільні або торф’яні | B25: т / t | C25: − | D25: − | E25: − | F25: − | G25: − | H25: Coal, brown coal or peat tar
B26: т у.п. / tsc | C26: − | D26: − | E26: − | F26: − | G26: −
A27: Коксовий газ | B27: тис.м³ / thsd. m³ | C27: − | D27: − | E27: − | F27: − | G27: − | H27: Coke oven gas
B28: т у.п. / tsc | C28: − | D28: − | E28: − | F28: − | G28: −
A29: Доменний газ | B29: тис.м³ / thsd. m³ | C29: − | D29: − | E29: − | F29: − | G29: − | H29: Blast furnace gas
B30: т у.п. / tsc | C30: − | D30: − | E30: − | F30: − | G30: −
A31: Газ інший (газ, отриманий шляхом газифікації вугілля; газ, отриманий у процесі виробництва феросплавів) | B31: тис.м³ / thsd. m³ | C31: − | D31: − | E31: − | F31: − | G31: − | H31: Other gas obtained during coal gasification and ferrous metals production
B32: т у.п. / tsc | C32: − | D32: − | E32: − | F32: − | G32: −
A33: Газ, отриманий у процесі конверторного виробництва сталі | B33: тис.м³ / thsd. m³ | C33: − | D33: − | E33: − | F33: − | G33: − | H33: The gas obtained in the process of converter steel production
B34: т у.п. / tsc | C34: − | D34: − | E34: − | F34: − | G34: −
F35: Продовження табл. 3.2.1.4 / Continued table 3.2.1.4
B36: Одиниці виміру | C36: Усього | D36: у тому числі
D37: including
D38: на пере-творення в інші види палива та енергію | E38: на неенер- гетичні цілі (як сировина матеріал) | F38: кінцеве споживання | G38: втрати при транспор-туванні, розподілі та зберіганні
B39: Unit | C39: Total | D39: transfor-mation into other types of fuel and energy | E39: non-energy use (raw matherial) | F39: final consumption | G39: transportation, distribution and storage losses
A41: Природний газ | B41: тис.м³ / thsd. m³ | C41: 5101.1 | D41: 3609.5 | E41: − | F41: 1491.6 | G41: − | H41: Natural gas
B42: т у.п. / tsc | C42: 5917.276 | D42: 4187.02 | E42: − | F42: 1730.256 | G42: −
A43: Нафта сира, у т.ч. нафта, одержана з мінералів бітумінозних | B43: т / t | C43: − | D43: − | E43: − | F43: − | G43: − | H43: Conventional crude oilб including obserbed from bitumenous minerals
B44: т у.п. / tsc | C44: − | D44: − | E44: − | F44: − | G44: −
A45: Газовий конденсат | B45: т / t | C45: − | D45: − | E45: − | F45: − | G45: − | H45: Natural gas liquids (NGL)
B46: т у.п. / tsc | C46: − | D46: − | E46: − | F46: − | G46: −
A47: Бензин моторний | B47: т / t | C47: 422.8 | D47: − | E47: − | F47: 422.8 | G47: − | H47: Motor gasoline
B48: т у.п. / tsc | C48: 629.972 | D48: − | E48: − | F48: 629.972 | G48: −
A49: Газойлі (паливо дизельне) | B49: т / t | C49: к/с | D49: к/с | E49: − | F49: 1491.8 | G49: − | H49: Road diesel
B50: т у.п. / tsc | C50: к/с | D50: к/с | E50: − | F50: 2163.11 | G50: −
A51: Гас | B51: т / t | C51: − | D51: − | E51: − | F51: − | G51: − | H51: Kerosene
B52: т у.п. / tsc | C52: − | D52: − | E52: − | F52: − | G52: −
A53: Мазути паливні важкі | B53: т / t | C53: − | D53: − | E53: − | F53: − | G53: − | H53: Heavy fuel oil
B54: т у.п. / tsc | C54: − | D54: − | E54: − | F54: − | G54: −
A55: Дистиляти нафтові легкі, фракції легкі інші | B55: т / t | C55: − | D55: − | E55: − | F55: − | G55: − | H55: Light oil distilates and light fractions
B56: т у.п. / tsc | C56: − | D56: − | E56: − | F56: − | G56: −
A57: Дистиляти нафтові середні, фракції середні інші | B57: т / t | C57: − | D57: − | E57: − | F57: − | G57: − | H57: Middle oil distilates, other middle fractions
B58: т у.п. / tsc | C58: − | D58: − | E58: − | F58: − | G58: −
A59: Оливи та мастила нафтові; | B59: т / t | C59: 14.1 | D59: − | E59: 14.1 | F59: − | G59: − | H59: Lubricants
A60: дистиляти нафтові важкі | B60: т у.п. / tsc | C60: 19.317 | D60: − | E60: 19.317 | F60: − | G60: −
A61: Пропан і бутан скраплені | B61: т / t | C61: 77 | D61: − | E61: − | F61: 77 | G61: − | H61: Liquefied petroleum gases (LPG)
B62: т у.п. / tsc | C62: 120.89 | D62: − | E62: − | F62: 120.89 | G62: −
A63: Бітум нафтовий | B63: т / t | C63: − | D63: − | E63: − | F63: − | G63: − | H63: Oil bitumen
B64: т у.п. / tsc | C64: − | D64: − | E64: − | F64: − | G64: −
A65: Вазелін нафтовий, парафін, воски нафтові та інші | B65: т / t | C65: − | D65: − | E65: − | F65: − | G65: − | H65: Oil vaseline, paraffin, mineral waxes and others
B66: т у.п. / tsc | C66: − | D66: − | E66: − | F66: − | G66: −
A67: Кокс нафтовий | B67: т / t | C67: − | D67: − | E67: − | F67: − | G67: − | H67: Petroleum coke
B68: т у.п. / tsc | C68: − | D68: − | E68: − | F68: − | G68: −
A69: Етилен, пропілен, бутилен, бутадієн і гази нафтові інші або вуглеводи газоподібні, крім газу природного | B69: т / t | C69: − | D69: − | E69: − | F69: − | G69: − | H69: Ethylene, propylene, butylene, butadiene other refinery gas or other hydrocar-bons, excluding natural gas
B70: т у.п. / tsc | C70: − | D70: − | E70: − | F70: − | G70: −
A72: Присадки | B72: т / t | C72: − | D72: − | E72: − | F72: − | G72: − | H72: Additives
B73: т у.п. / tsc | C73: − | D73: − | E73: − | F73: − | G73: −
A74: Етан | B74: т / t | C74: − | D74: − | E74: − | F74: − | G74: − | H74: Etan
B75: т у.п. / tsc | C75: − | D75: − | E75: − | F75: − | G75: −
A76: Інші види нафтопродуктів | B76: т / t | C76: − | D76: − | E76: − | F76: − | G76: − | H76: Other oil products
B77: т у.п. / tsc | C77: − | D77: − | E77: − | F77: − | G77: −
A78: Вугілля деревне | B78: м³ щільн. / density, m³ | C78: − | D78: − | E78: − | F78: − | G78: − | H78: Char coal
B79: т у.п. / tsc | C79: − | D79: − | E79: − | F79: − | G79: −
A80: Паливні брикети та гранули з деревини та іншої природньої сировини | B80: т / t | C80: к/с | D80: 817.7 | E80: − | F80: к/с | G80: − | H80: Fuel briguettes fnd pellets made of wood and other natural materials
B81: т у.п. / tsc | C81: к/с | D81: 468.5421 | E81: − | F81: к/с | G81: −
A82: Дрова для опалення | B82: м³ щільн. / density, m³ | C82: 6654.9 | D82: 6353.1 | E82: − | F82: 301.8 | G82: − | H82: Fuel wood
B83: т у.п. / tsc | C83: 1763.5485 | D83: 1683.5715 | E83: − | F83: 79.977 | G83: −
A84: Стружка і тріска деревні | B84: т / t | C84: к/с | D84: к/с | E84: − | F84: − | G84: − | H84: Wood shavings and chips
B85: т у.п. / tsc | C85: к/с | D85: к/с | E85: − | F85: − | G85: −
A86: Інше тверде біопаливо рослинного походження | B86: т / t | C86: к/с | D86: к/с | E86: − | F86: − | G86: − | H86: Other solid biofuel obtained from plants
B87: т у.п. / tsc | C87: к/с | D87: к/с | E87: − | F87: − | G87: −
A88: Рідке біопаливо | B88: т / t | C88: − | D88: − | E88: − | F88: − | G88: − | H88: Liquified biofuel
B89: т у.п. / tsc | C89: − | D89: − | E89: − | F89: − | G89: −
A90: Біогаз | B90: тис.м³ / thsd. m³ | C90: − | D90: − | E90: − | F90: − | G90: − | H90: Biogas
B91: т у.п. / tsc | C91: − | D91: − | E91: − | F91: − | G91: −

Sheet 95-97
A1: 3.2.2.6. Виробництво шкіри, виробів зі шкіри та інших матеріалів
A2: Manufacture of leather and related products
B4: Одиниці виміру | C4: Усього | D4: у тому числі
D5: including
D6: на пере-творення в інші види палива та енергію | E6: на неенер- гетичні цілі (як сировина матеріал) | F6: кінцеве споживання | G6: втрати при транспор-туванні, розподілі та зберіганні
B7: Unit | C7: Total | D7: transfor-mation into other types of fuel and energy | E7: non-energy use (raw matherial) | F7: final consumption | G7: transportation, distribution and storage losses
A9: Вугілля кам’яне | B9: т / t | C9: − | D9: − | E9: − | F9: − | G9: − | H9: Hard coal
B10: т у.п. / tsc | C10: − | D10: − | E10: − | F10: − | G10: −
A11: Вугілля буре | B11: т / t | C11: − | D11: − | E11: − | F11: − | G11: − | H11: Brown coal
B12: т у.п. / tsc | C12: − | D12: − | E12: − | F12: − | G12: −
A13: Торф неагломерований паливний | B13: т / t | C13: − | D13: − | E13: − | F13: − | G13: − | H13: Peat
B14: т у.п. / tsc | C14: − | D14: − | E14: − | F14: − | G14: −
A15: Брикети, котуни та подібні види твердого палива з вугілля кам’яного | B15: т / t | C15: − | D15: − | E15: − | F15: − | G15: − | H15: Hard coal briquettes
B16: т у.п. / tsc | C16: − | D16: − | E16: − | F16: − | G16: −
A17: Брикети, котуни та подібні види твердого палива з вугілля бурого | B17: т / t | C17: − | D17: − | E17: − | F17: − | G17: − | H17: Brown coal briquettes (BKB)
B18: т у.п. / tsc | C18: − | D18: − | E18: − | F18: − | G18: −
A19: Брикети, котуни та подібні види твердого палива з торфу | B19: т / t | C19: к/с | D19: к/с | E19: − | F19: − | G19: − | H19: Peat briquettes
B20: т у.п. / tsc | C20: к/с | D20: к/с | E20: − | F20: − | G20: −
A21: Кокс та напівкокс з вугілля кам'яного, кокс газовий | B21: т / t | C21: − | D21: − | E21: − | F21: − | G21: − | H21: Coal coke and coke breeze; gas coke
B22: т у.п. / tsc | C22: − | D22: − | E22: − | F22: − | G22: −
A23: Пек і кокс пековий | B23: т / t | C23: − | D23: − | E23: − | F23: − | G23: − | H23: Pitch and coal pitch
B24: т у.п. / tsc | C24: − | D24: − | E24: − | F24: − | G24: −
A25: Смоли кам’яновугільні, буровугільні або торф’яні | B25: т / t | C25: − | D25: − | E25: − | F25: − | G25: − | H25: Coal, brown coal or peat tar
B26: т у.п. / tsc | C26: − | D26: − | E26: − | F26: − | G26: −
A27: Коксовий газ | B27: тис.м³ / thsd. m³ | C27: − | D27: − | E27: − | F27: − | G27: − | H27: Coke oven gas
B28: т у.п. / tsc | C28: − | D28: − | E28: − | F28: − | G28: −
A29: Доменний газ | B29: тис.м³ / thsd. m³ | C29: − | D29: − | E29: − | F29: − | G29: − | H29: Blast furnace gas
B30: т у.п. / tsc | C30: − | D30: − | E30: − | F30: − | G30: −
A31: Газ інший (газ, отриманий шляхом газифікації вугілля; газ, отриманий у процесі виробництва феросплавів) | B31: тис.м³ / thsd. m³ | C31: − | D31: − | E31: − | F31: − | G31: − | H31: Other gas obtained during coal gasification and ferrous metals production
B32: т у.п. / tsc | C32: − | D32: − | E32: − | F32: − | G32: −
A33: Газ, отриманий у процесі конверторного виробництва сталі | B33: тис.м³ / thsd. m³ | C33: − | D33: − | E33: − | F33: − | G33: − | H33: The gas obtained in the process of converter steel production
B34: т у.п. / tsc | C34: − | D34: − | E34: − | F34: − | G34: −
F35: Продовження табл. 3.2.1.4 / Continued table 3.2.1.4
B36: Одиниці виміру | C36: Усього | D36: у тому числі
D37: including
D38: на пере-творення в інші види палива та енергію | E38: на неенер- гетичні цілі (як сировина матеріал) | F38: кінцеве споживання | G38: втрати при транспор-туванні, розподілі та зберіганні
B39: Unit | C39: Total | D39: transfor-mation into other types of fuel and energy | E39: non-energy use (raw matherial) | F39: final consumption | G39: transportation, distribution and storage losses
A41: Природний газ | B41: тис.м³ / thsd. m³ | C41: 2803.6 | D41: 2440.3 | E41: − | F41: 363.3 | G41: − | H41: Natural gas
B42: т у.п. / tsc | C42: 3252.176 | D42: 2830.748 | E42: − | F42: 421.428 | G42: −
A43: Нафта сира, у т.ч. нафта, одержана з мінералів бітумінозних | B43: т / t | C43: − | D43: − | E43: − | F43: − | G43: − | H43: Conventional crude oilб including obserbed from bitumenous minerals
B44: т у.п. / tsc | C44: − | D44: − | E44: − | F44: − | G44: −
A45: Газовий конденсат | B45: т / t | C45: − | D45: − | E45: − | F45: − | G45: − | H45: Natural gas liquids (NGL)
B46: т у.п. / tsc | C46: − | D46: − | E46: − | F46: − | G46: −
A47: Бензин моторний | B47: т / t | C47: к/с | D47: − | E47: к/с | F47: 135.6 | G47: − | H47: Motor gasoline
B48: т у.п. / tsc | C48: к/с | D48: − | E48: к/с | F48: 202.044 | G48: −
A49: Газойлі (паливо дизельне) | B49: т / t | C49: 507.5 | D49: − | E49: − | F49: 507.5 | G49: − | H49: Road diesel
B50: т у.п. / tsc | C50: 735.875 | D50: − | E50: − | F50: 735.875 | G50: −
A51: Гас | B51: т / t | C51: − | D51: − | E51: − | F51: − | G51: − | H51: Kerosene
B52: т у.п. / tsc | C52: − | D52: − | E52: − | F52: − | G52: −
A53: Мазути паливні важкі | B53: т / t | C53: − | D53: − | E53: − | F53: − | G53: − | H53: Heavy fuel oil
B54: т у.п. / tsc | C54: − | D54: − | E54: − | F54: − | G54: −
A55: Дистиляти нафтові легкі, фракції легкі інші | B55: т / t | C55: − | D55: − | E55: − | F55: − | G55: − | H55: Light oil distilates and light fractions
B56: т у.п. / tsc | C56: − | D56: − | E56: − | F56: − | G56: −
A57: Дистиляти нафтові середні, фракції середні інші | B57: т / t | C57: − | D57: − | E57: − | F57: − | G57: − | H57: Middle oil distilates, other middle fractions
B58: т у.п. / tsc | C58: − | D58: − | E58: − | F58: − | G58: −
A59: Оливи та мастила нафтові; | B59: т / t | C59: 5.7 | D59: − | E59: 5.7 | F59: − | G59: − | H59: Lubricants
A60: дистиляти нафтові важкі | B60: т у.п. / tsc | C60: 7.809 | D60: − | E60: 7.809 | F60: − | G60: −
A61: Пропан і бутан скраплені | B61: т / t | C61: 16.9 | D61: − | E61: − | F61: 16.9 | G61: − | H61: Liquefied petroleum gases (LPG)
B62: т у.п. / tsc | C62: 26.533 | D62: − | E62: − | F62: 26.533 | G62: −
A63: Бітум нафтовий | B63: т / t | C63: − | D63: − | E63: − | F63: − | G63: − | H63: Oil bitumen
B64: т у.п. / tsc | C64: − | D64: − | E64: − | F64: − | G64: −
A65: Вазелін нафтовий, парафін, воски нафтові та інші | B65: т / t | C65: − | D65: − | E65: − | F65: − | G65: − | H65: Oil vaseline, paraffin, mineral waxes and others
B66: т у.п. / tsc | C66: − | D66: − | E66: − | F66: − | G66: −
A67: Кокс нафтовий | B67: т / t | C67: − | D67: − | E67: − | F67: − | G67: − | H67: Petroleum coke
B68: т у.п. / tsc | C68: − | D68: − | E68: − | F68: − | G68: −
A69: Етилен, пропілен, бутилен, бутадієн і гази нафтові інші або вуглеводи газоподібні, крім газу природного | B69: т / t | C69: − | D69: − | E69: − | F69: − | G69: − | H69: Ethylene, propylene, butylene, butadiene other refinery gas or other hydrocar-bons, excluding natural gas
B70: т у.п. / tsc | C70: − | D70: − | E70: − | F70: − | G70: −
A72: Присадки | B72: т / t | C72: − | D72: − | E72: − | F72: − | G72: − | H72: Additives
B73: т у.п. / tsc | C73: − | D73: − | E73: − | F73: − | G73: −
A74: Етан | B74: т / t | C74: − | D74: − | E74: − | F74: − | G74: − | H74: Etan
B75: т у.п. / tsc | C75: − | D75: − | E75: − | F75: − | G75: −
A76: Інші види нафтопродуктів | B76: т / t | C76: − | D76: − | E76: − | F76: − | G76: − | H76: Other oil products
B77: т у.п. / tsc | C77: − | D77: − | E77: − | F77: − | G77: −
A78: Вугілля деревне | B78: м³ щільн. / density, m³ | C78: − | D78: − | E78: − | F78: − | G78: − | H78: Char coal
B79: т у.п. / tsc | C79: − | D79: − | E79: − | F79: − | G79: −
A80: Паливні брикети та гранули з деревини та іншої природньої сировини | B80: т / t | C80: к/с | D80: к/с | E80: − | F80: к/с | G80: − | H80: Fuel briguettes fnd pellets made of wood and other natural materials
B81: т у.п. / tsc | C81: к/с | D81: к/с | E81: − | F81: к/с | G81: −
A82: Дрова для опалення | B82: м³ щільн./ density, m³ | C82: к/с | D82: 2407.2 | E82: − | F82: к/с | G82: − | H82: Fuel wood
B83: т у.п. / tsc | C83: к/с | D83: 637.908 | E83: − | F83: к/с | G83: −
A84: Стружка і тріска деревні | B84: т / t | C84: к/с | D84: к/с | E84: − | F84: − | G84: − | H84: Wood shavings and chips
B85: т у.п. / tsc | C85: к/с | D85: к/с | E85: − | F85: − | G85: −
A86: Інше тверде біопаливо рослинного походження | B86: т / t | C86: − | D86: − | E86: − | F86: − | G86: − | H86: Other solid biofuel obtained from plants
B87: т у.п. / tsc | C87: − | D87: − | E87: − | F87: − | G87: −
A88: Рідке біопаливо | B88: т / t | C88: − | D88: − | E88: − | F88: − | G88: − | H88: Liquified biofuel
B89: т у.п. / tsc | C89: − | D89: − | E89: − | F89: − | G89: −
A90: Біогаз | B90: тис.м³ / thsd. m³ | C90: − | D90: − | E90: − | F90: − | G90: − | H90: Biogas
B91: т у.п. / tsc | C91: − | D91: − | E91: − | F91: − | G91: −

Sheet 98-100
A1: 3.2.2.7. Оброблення деревини та виробництво виробів з деревини та корка, крім меблів;
A2: виготовлення виробів із соломки та рослинних матеріалів для плетіння
A3: Manufacture of wood and of products of wood and cork, except furniture;
A4: manufacture of articles of straw and plaiting materials
B6: Одиниці виміру | C6: Усього | D6: у тому числі
D7: including
D8: на пере-творення в інші види палива та енергію | E8: на неенер- гетичні цілі (як сировина матеріал) | F8: кінцеве споживання | G8: втрати при транспор-туванні, розподілі та зберіганні
B9: т / t | C9: Total | D9: transfor-mation into other types of fuel and energy | E9: non−energy use (raw matherial) | F9: final consumption | G9: transportation, distribution and storage losses
A11: Вугілля кам’яне | B11: т / t | C11: − | D11: − | E11: − | F11: − | G11: − | H11: Hard coal
B12: т у.п. / tsc | C12: − | D12: − | E12: − | F12: − | G12: −
A13: Вугілля буре | B13: т / t | C13: − | D13: − | E13: − | F13: − | G13: − | H13: Brown coal
B14: т у.п. / tsc | C14: − | D14: − | E14: − | F14: − | G14: −
A15: Торф неагломерований паливний | B15: т / t | C15: − | D15: − | E15: − | F15: − | G15: − | H15: Peat
B16: т у.п. / tsc | C16: − | D16: − | E16: − | F16: − | G16: −
A17: Брикети, котуни та подібні види твердого палива з вугілля кам’яного | B17: т / t | C17: − | D17: − | E17: − | F17: − | G17: − | H17: Hard coal briquettes
B18: т у.п. / tsc | C18: − | D18: − | E18: − | F18: − | G18: −
A19: Брикети, котуни та подібні види твердого палива з вугілля бурого | B19: т / t | C19: − | D19: − | E19: − | F19: − | G19: − | H19: Brown coal briquettes (BKB)
B20: т у.п. / tsc | C20: − | D20: − | E20: − | F20: − | G20: −
A21: Брикети, котуни та подібні види твердого палива з торфу | B21: т / t | C21: к/с | D21: к/с | E21: − | F21: − | G21: − | H21: Peat briquettes
B22: т у.п. / tsc | C22: к/с | D22: к/с | E22: − | F22: − | G22: −
A23: Кокс та напівкокс з вугілля кам'яного, кокс газовий | B23: т / t | C23: − | D23: − | E23: − | F23: − | G23: − | H23: Coal coke and coke breeze; gas coke
B24: т у.п. / tsc | C24: − | D24: − | E24: − | F24: − | G24: −
A25: Пек і кокс пековий | B25: т / t | C25: − | D25: − | E25: − | F25: − | G25: − | H25: Pitch and coal pitch
B26: т у.п. / tsc | C26: − | D26: − | E26: − | F26: − | G26: −
A27: Смоли кам’яновугільні, буровугільні або торф’яні | B27: т / t | C27: − | D27: − | E27: − | F27: − | G27: − | H27: Coal, brown coal or peat tar
B28: т у.п. / tsc | C28: − | D28: − | E28: − | F28: − | G28: −
A29: Коксовий газ | B29: тис.м³ / thsd. m³ | C29: − | D29: − | E29: − | F29: − | G29: − | H29: Coke oven gas
B30: т у.п. / tsc | C30: − | D30: − | E30: − | F30: − | G30: −
A31: Доменний газ | B31: тис.м³ / thsd. m³ | C31: − | D31: − | E31: − | F31: − | G31: − | H31: Blast furnace gas
B32: т у.п. / tsc | C32: − | D32: − | E32: − | F32: − | G32: −
A33: Газ інший (газ, отриманий шляхом газифікації вугілля; газ, отриманий у процесі виробництва феросплавів) | B33: тис.м³ / thsd. m³ | C33: − | D33: − | E33: − | F33: − | G33: − | H33: Other gas obtained during coal gasification and ferrous metals production
B34: т у.п. / tsc | C34: − | D34: − | E34: − | F34: − | G34: −
A35: Газ, отриманий у процесі конверторного виробництва сталі | B35: тис.м³ / thsd. m³ | C35: − | D35: − | E35: − | F35: − | G35: − | H35: The gas obtained in the process of converter steel production
B36: т у.п. / tsc | C36: − | D36: − | E36: − | F36: − | G36: −
F37: Продовження табл. 3.2.2.7 / Continued table 3.2.2.7
B38: Одиниці виміру | C38: Усього | D38: у тому числі
D39: including
D40: на пере-творення в інші види палива та енергію | E40: на неенер- гетичні цілі (як сировина матеріал) | F40: кінцеве споживання | G40: втрати при транспор-туванні, розподілі та зберіганні
B41: Unit | C41: Total | D41: transfor− mation into other types of fuel and energy | E41: non−energy use (raw matherial) | F41: final consumption | G41: transportation, distribution and storage losses
A43: Природний газ | B43: т / t | C43: 19819.6 | D43: 17953.8 | E43: − | F43: 1865.8 | G43: − | H43: Natural gas
B44: т у.п. / tsc | C44: 22990.736 | D44: 20826.408 | E44: − | F44: 2164.328 | G44: −
A45: Нафта сира, у т.ч. нафта, одержана з мінералів бітумінозних | B45: т / t | C45: − | D45: − | E45: − | F45: − | G45: − | H45: Conventional crude oilб including obserbed from bitumenous minerals
B46: т у.п. / tsc | C46: − | D46: − | E46: − | F46: − | G46: −
A47: Газовий конденсат | B47: т / t | C47: − | D47: − | E47: − | F47: − | G47: − | H47: Natural gas liquids (NGL)
B48: т у.п. / tsc | C48: − | D48: − | E48: − | F48: − | G48: −
A49: Бензин моторний | B49: т / t | C49: 1954.5 | D49: − | E49: − | F49: 1954.5 | G49: − | H49: Motor gasoline
B50: т у.п. / tsc | C50: 2912.205 | D50: − | E50: − | F50: 2912.205 | G50: −
A51: Газойлі (паливо дизельне) | B51: т / t | C51: 28946.6 | D51: к/с | E51: к/с | F51: 28940 | G51: − | H51: Road diesel
B52: т у.п. / tsc | C52: 41972.57 | D52: к/с | E52: к/с | F52: 41963 | G52: −
A53: Гас | B53: т / t | C53: к/с | D53: − | E53: к/с | F53: − | G53: − | H53: Kerosene
B54: т у.п. / tsc | C54: к/с | D54: − | E54: к/с | F54: − | G54: −
A55: Мазути паливні важкі | B55: т / t | C55: − | D55: − | E55: − | F55: − | G55: − | H55: Heavy fuel oil
B56: т у.п. / tsc | C56: − | D56: − | E56: − | F56: − | G56: −
A57: Дистиляти нафтові легкі, фракції легкі інші | B57: т / t | C57: к/с | D57: − | E57: к/с | F57: к/с | G57: − | H57: Light oil distilates and light fractions
B58: т у.п. / tsc | C58: к/с | D58: − | E58: к/с | F58: к/с | G58: −
A59: Дистиляти нафтові середні, фракції середні інші | B59: т / t | C59: − | D59: − | E59: − | F59: − | G59: − | H59: Middle oil distilates, other middle fractions
B60: т у.п. / tsc | C60: − | D60: − | E60: − | F60: − | G60: −
A61: Оливи та мастила нафтові; | B61: т / t | C61: 522.2 | D61: − | E61: 507.2 | F61: 15 | G61: − | H61: Lubricants
A62: дистиляти нафтові важкі | B62: т у.п. / tsc | C62: 715.414 | D62: − | E62: 694.864 | F62: 20.55 | G62: −
A63: Пропан і бутан скраплені | B63: т / t | C63: 1411.8 | D63: − | E63: − | F63: 1411.8 | G63: − | H63: Liquefied petroleum gases (LPG)
B64: т у.п. / tsc | C64: 2216.526 | D64: − | E64: − | F64: 2216.526 | G64: −
A65: Бітум нафтовий | B65: т / t | C65: − | D65: − | E65: − | F65: − | G65: − | H65: Oil bitumen
B66: т у.п. / tsc | C66: − | D66: − | E66: − | F66: − | G66: −
A67: Вазелін нафтовий, парафін, воски нафтові та інші | B67: т / t | C67: к/с | D67: − | E67: к/с | F67: − | G67: − | H67: Oil vaseline, paraffin, mineral waxes and others
B68: т у.п. / tsc | C68: к/с | D68: − | E68: к/с | F68: − | G68: −
A69: Кокс нафтовий | B69: т / t | C69: − | D69: − | E69: − | F69: − | G69: − | H69: Petroleum coke
B70: т у.п. / tsc | C70: − | D70: − | E70: − | F70: − | G70: −
A71: Етилен, пропілен, бутилен, бутадієн і гази нафтові інші або вуглеводи газоподібні, крім газу природного | B71: т / t | C71: − | D71: − | E71: − | F71: − | G71: − | H71: Ethylene, propylene, butylene, butadiene other refinery gas or other hydrocar-bons,excluding natural gas
B72: т / t | C72: − | D72: − | E72: − | F72: − | G72: −
A74: Присадки | B74: т / t | C74: − | D74: − | E74: − | F74: − | G74: − | H74: Additives
B75: т у.п. / tsc | C75: − | D75: − | E75: − | F75: − | G75: −
A76: Етан | B76: т / t | C76: − | D76: − | E76: − | F76: − | G76: − | H76: Etan
B77: т у.п. / tsc | C77: − | D77: − | E77: − | F77: − | G77: −
A78: Інші види нафтопродуктів | B78: т / t | C78: − | D78: − | E78: − | F78: − | G78: − | H78: Other oil products
B79: т у.п. / tsc | C79: − | D79: − | E79: − | F79: − | G79: −
A80: Вугілля деревне | B80: т / t | C80: − | D80: − | E80: − | F80: − | G80: − | H80: Char coal
B81: т у.п. / tsc | C81: − | D81: − | E81: − | F81: − | G81: −
A82: Паливні брикети та гранули з деревини та іншої природньої сировини | B82: т / t | C82: 10345.9 | D82: 9625.6 | E82: − | F82: 720.3 | G82: − | H82: Fuel briguettes fnd pellets made of wood and other natural materials
B83: т у.п. / tsc | C83: 5928.2007 | D83: 5515.4688 | E83: − | F83: 412.7319 | G83: −
A84: Дрова для опалення | B84: т / t | C84: к/с | D84: 126113.5 | E84: к/с | F84: 106795.3 | G84: − | H84: Fuel wood
B85: т у.п. / tsc | C85: к/с | D85: 33420.0775 | E85: к/с | F85: 28300.7545 | G85: −
A86: Стружка і тріска деревні | B86: т / t | C86: к/с | D86: 272844.3 | E86: − | F86: 19498.7 | G86: к/с | H86: Wood shavings and chips
B87: т у.п. / tsc | C87: к/с | D87: 98223.948 | E87: − | F87: 7019.532 | G87: к/с
A88: Інше тверде біопаливо рослинного походження | B88: т / t | C88: к/с | D88: 95877.7 | E88: − | F88: к/с | G88: − | H88: Other solid biofuel obtained from plants
B89: т у.п. / tsc | C89: к/с | D89: 32214.9072 | E89: − | F89: к/с | G89: −
A90: Рідке біопаливо | B90: т / t | C90: − | D90: − | E90: − | F90: − | G90: − | H90: Liquified biofuel
B91: т у.п. / tsc | C91: − | D91: − | E91: − | F91: − | G91: −
A92: Біогаз | B92: тис.м³ / thsd. m³ | C92: − | D92: − | E92: − | F92: − | G92: − | H92: Biogas
B93: т у.п. / tsc | C93: − | D93: − | E93: − | F93: − | G93: −

Sheet 101-103
A1: 3.2.2.8. Виробництво паперу та паперових виробів
A2: Manufacture of paper and paper products
B4: Одиниці виміру | C4: Усього | D4: у тому числі
D5: including
D6: на пере-творення в інші види палива та енергію | E6: на неенер- гетичні цілі (як сировина матеріал) | F6: кінцеве споживання | G6: втрати при транспор-туванні, розподілі та зберіганні
B7: Unit | C7: Total | D7: transfor-mation into other types of fuel and energy | E7: non-energy use (raw matherial) | F7: final consumption | G7: transportation, distribution and storage losses
A9: Вугілля кам’яне | B9: т / t | C9: к/с | D9: к/с | E9: − | F9: к/с | G9: − | H9: Hard coal
B10: т у.п. / tsc | C10: к/с | D10: к/с | E10: − | F10: к/с | G10: −
A11: Вугілля буре | B11: т / t | C11: − | D11: − | E11: − | F11: − | G11: − | H11: Brown coal
B12: т у.п. / tsc | C12: − | D12: − | E12: − | F12: − | G12: −
A13: Торф неагломерований паливний | B13: т / t | C13: − | D13: − | E13: − | F13: − | G13: − | H13: Peat
B14: т у.п. / tsc | C14: − | D14: − | E14: − | F14: − | G14: −
A15: Брикети, котуни та подібні види твердого палива з вугілля кам’яного | B15: т / t | C15: к/с | D15: к/с | E15: − | F15: − | G15: − | H15: Hard coal briquettes
B16: т у.п. / tsc | C16: к/с | D16: к/с | E16: − | F16: − | G16: −
A17: Брикети, котуни та подібні види твердого палива з вугілля бурого | B17: т / t | C17: − | D17: − | E17: − | F17: − | G17: − | H17: Brown coal briquettes (BKB)
B18: т у.п. / tsc | C18: − | D18: − | E18: − | F18: − | G18: −
A19: Брикети, котуни та подібні види твердого палива з торфу | B19: т / t | C19: к/с | D19: к/с | E19: − | F19: к/с | G19: − | H19: Peat briquettes
B20: т у.п. / tsc | C20: к/с | D20: к/с | E20: − | F20: к/с | G20: −
A21: Кокс та напівкокс з вугілля кам'яного, кокс газовий | B21: т / t | C21: − | D21: − | E21: − | F21: − | G21: − | H21: Coal coke and coke breeze; gas coke
B22: т у.п. / tsc | C22: − | D22: − | E22: − | F22: − | G22: −
A23: Пек і кокс пековий | B23: т / t | C23: − | D23: − | E23: − | F23: − | G23: − | H23: Pitch and coal pitch
B24: т у.п. / tsc | C24: − | D24: − | E24: − | F24: − | G24: −
A25: Смоли кам’яновугільні, буровугільні або торф’яні | B25: т / t | C25: − | D25: − | E25: − | F25: − | G25: − | H25: Coal, brown coal or peat tar
B26: т у.п. / tsc | C26: − | D26: − | E26: − | F26: − | G26: −
A27: Коксовий газ | B27: тис.м³ / thsd. m³ | C27: − | D27: − | E27: − | F27: − | G27: − | H27: Coke oven gas
B28: т у.п. / tsc | C28: − | D28: − | E28: − | F28: − | G28: −
A29: Доменний газ | B29: тис.м³ / thsd. m³ | C29: − | D29: − | E29: − | F29: − | G29: − | H29: Blast furnace gas
B30: т у.п. / tsc | C30: − | D30: − | E30: − | F30: − | G30: −
A31: Газ інший (газ, отриманий шляхом газифікації вугілля; газ, отриманий у процесі виробництва феросплавів) | B31: тис.м³ / thsd. m³ | C31: − | D31: − | E31: − | F31: − | G31: − | H31: Other gas obtained during coal gasification and ferrous metals production
B32: т у.п. / tsc | C32: − | D32: − | E32: − | F32: − | G32: −
A33: Газ, отриманий у процесі конверторного виробництва сталі | B33: тис.м³ / thsd. m³ | C33: − | D33: − | E33: − | F33: − | G33: − | H33: The gas obtained in the process of converter steel production
B34: т у.п. / tsc | C34: − | D34: − | E34: − | F34: − | G34: −
F35: Продовження табл. 3.2.2.8 / Continued table 3.2.2.8
B36: Одиниці виміру | C36: Усього | D36: у тому числі
D37: including
D38: на пере-творення в інші види палива та енергію | E38: на неенер- гетичні цілі (як сировина матеріал) | F38: кінцеве споживання | G38: втрати при транспор-туванні, розподілі та зберіганні
B39: Unit | C39: Total | D39: transfor-mation into other types of fuel and energy | E39: non-energy use (raw matherial) | F39: final consumption | G39: transportation, distribution and storage losses
A41: Природний газ | B41: тис.м³ / thsd. m³ | C41: 183432.4 | D41: 157697.4 | E41: − | F41: 25735 | G41: − | H41: Natural gas
B42: т у.п. / tsc | C42: 212781.584 | D42: 182928.984 | E42: − | F42: 29852.6 | G42: −
A43: Нафта сира, у т.ч. нафта, одержана з мінералів бітумінозних | B43: т / t | C43: − | D43: − | E43: − | F43: − | G43: − | H43: Conventional crude oilб including obserbed from bitumenous minerals
B44: т у.п. / tsc | C44: − | D44: − | E44: − | F44: − | G44: −
A45: Газовий конденсат | B45: т / t | C45: − | D45: − | E45: − | F45: − | G45: − | H45: Natural gas liquids (NGL)
B46: т у.п. / tsc | C46: − | D46: − | E46: − | F46: − | G46: −
A47: Бензин моторний | B47: т / t | C47: 980.1 | D47: − | E47: − | F47: 980.1 | G47: − | H47: Motor gasoline
B48: т у.п. / tsc | C48: 1460.349 | D48: − | E48: − | F48: 1460.349 | G48: −
A49: Газойлі (паливо дизельне) | B49: т / t | C49: 5107.9 | D49: − | E49: − | F49: 5107.9 | G49: − | H49: Road diesel
B50: т у.п. / tsc | C50: 7406.455 | D50: − | E50: − | F50: 7406.455 | G50: −
A51: Гас | B51: т / t | C51: к/с | D51: − | E51: к/с | F51: − | G51: − | H51: Kerosene
B52: т у.п. / tsc | C52: к/с | D52: − | E52: к/с | F52: − | G52: −
A53: Мазути паливні важкі | B53: т / t | C53: − | D53: − | E53: − | F53: − | G53: − | H53: Heavy fuel oil
